Workbook

Sheet INTRO
B2: Joint request for selected PC medicines v.4.1
B4: As part of global efforts to accelerate expansion of preventive chemotherapy (PC) for control and elimination of lymphatic filariasis, schistosomiasis and soil-transmitted helminthiases, the World Health Organization (WHO) facilitates the supply of albendazole 400 mg tablets (GSK) to national lymphatic filariasis elimination programmes and national soil-transmitted helminth control programmes; diethylcarbamazine citrate 100 mg tablets (Eisai) to national lymphatic filariasis elimination programmes; mebendazole 500 mg tablets (J&J) for national soil-transmitted helminth control programmes; and praziquantel 600 mg tablets (Merck KGaA) for school-age children to national schistosomiasis control programmes. WHO also collaborates to supply ivermectin 3 mg tablets (Merck) for onchocerciasis and lymphatic filariasis donation programmes. This Excel-based tool is designed to assist countries in quantifying the number of tablets of relevant PC medicines required to reach the planned target population and districts for the year of request. Output of the tool is a joint request for PC medicines, which can be printed, signed and submitted to WHO to request these medicines.
B6: Structure of the application (worksheets):
B8: INTRO | C8: This worksheet includes guides on how to complete the joint request for selected PC medicines and information about the status of PC for endemic diseases in the country.
B9: COUNTRY_INFO | C9: This worksheet includes information about administrative structure of the country, population by age group, status of endemicity for each disease, population requiring PC and planned interventions.
B10: DEC, ALB_MBD, PZQ and IVM | C10: These worksheets include information about endemic districts targeted for treatment with specified PC medicines, treatment plan, and number of tablets required and requested.
B11: SUMMARY | C11: This worksheet includes summary of number of tablets requested, information about stock, and date for submission of requested medicines. Before generating the report (run macros) please select the medicine for which the report is needed. Follow the same rule to see the number of people to be treated for the specific disease. This worksheet should be printed and submitted as a joint request for selected PC medicines (see the instruction for submission in the SUMMARY worksheet).
B13: Instruction for data entry
B15: Most of the cells in the above-mentioned worksheets include formula that are calculated automatically according to the treatment policy recommended by WHO for each disease. See the link https://www.who.int/publications/i/item/9789241599993.
B17: Please enter your data into the cells according to their colour code:
C19: White - cell is not protected. Please enter the value of the requested indicator.
C21: Yellow - cell is protected and includes name of indicator. No data entry required.
C23: Orange - cell is not protected and includes a drop-down menu. Please select the value from the drop-down list.
C26: Green - cell is not protected and includes formula. Please change the value only if your data are different from those that are calculated automatically.
C29: Blue - cell is protected and includes formula. No data entry required.
B31: Country data
B33: COUNTRY | E33: MALAWI | G33: MW | H33: MWI
E34: 5
B35: Year for request of the medicine | E35: 2024
B37: Is country endemic for lymphatic filariasis (LF)? | E37: Endemic but PC is not required
B39: Is country endemic for onchocerciasis (ONCHO)? | E39: Endemic
B41: Is country endemic for soil-transmitted helminthiases (STH)? | E41: Endemic
B43: Is country endemic for schistosomiasis (SCH)? | E43: Endemic
B45: How many administrative units in the country? | E45: 29
B47: If demographical data at the second administrative level are not available by age group, please enter the proportion (%) of population by age group in the country. If data are available, please leave these cells blank.
B48: 1-4 years age | C48: Preschool-age children (PreSAC) | E48: 0
B49: 5-14 years age | C49: School-age children (SAC) | E49: 0.279
B50: 15 years + | C50: Adults | E50: 0.5684
B51: 15-49 years | C51: Women of reproductive age (WRA)

Sheet COUNTRY_INFO
A1: COUNTRY INFORMATION
A2: Administrative structure, population by age group, status of endemicity and planned interventions
A4: TOTAL | D4: =SUBTOTAL(9,D$10:D$1010) -> 20122734.42 | E4: =SUBTOTAL(9,E$10:E$1010) -> 0 | F4: 5614245 | G4: 11437761 | L4: =SUBTOTAL(9,L$10:L$1010) -> 0 | M4: 3050992 | N4: 0 | O4: 2459358 | P4: 0 | Q4: 2459358 | R4: 1075377 | S4: 3348548 | T4: 6821922 | U4: 11245847
A6: Country administrative structure | D6: Population | H6: Endemicity | L6: Population requiring PC | V6: Number of treatment rounds planned for the year | Z6: Criteria to apply for IVM+DEC+ALB therapy | AA6: Epidemiological surveys planned for the year
A7: Country | B7: Province/State | C7: District | D7: Total | E7: PreSAC | F7: SAC | G7: Adults | H7: LF | I7: Oncho | J7: STH | K7: SCH | L7: LF | M7: ONCHO | N7: STH | R7: SCH | V7: LF | W7: Oncho | X7: STH | Y7: SCH | Z7: LF | AA7: LF | AB7: Oncho | AC7: STH | AD7: SCH
N8: PreSAC | O8: SAC | P8: WRA | Q8: TOTAL | R8: PreSAC | S8: SAC | T8: Adults | U8: TOTAL | AH8: IU_ID | AI8: IU_Name
A10: =IF(INTRO!$E$33<>0,INTRO!$E$33, " ") -> MALAWI | B10: North | C10: Chitipa | D10: 270419.142 | E10: =IF(INTRO!$E$48="","",ROUND($D10*INTRO!$E$48,0)) -> 0 | F10: =IF(INTRO!$E$49="","",ROUND($D10*INTRO!$E$49,0)) -> 75447 | G10: =IF(INTRO!$E$50="","",ROUND($D10*INTRO!$E$50,0)) -> 153706 | I10: 0 | J10: 1 | K10: 2 | L10: =IF(INTRO!$E$37="Endemic",IF($H10>0,IF($H10=4,"Unknown",IF($H10=99,"Stopped",$D10)),0),"Not required") -> Not required | M10: =IF(INTRO!$E$39="Endemic", IF($I10>0, IF($I10=4,"Unknown",IF($I10=99,"Stopped",$D10)), 0),"Not required") -> 0 | N10: =IF(INTRO!$E$41="Endemic", IF($J10>1, IF($J10=4, "Unknown", IF($J10=99, "Surveillance", E10)), 0),"Not required") -> 0 | O10: =IF(INTRO!$E$41="Endemic", IF($J10>1, IF($J10=4, "Unknown", IF($J10=99, "Surveillance", F10)), 0),"Not required") -> 0 | P10: =IF(INTRO!$E$41="Endemic", IF($J10>1, IF($J10=4, "Unknown", IF($J10=99, "Surveillance", ROUND(D10*INTRO!$E$51,0))), 0),"Not required") -> 0 | Q10: =IF(INTRO!$E$41="Endemic", IF($J10>1, IF($J10=4, "Unknown", IF($J10=99, "Surveillance", SUM($N10:$P10))), 0),"Not required") -> 0 | R10: 15176 | S10: 47259 | T10: 96278 | U10: 158713 | W10: 0 | X10: 0 | Y10: 1 | AC10: Yes | AH10: 28948 | AI10: Chitipa
A11: =IF(INTRO!$E$33<>0,INTRO!$E$33, " ") -> MALAWI | B11: North | C11: Karonga | D11: 420175.686 | E11: =IF(INTRO!$E$48="","",ROUND($D11*INTRO!$E$48,0)) -> 0 | F11: =IF(INTRO!$E$49="","",ROUND($D11*INTRO!$E$49,0)) -> 117229 | G11: =IF(INTRO!$E$50="","",ROUND($D11*INTRO!$E$50,0)) -> 238828 | I11: 0 | J11: 0 | K11: 2 | L11: =IF(INTRO!$E$37="Endemic",IF($H11>0,IF($H11=4,"Unknown",IF($H11=99,"Stopped",$D11)),0),"Not required") -> Not required | M11: =IF(INTRO!$E$39="Endemic", IF($I11>0, IF($I11=4,"Unknown",IF($I11=99,"Stopped",$D11)), 0),"Not required") -> 0 | N11: =IF(INTRO!$E$41="Endemic", IF($J11>1, IF($J11=4, "Unknown", IF($J11=99, "Surveillance", E11)), 0),"Not required") -> 0 | O11: =IF(INTRO!$E$41="Endemic", IF($J11>1, IF($J11=4, "Unknown", IF($J11=99, "Surveillance", F11)), 0),"Not required") -> 0 | P11: =IF(INTRO!$E$41="Endemic", IF($J11>1, IF($J11=4, "Unknown", IF($J11=99, "Surveillance", ROUND(D11*INTRO!$E$51,0))), 0),"Not required") -> 0 | Q11: =IF(INTRO!$E$41="Endemic", IF($J11>1, IF($J11=4, "Unknown", IF($J11=99, "Surveillance", SUM($N11:$P11))), 0),"Not required") -> 0 | R11: 18111 | S11: 56393 | T11: 114888 | U11: 189392 | W11: 0 | X11: 0 | Y11: 1 | AH11: 28951 | AI11: Karonga
A12: =IF(INTRO!$E$33<>0,INTRO!$E$33, " ") -> MALAWI | B12: North | C12: Rumphi | D12: 263783.121 | E12: =IF(INTRO!$E$48="","",ROUND($D12*INTRO!$E$48,0)) -> 0 | F12: =IF(INTRO!$E$49="","",ROUND($D12*INTRO!$E$49,0)) -> 73595 | G12: =IF(INTRO!$E$50="","",ROUND($D12*INTRO!$E$50,0)) -> 149934 | I12: 0 | J12: 1 | K12: 2 | L12: =IF(INTRO!$E$37="Endemic",IF($H12>0,IF($H12=4,"Unknown",IF($H12=99,"Stopped",$D12)),0),"Not required") -> Not required | M12: =IF(INTRO!$E$39="Endemic", IF($I12>0, IF($I12=4,"Unknown",IF($I12=99,"Stopped",$D12)), 0),"Not required") -> 0 | N12: =IF(INTRO!$E$41="Endemic", IF($J12>1, IF($J12=4, "Unknown", IF($J12=99, "Surveillance", E12)), 0),"Not required") -> 0 | O12: =IF(INTRO!$E$41="Endemic", IF($J12>1, IF($J12=4, "Unknown", IF($J12=99, "Surveillance", F12)), 0),"Not required") -> 0 | P12: =IF(INTRO!$E$41="Endemic", IF($J12>1, IF($J12=4, "Unknown", IF($J12=99, "Surveillance", ROUND(D12*INTRO!$E$51,0))), 0),"Not required") -> 0 | Q12: =IF(INTRO!$E$41="Endemic", IF($J12>1, IF($J12=4, "Unknown", IF($J12=99, "Surveillance", SUM($N12:$P12))), 0),"Not required") -> 0 | R12: 3835 | S12: 11943 | T12: 24332 | U12: 40110 | W12: 0 | X12: 0 | Y12: 1 | AC12: Yes | AH12: 28968 | AI12: Rumphi
A13: =IF(INTRO!$E$33<>0,INTRO!$E$33, " ") -> MALAWI | B13: North | C13: Mzimba North | D13: 1082226.054 | E13: =IF(INTRO!$E$48="","",ROUND($D13*INTRO!$E$48,0)) -> 0 | F13: =IF(INTRO!$E$49="","",ROUND($D13*INTRO!$E$49,0)) -> 301941 | G13: =IF(INTRO!$E$50="","",ROUND($D13*INTRO!$E$50,0)) -> 615137 | I13: 0 | J13: 11 | K13: 2 | L13: =IF(INTRO!$E$37="Endemic",IF($H13>0,IF($H13=4,"Unknown",IF($H13=99,"Stopped",$D13)),0),"Not required") -> Not required | M13: =IF(INTRO!$E$39="Endemic", IF($I13>0, IF($I13=4,"Unknown",IF($I13=99,"Stopped",$D13)), 0),"Not required") -> 0 | N13: =IF(INTRO!$E$41="Endemic", IF($J13>1, IF($J13=4, "Unknown", IF($J13=99, "Surveillance", E13)), 0),"Not required") -> 0 | O13: =IF(INTRO!$E$41="Endemic", IF($J13>1, IF($J13=4, "Unknown", IF($J13=99, "Surveillance", F13)), 0),"Not required") -> 301941 | P13: =IF(INTRO!$E$41="Endemic", IF($J13>1, IF($J13=4, "Unknown", IF($J13=99, "Surveillance", ROUND(D13*INTRO!$E$51,0))), 0),"Not required") -> 0 | Q13: =IF(INTRO!$E$41="Endemic", IF($J13>1, IF($J13=4, "Unknown", IF($J13=99, "Surveillance", SUM($N13:$P13))), 0),"Not required") -> 301941 | R13: 48246 | S13: 150232 | T13: 306067 | U13: 504545 | W13: 0 | X13: 1 | Y13: 1 | AH13: 28972 | AI13: Mzimba North
A14: =IF(INTRO!$E$33<>0,INTRO!$E$33, " ") -> MALAWI | B14: North | C14: Mzimba South | D14: 254701.167 | E14: =IF(INTRO!$E$48="","",ROUND($D14*INTRO!$E$48,0)) -> 0 | F14: =IF(INTRO!$E$49="","",ROUND($D14*INTRO!$E$49,0)) -> 71062 | G14: =IF(INTRO!$E$50="","",ROUND($D14*INTRO!$E$50,0)) -> 144772 | I14: 0 | J14: 11 | K14: 2 | L14: =IF(INTRO!$E$37="Endemic",IF($H14>0,IF($H14=4,"Unknown",IF($H14=99,"Stopped",$D14)),0),"Not required") -> Not required | M14: =IF(INTRO!$E$39="Endemic", IF($I14>0, IF($I14=4,"Unknown",IF($I14=99,"Stopped",$D14)), 0),"Not required") -> 0 | N14: =IF(INTRO!$E$41="Endemic", IF($J14>1, IF($J14=4, "Unknown", IF($J14=99, "Surveillance", E14)), 0),"Not required") -> 0 | O14: =IF(INTRO!$E$41="Endemic", IF($J14>1, IF($J14=4, "Unknown", IF($J14=99, "Surveillance", F14)), 0),"Not required") -> 71062 | P14: =IF(INTRO!$E$41="Endemic", IF($J14>1, IF($J14=4, "Unknown", IF($J14=99, "Surveillance", ROUND(D14*INTRO!$E$51,0))), 0),"Not required") -> 0 | Q14: =IF(INTRO!$E$41="Endemic", IF($J14>1, IF($J14=4, "Unknown", IF($J14=99, "Surveillance", SUM($N14:$P14))), 0),"Not required") -> 71062 | R14: 11352 | S14: 35349 | T14: 72016 | U14: 118717 | W14: 0 | X14: 1 | Y14: 1 | AH14: 28973 | AI14: Mzimba South
A15: =IF(INTRO!$E$33<>0,INTRO!$E$33, " ") -> MALAWI | B15: North | C15: Nkhata bay | D15: 327690.195 | E15: =IF(INTRO!$E$48="","",ROUND($D15*INTRO!$E$48,0)) -> 0 | F15: =IF(INTRO!$E$49="","",ROUND($D15*INTRO!$E$49,0)) -> 91426 | G15: =IF(INTRO!$E$50="","",ROUND($D15*INTRO!$E$50,0)) -> 186259 | I15: 0 | J15: 11 | K15: 2 | L15: =IF(INTRO!$E$37="Endemic",IF($H15>0,IF($H15=4,"Unknown",IF($H15=99,"Stopped",$D15)),0),"Not required") -> Not required | M15: =IF(INTRO!$E$39="Endemic", IF($I15>0, IF($I15=4,"Unknown",IF($I15=99,"Stopped",$D15)), 0),"Not required") -> 0 | N15: =IF(INTRO!$E$41="Endemic", IF($J15>1, IF($J15=4, "Unknown", IF($J15=99, "Surveillance", E15)), 0),"Not required") -> 0 | O15: =IF(INTRO!$E$41="Endemic", IF($J15>1, IF($J15=4, "Unknown", IF($J15=99, "Surveillance", F15)), 0),"Not required") -> 91426 | P15: =IF(INTRO!$E$41="Endemic", IF($J15>1, IF($J15=4, "Unknown", IF($J15=99, "Surveillance", ROUND(D15*INTRO!$E$51,0))), 0),"Not required") -> 0 | Q15: =IF(INTRO!$E$41="Endemic", IF($J15>1, IF($J15=4, "Unknown", IF($J15=99, "Surveillance", SUM($N15:$P15))), 0),"Not required") -> 91426 | R15: 17985 | S15: 55997 | T15: 114084 | U15: 188066 | W15: 0 | X15: 1 | Y15: 1 | AH15: 28962 | AI15: Nkhatabay
A16: =IF(INTRO!$E$33<>0,INTRO!$E$33, " ") -> MALAWI | B16: North | C16: Likoma | D16: 16722.279 | E16: =IF(INTRO!$E$48="","",ROUND($D16*INTRO!$E$48,0)) -> 0 | F16: =IF(INTRO!$E$49="","",ROUND($D16*INTRO!$E$49,0)) -> 4666 | G16: =IF(INTRO!$E$50="","",ROUND($D16*INTRO!$E$50,0)) -> 9505 | I16: 0 | J16: 1 | K16: 2 | L16: =IF(INTRO!$E$37="Endemic",IF($H16>0,IF($H16=4,"Unknown",IF($H16=99,"Stopped",$D16)),0),"Not required") -> Not required | M16: =IF(INTRO!$E$39="Endemic", IF($I16>0, IF($I16=4,"Unknown",IF($I16=99,"Stopped",$D16)), 0),"Not required") -> 0 | N16: =IF(INTRO!$E$41="Endemic", IF($J16>1, IF($J16=4, "Unknown", IF($J16=99, "Surveillance", E16)), 0),"Not required") -> 0 | O16: =IF(INTRO!$E$41="Endemic", IF($J16>1, IF($J16=4, "Unknown", IF($J16=99, "Surveillance", F16)), 0),"Not required") -> 0 | P16: =IF(INTRO!$E$41="Endemic", IF($J16>1, IF($J16=4, "Unknown", IF($J16=99, "Surveillance", ROUND(D16*INTRO!$E$51,0))), 0),"Not required") -> 0 | Q16: =IF(INTRO!$E$41="Endemic", IF($J16>1, IF($J16=4, "Unknown", IF($J16=99, "Surveillance", SUM($N16:$P16))), 0),"Not required") -> 0 | R16: 1357 | S16: 4224 | T16: 8606 | U16: 14187 | W16: 0 | X16: 0 | Y16: 1 | AC16: Yes | AH16: 28953 | AI16: Likoma
A17: =IF(INTRO!$E$33<>0,INTRO!$E$33, " ") -> MALAWI | B17: Central | C17: Kasungu | D17: 970304.811 | E17: =IF(INTRO!$E$48="","",ROUND($D17*INTRO!$E$48,0)) -> 0 | F17: =IF(INTRO!$E$49="","",ROUND($D17*INTRO!$E$49,0)) -> 270715 | G17: =IF(INTRO!$E$50="","",ROUND($D17*INTRO!$E$50,0)) -> 551521 | I17: 0 | J17: 1 | K17: 2 | L17: =IF(INTRO!$E$37="Endemic",IF($H17>0,IF($H17=4,"Unknown",IF($H17=99,"Stopped",$D17)),0),"Not required") -> Not required | M17: =IF(INTRO!$E$39="Endemic", IF($I17>0, IF($I17=4,"Unknown",IF($I17=99,"Stopped",$D17)), 0),"Not required") -> 0 | N17: =IF(INTRO!$E$41="Endemic", IF($J17>1, IF($J17=4, "Unknown", IF($J17=99, "Surveillance", E17)), 0),"Not required") -> 0 | O17: =IF(INTRO!$E$41="Endemic", IF($J17>1, IF($J17=4, "Unknown", IF($J17=99, "Surveillance", F17)), 0),"Not required") -> 0 | P17: =IF(INTRO!$E$41="Endemic", IF($J17>1, IF($J17=4, "Unknown", IF($J17=99, "Surveillance", ROUND(D17*INTRO!$E$51,0))), 0),"Not required") -> 0 | Q17: =IF(INTRO!$E$41="Endemic", IF($J17>1, IF($J17=4, "Unknown", IF($J17=99, "Surveillance", SUM($N17:$P17))), 0),"Not required") -> 0 | R17: 56826 | S17: 176946 | T17: 360489 | U17: 594261 | W17: 0 | X17: 0 | Y17: 1 | AC17: Yes | AH17: 28952 | AI17: Kasungu
A18: =IF(INTRO!$E$33<>0,INTRO!$E$33, " ") -> MALAWI | B18: Central | C18: Dedza | D18: 955984.218 | E18: =IF(INTRO!$E$48="","",ROUND($D18*INTRO!$E$48,0)) -> 0 | F18: =IF(INTRO!$E$49="","",ROUND($D18*INTRO!$E$49,0)) -> 266720 | G18: =IF(INTRO!$E$50="","",ROUND($D18*INTRO!$E$50,0)) -> 543381 | I18: 0 | J18: 0 | K18: 2 | L18: =IF(INTRO!$E$37="Endemic",IF($H18>0,IF($H18=4,"Unknown",IF($H18=99,"Stopped",$D18)),0),"Not required") -> Not required | M18: =IF(INTRO!$E$39="Endemic", IF($I18>0, IF($I18=4,"Unknown",IF($I18=99,"Stopped",$D18)), 0),"Not required") -> 0 | N18: =IF(INTRO!$E$41="Endemic", IF($J18>1, IF($J18=4, "Unknown", IF($J18=99, "Surveillance", E18)), 0),"Not required") -> 0 | O18: =IF(INTRO!$E$41="Endemic", IF($J18>1, IF($J18=4, "Unknown", IF($J18=99, "Surveillance", F18)), 0),"Not required") -> 0 | P18: =IF(INTRO!$E$41="Endemic", IF($J18>1, IF($J18=4, "Unknown", IF($J18=99, "Surveillance", ROUND(D18*INTRO!$E$51,0))), 0),"Not required") -> 0 | Q18: =IF(INTRO!$E$41="Endemic", IF($J18>1, IF($J18=4, "Unknown", IF($J18=99, "Surveillance", SUM($N18:$P18))), 0),"Not required") -> 0 | R18: 52942 | S18: 164853 | T18: 335852 | U18: 553647 | W18: 0 | X18: 0 | Y18: 1 | AH18: 28949 | AI18: Dedza
A19: =IF(INTRO!$E$33<>0,INTRO!$E$33, " ") -> MALAWI | B19: Central | C19: Dowa | D19: 889288.554 | E19: =IF(INTRO!$E$48="","",ROUND($D19*INTRO!$E$48,0)) -> 0 | F19: =IF(INTRO!$E$49="","",ROUND($D19*INTRO!$E$49,0)) -> 248112 | G19: =IF(INTRO!$E$50="","",ROUND($D19*INTRO!$E$50,0)) -> 505472 | I19: 0 | J19: 1 | K19: 2 | L19: =IF(INTRO!$E$37="Endemic",IF($H19>0,IF($H19=4,"Unknown",IF($H19=99,"Stopped",$D19)),0),"Not required") -> Not required | M19: =IF(INTRO!$E$39="Endemic", IF($I19>0, IF($I19=4,"Unknown",IF($I19=99,"Stopped",$D19)), 0),"Not required") -> 0 | N19: =IF(INTRO!$E$41="Endemic", IF($J19>1, IF($J19=4, "Unknown", IF($J19=99, "Surveillance", E19)), 0),"Not required") -> 0 | O19: =IF(INTRO!$E$41="Endemic", IF($J19>1, IF($J19=4, "Unknown", IF($J19=99, "Surveillance", F19)), 0),"Not required") -> 0 | P19: =IF(INTRO!$E$41="Endemic", IF($J19>1, IF($J19=4, "Unknown", IF($J19=99, "Surveillance", ROUND(D19*INTRO!$E$51,0))), 0),"Not required") -> 0 | Q19: =IF(INTRO!$E$41="Endemic", IF($J19>1, IF($J19=4, "Unknown", IF($J19=99, "Surveillance", SUM($N19:$P19))), 0),"Not required") -> 0 | R19: 10859 | S19: 33812 | T19: 68885 | U19: 113556 | W19: 0 | X19: 0 | Y19: 1 | AC19: Yes | AH19: 28950 | AI19: Dowa
A20: =IF(INTRO!$E$33<>0,INTRO!$E$33, " ") -> MALAWI | B20: Central | C20: Lilongwe | D20: 3023770.008 | E20: =IF(INTRO!$E$48="","",ROUND($D20*INTRO!$E$48,0)) -> 0 | F20: =IF(INTRO!$E$49="","",ROUND($D20*INTRO!$E$49,0)) -> 843632 | G20: =IF(INTRO!$E$50="","",ROUND($D20*INTRO!$E$50,0)) -> 1718711 | I20: 0 | J20: 11 | K20: 3 | L20: =IF(INTRO!$E$37="Endemic",IF($H20>0,IF($H20=4,"Unknown",IF($H20=99,"Stopped",$D20)),0),"Not required") -> Not required | M20: =IF(INTRO!$E$39="Endemic", IF($I20>0, IF($I20=4,"Unknown",IF($I20=99,"Stopped",$D20)), 0),"Not required") -> 0 | N20: =IF(INTRO!$E$41="Endemic", IF($J20>1, IF($J20=4, "Unknown", IF($J20=99, "Surveillance", E20)), 0),"Not required") -> 0 | O20: =IF(INTRO!$E$41="Endemic", IF($J20>1, IF($J20=4, "Unknown", IF($J20=99, "Surveillance", F20)), 0),"Not required") -> 843632 | P20: =IF(INTRO!$E$41="Endemic", IF($J20>1, IF($J20=4, "Unknown", IF($J20=99, "Surveillance", ROUND(D20*INTRO!$E$51,0))), 0),"Not required") -> 0 | Q20: =IF(INTRO!$E$41="Endemic", IF($J20>1, IF($J20=4, "Unknown", IF($J20=99, "Surveillance", SUM($N20:$P20))), 0),"Not required") -> 843632 | R20: 140987 | S20: 439008 | T20: 894379 | U20: 1474374 | W20: 0 | X20: 1 | Y20: 1 | AH20: 28954 | AI20: Lilongwe
A21: =IF(INTRO!$E$33<>0,INTRO!$E$33, " ") -> MALAWI | B21: Central | C21: Mchinji | D21: 693301.098 | E21: =IF(INTRO!$E$48="","",ROUND($D21*INTRO!$E$48,0)) -> 0 | F21: =IF(INTRO!$E$49="","",ROUND($D21*INTRO!$E$49,0)) -> 193431 | G21: =IF(INTRO!$E$50="","",ROUND($D21*INTRO!$E$50,0)) -> 394072 | I21: 0 | J21: 1 | K21: 2 | L21: =IF(INTRO!$E$37="Endemic",IF($H21>0,IF($H21=4,"Unknown",IF($H21=99,"Stopped",$D21)),0),"Not required") -> Not required | M21: =IF(INTRO!$E$39="Endemic", IF($I21>0, IF($I21=4,"Unknown",IF($I21=99,"Stopped",$D21)), 0),"Not required") -> 0 | N21: =IF(INTRO!$E$41="Endemic", IF($J21>1, IF($J21=4, "Unknown", IF($J21=99, "Surveillance", E21)), 0),"Not required") -> 0 | O21: =IF(INTRO!$E$41="Endemic", IF($J21>1, IF($J21=4, "Unknown", IF($J21=99, "Surveillance", F21)), 0),"Not required") -> 0 | P21: =IF(INTRO!$E$41="Endemic", IF($J21>1, IF($J21=4, "Unknown", IF($J21=99, "Surveillance", ROUND(D21*INTRO!$E$51,0))), 0),"Not required") -> 0 | Q21: =IF(INTRO!$E$41="Endemic", IF($J21>1, IF($J21=4, "Unknown", IF($J21=99, "Surveillance", SUM($N21:$P21))), 0),"Not required") -> 0 | R21: 15227 | S21: 47414 | T21: 96596 | U21: 159237 | W21: 0 | X21: 0 | Y21: 1 | AC21: Yes | AH21: 28957 | AI21: Mchinji
A22: =IF(INTRO!$E$33<>0,INTRO!$E$33, " ") -> MALAWI | B22: Central | C22: Salima | D22: 550614.813 | E22: =IF(INTRO!$E$48="","",ROUND($D22*INTRO!$E$48,0)) -> 0 | F22: =IF(INTRO!$E$49="","",ROUND($D22*INTRO!$E$49,0)) -> 153622 | G22: =IF(INTRO!$E$50="","",ROUND($D22*INTRO!$E$50,0)) -> 312969 | I22: 0 | J22: 99 | K22: 3 | L22: =IF(INTRO!$E$37="Endemic",IF($H22>0,IF($H22=4,"Unknown",IF($H22=99,"Stopped",$D22)),0),"Not required") -> Not required | M22: =IF(INTRO!$E$39="Endemic", IF($I22>0, IF($I22=4,"Unknown",IF($I22=99,"Stopped",$D22)), 0),"Not required") -> 0 | N22: =IF(INTRO!$E$41="Endemic", IF($J22>1, IF($J22=4, "Unknown", IF($J22=99, "Surveillance", E22)), 0),"Not required") -> Surveillance | O22: =IF(INTRO!$E$41="Endemic", IF($J22>1, IF($J22=4, "Unknown", IF($J22=99, "Surveillance", F22)), 0),"Not required") -> Surveillance | P22: =IF(INTRO!$E$41="Endemic", IF($J22>1, IF($J22=4, "Unknown", IF($J22=99, "Surveillance", ROUND(D22*INTRO!$E$51,0))), 0),"Not required") -> Surveillance | Q22: =IF(INTRO!$E$41="Endemic", IF($J22>1, IF($J22=4, "Unknown", IF($J22=99, "Surveillance", SUM($N22:$P22))), 0),"Not required") -> Surveillance | R22: 31230 | S22: 97249 | T22: 198124 | U22: 326603 | W22: 0 | X22: 0 | Y22: 1 | AH22: 28969 | AI22: Salima
A23: =IF(INTRO!$E$33<>0,INTRO!$E$33, " ") -> MALAWI | B23: Central | C23: Nkhotakota | D23: 452462.619 | E23: =IF(INTRO!$E$48="","",ROUND($D23*INTRO!$E$48,0)) -> 0 | F23: =IF(INTRO!$E$49="","",ROUND($D23*INTRO!$E$49,0)) -> 126237 | G23: =IF(INTRO!$E$50="","",ROUND($D23*INTRO!$E$50,0)) -> 257180 | I23: 0 | J23: 11 | K23: 3 | L23: =IF(INTRO!$E$37="Endemic",IF($H23>0,IF($H23=4,"Unknown",IF($H23=99,"Stopped",$D23)),0),"Not required") -> Not required | M23: =IF(INTRO!$E$39="Endemic", IF($I23>0, IF($I23=4,"Unknown",IF($I23=99,"Stopped",$D23)), 0),"Not required") -> 0 | N23: =IF(INTRO!$E$41="Endemic", IF($J23>1, IF($J23=4, "Unknown", IF($J23=99, "Surveillance", E23)), 0),"Not required") -> 0 | O23: =IF(INTRO!$E$41="Endemic", IF($J23>1, IF($J23=4, "Unknown", IF($J23=99, "Surveillance", F23)), 0),"Not required") -> 126237 | P23: =IF(INTRO!$E$41="Endemic", IF($J23>1, IF($J23=4, "Unknown", IF($J23=99, "Surveillance", ROUND(D23*INTRO!$E$51,0))), 0),"Not required") -> 0 | Q23: =IF(INTRO!$E$41="Endemic", IF($J23>1, IF($J23=4, "Unknown", IF($J23=99, "Surveillance", SUM($N23:$P23))), 0),"Not required") -> 126237 | R23: 40378 | S23: 125732 | T23: 256149 | U23: 422259 | W23: 0 | X23: 1 | Y23: 1 | AH23: 28963 | AI23: Nkhotakota
A24: =IF(INTRO!$E$33<>0,INTRO!$E$33, " ") -> MALAWI | B24: Central | C24: Ntchisi | D24: 364971.894 | E24: =IF(INTRO!$E$48="","",ROUND($D24*INTRO!$E$48,0)) -> 0 | F24: =IF(INTRO!$E$49="","",ROUND($D24*INTRO!$E$49,0)) -> 101827 | G24: =IF(INTRO!$E$50="","",ROUND($D24*INTRO!$E$50,0)) -> 207450 | I24: 0 | J24: 11 | K24: 2 | L24: =IF(INTRO!$E$37="Endemic",IF($H24>0,IF($H24=4,"Unknown",IF($H24=99,"Stopped",$D24)),0),"Not required") -> Not required | M24: =IF(INTRO!$E$39="Endemic", IF($I24>0, IF($I24=4,"Unknown",IF($I24=99,"Stopped",$D24)), 0),"Not required") -> 0 | N24: =IF(INTRO!$E$41="Endemic", IF($J24>1, IF($J24=4, "Unknown", IF($J24=99, "Surveillance", E24)), 0),"Not required") -> 0 | O24: =IF(INTRO!$E$41="Endemic", IF($J24>1, IF($J24=4, "Unknown", IF($J24=99, "Surveillance", F24)), 0),"Not required") -> 101827 | P24: =IF(INTRO!$E$41="Endemic", IF($J24>1, IF($J24=4, "Unknown", IF($J24=99, "Surveillance", ROUND(D24*INTRO!$E$51,0))), 0),"Not required") -> 0 | Q24: =IF(INTRO!$E$41="Endemic", IF($J24>1, IF($J24=4, "Unknown", IF($J24=99, "Surveillance", SUM($N24:$P24))), 0),"Not required") -> 101827 | R24: 15374 | S24: 47872 | T24: 97528 | U24: 160774 | W24: 0 | X24: 1 | Y24: 1 | AH24: 28966 | AI24: Ntchisi
A25: =IF(INTRO!$E$33<>0,INTRO!$E$33, " ") -> MALAWI | B25: Central | C25: Ntcheu | D25: 759261.027 | E25: =IF(INTRO!$E$48="","",ROUND($D25*INTRO!$E$48,0)) -> 0 | F25: =IF(INTRO!$E$49="","",ROUND($D25*INTRO!$E$49,0)) -> 211834 | G25: =IF(INTRO!$E$50="","",ROUND($D25*INTRO!$E$50,0)) -> 431564 | I25: 1 | J25: 11 | K25: 2 | L25: =IF(INTRO!$E$37="Endemic",IF($H25>0,IF($H25=4,"Unknown",IF($H25=99,"Stopped",$D25)),0),"Not required") -> Not required | M25: 214930 | N25: =IF(INTRO!$E$41="Endemic", IF($J25>1, IF($J25=4, "Unknown", IF($J25=99, "Surveillance", E25)), 0),"Not required") -> 0 | O25: =IF(INTRO!$E$41="Endemic", IF($J25>1, IF($J25=4, "Unknown", IF($J25=99, "Surveillance", F25)), 0),"Not required") -> 211834 | P25: =IF(INTRO!$E$41="Endemic", IF($J25>1, IF($J25=4, "Unknown", IF($J25=99, "Surveillance", ROUND(D25*INTRO!$E$51,0))), 0),"Not required") -> 0 | Q25: =IF(INTRO!$E$41="Endemic", IF($J25>1, IF($J25=4, "Unknown", IF($J25=99, "Surveillance", SUM($N25:$P25))), 0),"Not required") -> 211834 | R25: 19796 | S25: 61641 | T25: 125580 | U25: 207017 | W25: 2 | X25: 1 | Y25: 1 | AH25: 28965 | AI25: Ntcheu
A26: =IF(INTRO!$E$33<>0,INTRO!$E$33, " ") -> MALAWI | B26: South | C26: Balaka | D26: 504609.252 | E26: =IF(INTRO!$E$48="","",ROUND($D26*INTRO!$E$48,0)) -> 0 | F26: =IF(INTRO!$E$49="","",ROUND($D26*INTRO!$E$49,0)) -> 140786 | G26: =IF(INTRO!$E$50="","",ROUND($D26*INTRO!$E$50,0)) -> 286820 | I26: 0 | J26: 11 | K26: 2 | L26: =IF(INTRO!$E$37="Endemic",IF($H26>0,IF($H26=4,"Unknown",IF($H26=99,"Stopped",$D26)),0),"Not required") -> Not required | M26: =IF(INTRO!$E$39="Endemic", IF($I26>0, IF($I26=4,"Unknown",IF($I26=99,"Stopped",$D26)), 0),"Not required") -> 0 | N26: =IF(INTRO!$E$41="Endemic", IF($J26>1, IF($J26=4, "Unknown", IF($J26=99, "Surveillance", E26)), 0),"Not required") -> 0 | O26: =IF(INTRO!$E$41="Endemic", IF($J26>1, IF($J26=4, "Unknown", IF($J26=99, "Surveillance", F26)), 0),"Not required") -> 140786 | P26: =IF(INTRO!$E$41="Endemic", IF($J26>1, IF($J26=4, "Unknown", IF($J26=99, "Surveillance", ROUND(D26*INTRO!$E$51,0))), 0),"Not required") -> 0 | Q26: =IF(INTRO!$E$41="Endemic", IF($J26>1, IF($J26=4, "Unknown", IF($J26=99, "Surveillance", SUM($N26:$P26))), 0),"Not required") -> 140786 | R26: 7185 | S26: 22373 | T26: 45580 | U26: 75138 | W26: 0 | X26: 1 | Y26: 1 | AH26: 28944 | AI26: Balaka
A27: =IF(INTRO!$E$33<>0,INTRO!$E$33, " ") -> MALAWI | B27: South | C27: Chikwawa | D27: 649995.633 | E27: =IF(INTRO!$E$48="","",ROUND($D27*INTRO!$E$48,0)) -> 0 | F27: =IF(INTRO!$E$49="","",ROUND($D27*INTRO!$E$49,0)) -> 181349 | G27: =IF(INTRO!$E$50="","",ROUND($D27*INTRO!$E$50,0)) -> 369458 | I27: 1 | J27: 1 | K27: 2 | L27: =IF(INTRO!$E$37="Endemic",IF($H27>0,IF($H27=4,"Unknown",IF($H27=99,"Stopped",$D27)),0),"Not required") -> Not required | M27: 139183 | N27: =IF(INTRO!$E$41="Endemic", IF($J27>1, IF($J27=4, "Unknown", IF($J27=99, "Surveillance", E27)), 0),"Not required") -> 0 | O27: =IF(INTRO!$E$41="Endemic", IF($J27>1, IF($J27=4, "Unknown", IF($J27=99, "Surveillance", F27)), 0),"Not required") -> 0 | P27: =IF(INTRO!$E$41="Endemic", IF($J27>1, IF($J27=4, "Unknown", IF($J27=99, "Surveillance", ROUND(D27*INTRO!$E$51,0))), 0),"Not required") -> 0 | Q27: =IF(INTRO!$E$41="Endemic", IF($J27>1, IF($J27=4, "Unknown", IF($J27=99, "Surveillance", SUM($N27:$P27))), 0),"Not required") -> 0 | R27: 58008 | S27: 180624 | T27: 367979 | U27: 606611 | W27: 1 | X27: 0 | Y27: 1 | AB27: Yes | AC27: Yes | AH27: 28946 | AI27: Chikwawa
A28: =IF(INTRO!$E$33<>0,INTRO!$E$33, " ") -> MALAWI | B28: South | C28: Chiradzulu | D28: 410791.206 | E28: =IF(INTRO!$E$48="","",ROUND($D28*INTRO!$E$48,0)) -> 0 | F28: =IF(INTRO!$E$49="","",ROUND($D28*INTRO!$E$49,0)) -> 114611 | G28: =IF(INTRO!$E$50="","",ROUND($D28*INTRO!$E$50,0)) -> 233494 | I28: 1 | J28: 11 | K28: 2 | L28: =IF(INTRO!$E$37="Endemic",IF($H28>0,IF($H28=4,"Unknown",IF($H28=99,"Stopped",$D28)),0),"Not required") -> Not required | M28: 224426 | N28: =IF(INTRO!$E$41="Endemic", IF($J28>1, IF($J28=4, "Unknown", IF($J28=99, "Surveillance", E28)), 0),"Not required") -> 0 | O28: =IF(INTRO!$E$41="Endemic", IF($J28>1, IF($J28=4, "Unknown", IF($J28=99, "Surveillance", F28)), 0),"Not required") -> 114611 | P28: =IF(INTRO!$E$41="Endemic", IF($J28>1, IF($J28=4, "Unknown", IF($J28=99, "Surveillance", ROUND(D28*INTRO!$E$51,0))), 0),"Not required") -> 0 | Q28: =IF(INTRO!$E$41="Endemic", IF($J28>1, IF($J28=4, "Unknown", IF($J28=99, "Surveillance", SUM($N28:$P28))), 0),"Not required") -> 114611 | R28: 21452 | S28: 66800 | T28: 136088 | U28: 224340 | W28: 1 | X28: 1 | Y28: 1 | AB28: Yes | AH28: 28947 | AI28: Chiradzulu
A29: =IF(INTRO!$E$33<>0,INTRO!$E$33, " ") -> MALAWI | B29: South | C29: Machinga | D29: 846548.01 | E29: =IF(INTRO!$E$48="","",ROUND($D29*INTRO!$E$48,0)) -> 0 | F29: =IF(INTRO!$E$49="","",ROUND($D29*INTRO!$E$49,0)) -> 236187 | G29: =IF(INTRO!$E$50="","",ROUND($D29*INTRO!$E$50,0)) -> 481178 | I29: 0 | J29: 1 | K29: 2 | L29: =IF(INTRO!$E$37="Endemic",IF($H29>0,IF($H29=4,"Unknown",IF($H29=99,"Stopped",$D29)),0),"Not required") -> Not required | M29: =IF(INTRO!$E$39="Endemic", IF($I29>0, IF($I29=4,"Unknown",IF($I29=99,"Stopped",$D29)), 0),"Not required") -> 0 | N29: =IF(INTRO!$E$41="Endemic", IF($J29>1, IF($J29=4, "Unknown", IF($J29=99, "Surveillance", E29)), 0),"Not required") -> 0 | O29: =IF(INTRO!$E$41="Endemic", IF($J29>1, IF($J29=4, "Unknown", IF($J29=99, "Surveillance", F29)), 0),"Not required") -> 0 | P29: =IF(INTRO!$E$41="Endemic", IF($J29>1, IF($J29=4, "Unknown", IF($J29=99, "Surveillance", ROUND(D29*INTRO!$E$51,0))), 0),"Not required") -> 0 | Q29: =IF(INTRO!$E$41="Endemic", IF($J29>1, IF($J29=4, "Unknown", IF($J29=99, "Surveillance", SUM($N29:$P29))), 0),"Not required") -> 0 | R29: 75546 | S29: 235242 | T29: 479253 | U29: 790041 | W29: 0 | X29: 0 | Y29: 1 | AC29: Yes | AH29: 28955 | AI29: Machinga
A30: =IF(INTRO!$E$33<>0,INTRO!$E$33, " ") -> MALAWI | B30: South | C30: Blantyre | D30: 1440557.811 | E30: =IF(INTRO!$E$48="","",ROUND($D30*INTRO!$E$48,0)) -> 0 | F30: =IF(INTRO!$E$49="","",ROUND($D30*INTRO!$E$49,0)) -> 401916 | G30: =IF(INTRO!$E$50="","",ROUND($D30*INTRO!$E$50,0)) -> 818813 | I30: 1 | J30: 11 | K30: 2 | L30: =IF(INTRO!$E$37="Endemic",IF($H30>0,IF($H30=4,"Unknown",IF($H30=99,"Stopped",$D30)),0),"Not required") -> Not required | M30: 555704 | N30: =IF(INTRO!$E$41="Endemic", IF($J30>1, IF($J30=4, "Unknown", IF($J30=99, "Surveillance", E30)), 0),"Not required") -> 0 | O30: =IF(INTRO!$E$41="Endemic", IF($J30>1, IF($J30=4, "Unknown", IF($J30=99, "Surveillance", F30)), 0),"Not required") -> 401916 | P30: =IF(INTRO!$E$41="Endemic", IF($J30>1, IF($J30=4, "Unknown", IF($J30=99, "Surveillance", ROUND(D30*INTRO!$E$51,0))), 0),"Not required") -> 0 | Q30: =IF(INTRO!$E$41="Endemic", IF($J30>1, IF($J30=4, "Unknown", IF($J30=99, "Surveillance", SUM($N30:$P30))), 0),"Not required") -> 401916 | R30: 39737 | S30: 123735 | T30: 252082 | U30: 415554 | W30: 1 | X30: 1 | Y30: 1 | AB30: Yes | AH30: 28945 | AI30: Blantyre
A31: =IF(INTRO!$E$33<>0,INTRO!$E$33, " ") -> MALAWI | B31: South | C31: Mangochi | D31: 1322141.52 | E31: =IF(INTRO!$E$48="","",ROUND($D31*INTRO!$E$48,0)) -> 0 | F31: =IF(INTRO!$E$49="","",ROUND($D31*INTRO!$E$49,0)) -> 368877 | G31: =IF(INTRO!$E$50="","",ROUND($D31*INTRO!$E$50,0)) -> 751505 | I31: 0 | J31: 99 | K31: 3 | L31: =IF(INTRO!$E$37="Endemic",IF($H31>0,IF($H31=4,"Unknown",IF($H31=99,"Stopped",$D31)),0),"Not required") -> Not required | M31: =IF(INTRO!$E$39="Endemic", IF($I31>0, IF($I31=4,"Unknown",IF($I31=99,"Stopped",$D31)), 0),"Not required") -> 0 | N31: =IF(INTRO!$E$41="Endemic", IF($J31>1, IF($J31=4, "Unknown", IF($J31=99, "Surveillance", E31)), 0),"Not required") -> Surveillance | O31: =IF(INTRO!$E$41="Endemic", IF($J31>1, IF($J31=4, "Unknown", IF($J31=99, "Surveillance", F31)), 0),"Not required") -> Surveillance | P31: =IF(INTRO!$E$41="Endemic", IF($J31>1, IF($J31=4, "Unknown", IF($J31=99, "Surveillance", ROUND(D31*INTRO!$E$51,0))), 0),"Not required") -> Surveillance | Q31: =IF(INTRO!$E$41="Endemic", IF($J31>1, IF($J31=4, "Unknown", IF($J31=99, "Surveillance", SUM($N31:$P31))), 0),"Not required") -> Surveillance | R31: 107420 | S31: 334492 | T31: 681454 | U31: 1123366 | W31: 0 | X31: 0 | Y31: 1 | AH31: 28956 | AI31: Mangochi
A32: =IF(INTRO!$E$33<>0,INTRO!$E$33, " ") -> MALAWI | B32: South | C32: Mulanje | D32: 787460.772 | E32: =IF(INTRO!$E$48="","",ROUND($D32*INTRO!$E$48,0)) -> 0 | F32: =IF(INTRO!$E$49="","",ROUND($D32*INTRO!$E$49,0)) -> 219702 | G32: =IF(INTRO!$E$50="","",ROUND($D32*INTRO!$E$50,0)) -> 447593 | I32: 1 | J32: 1 | K32: 2 | L32: =IF(INTRO!$E$37="Endemic",IF($H32>0,IF($H32=4,"Unknown",IF($H32=99,"Stopped",$D32)),0),"Not required") -> Not required | M32: 590458 | N32: =IF(INTRO!$E$41="Endemic", IF($J32>1, IF($J32=4, "Unknown", IF($J32=99, "Surveillance", E32)), 0),"Not required") -> 0 | O32: =IF(INTRO!$E$41="Endemic", IF($J32>1, IF($J32=4, "Unknown", IF($J32=99, "Surveillance", F32)), 0),"Not required") -> 0 | P32: =IF(INTRO!$E$41="Endemic", IF($J32>1, IF($J32=4, "Unknown", IF($J32=99, "Surveillance", ROUND(D32*INTRO!$E$51,0))), 0),"Not required") -> 0 | Q32: =IF(INTRO!$E$41="Endemic", IF($J32>1, IF($J32=4, "Unknown", IF($J32=99, "Surveillance", SUM($N32:$P32))), 0),"Not required") -> 0 | R32: 65023 | S32: 202475 | T32: 412497 | U32: 679995 | W32: 1 | X32: 0 | Y32: 1 | AB32: Yes | AC32: Yes | AH32: 28958 | AI32: Mulanje
A33: =IF(INTRO!$E$33<>0,INTRO!$E$33, " ") -> MALAWI | B33: South | C33: Nsanje | D33: 344366.169 | E33: =IF(INTRO!$E$48="","",ROUND($D33*INTRO!$E$48,0)) -> 0 | F33: =IF(INTRO!$E$49="","",ROUND($D33*INTRO!$E$49,0)) -> 96078 | G33: =IF(INTRO!$E$50="","",ROUND($D33*INTRO!$E$50,0)) -> 195738 | I33: 0 | J33: 1 | K33: 3 | L33: =IF(INTRO!$E$37="Endemic",IF($H33>0,IF($H33=4,"Unknown",IF($H33=99,"Stopped",$D33)),0),"Not required") -> Not required | M33: =IF(INTRO!$E$39="Endemic", IF($I33>0, IF($I33=4,"Unknown",IF($I33=99,"Stopped",$D33)), 0),"Not required") -> 0 | N33: =IF(INTRO!$E$41="Endemic", IF($J33>1, IF($J33=4, "Unknown", IF($J33=99, "Surveillance", E33)), 0),"Not required") -> 0 | O33: =IF(INTRO!$E$41="Endemic", IF($J33>1, IF($J33=4, "Unknown", IF($J33=99, "Surveillance", F33)), 0),"Not required") -> 0 | P33: =IF(INTRO!$E$41="Endemic", IF($J33>1, IF($J33=4, "Unknown", IF($J33=99, "Surveillance", ROUND(D33*INTRO!$E$51,0))), 0),"Not required") -> 0 | Q33: =IF(INTRO!$E$41="Endemic", IF($J33>1, IF($J33=4, "Unknown", IF($J33=99, "Surveillance", SUM($N33:$P33))), 0),"Not required") -> 0 | R33: 29834 | S33: 92896 | T33: 189257 | U33: 311987 | W33: 0 | X33: 0 | Y33: 1 | AC33: Yes | AH33: 28964 | AI33: Nsanje
A34: =IF(INTRO!$E$33<>0,INTRO!$E$33, " ") -> MALAWI | B34: South | C34: Phalombe | D34: 494330.571 | E34: =IF(INTRO!$E$48="","",ROUND($D34*INTRO!$E$48,0)) -> 0 | F34: =IF(INTRO!$E$49="","",ROUND($D34*INTRO!$E$49,0)) -> 137918 | G34: =IF(INTRO!$E$50="","",ROUND($D34*INTRO!$E$50,0)) -> 280977 | I34: 1 | J34: 0 | K34: 2 | L34: =IF(INTRO!$E$37="Endemic",IF($H34>0,IF($H34=4,"Unknown",IF($H34=99,"Stopped",$D34)),0),"Not required") -> Not required | M34: 55251 | N34: =IF(INTRO!$E$41="Endemic", IF($J34>1, IF($J34=4, "Unknown", IF($J34=99, "Surveillance", E34)), 0),"Not required") -> 0 | O34: =IF(INTRO!$E$41="Endemic", IF($J34>1, IF($J34=4, "Unknown", IF($J34=99, "Surveillance", F34)), 0),"Not required") -> 0 | P34: =IF(INTRO!$E$41="Endemic", IF($J34>1, IF($J34=4, "Unknown", IF($J34=99, "Surveillance", ROUND(D34*INTRO!$E$51,0))), 0),"Not required") -> 0 | Q34: =IF(INTRO!$E$41="Endemic", IF($J34>1, IF($J34=4, "Unknown", IF($J34=99, "Surveillance", SUM($N34:$P34))), 0),"Not required") -> 0 | R34: 33734 | S34: 105039 | T34: 213995 | U34: 352768 | W34: 1 | X34: 0 | Y34: 1 | AB34: Yes | AH34: 28967 | AI34: Phalombe
A35: =IF(INTRO!$E$33<>0,INTRO!$E$33, " ") -> MALAWI | B35: South | C35: Thyolo | D35: 694611 | E35: =IF(INTRO!$E$48="","",ROUND($D35*INTRO!$E$48,0)) -> 0 | F35: =IF(INTRO!$E$49="","",ROUND($D35*INTRO!$E$49,0)) -> 193796 | G35: =IF(INTRO!$E$50="","",ROUND($D35*INTRO!$E$50,0)) -> 394817 | I35: 1 | J35: 1 | K35: 2 | L35: =IF(INTRO!$E$37="Endemic",IF($H35>0,IF($H35=4,"Unknown",IF($H35=99,"Stopped",$D35)),0),"Not required") -> Not required | M35: 694611 | N35: =IF(INTRO!$E$41="Endemic", IF($J35>1, IF($J35=4, "Unknown", IF($J35=99, "Surveillance", E35)), 0),"Not required") -> 0 | O35: =IF(INTRO!$E$41="Endemic", IF($J35>1, IF($J35=4, "Unknown", IF($J35=99, "Surveillance", F35)), 0),"Not required") -> 0 | P35: =IF(INTRO!$E$41="Endemic", IF($J35>1, IF($J35=4, "Unknown", IF($J35=99, "Surveillance", ROUND(D35*INTRO!$E$51,0))), 0),"Not required") -> 0 | Q35: =IF(INTRO!$E$41="Endemic", IF($J35>1, IF($J35=4, "Unknown", IF($J35=99, "Surveillance", SUM($N35:$P35))), 0),"Not required") -> 0 | R35: 52316 | S35: 162901 | T35: 331876 | U35: 547093 | W35: 1 | X35: 0 | Y35: 1 | AB35: Yes | AC35: Yes | AH35: 28970 | AI35: Thyolo
A36: =IF(INTRO!$E$33<>0,INTRO!$E$33, " ") -> MALAWI | B36: South | C36: Zomba | D36: 980416.794 | E36: =IF(INTRO!$E$48="","",ROUND($D36*INTRO!$E$48,0)) -> 0 | F36: =IF(INTRO!$E$49="","",ROUND($D36*INTRO!$E$49,0)) -> 273536 | G36: =IF(INTRO!$E$50="","",ROUND($D36*INTRO!$E$50,0)) -> 557269 | I36: 1 | J36: 99 | K36: 2 | L36: =IF(INTRO!$E$37="Endemic",IF($H36>0,IF($H36=4,"Unknown",IF($H36=99,"Stopped",$D36)),0),"Not required") -> Not required | M36: 225200 | N36: =IF(INTRO!$E$41="Endemic", IF($J36>1, IF($J36=4, "Unknown", IF($J36=99, "Surveillance", E36)), 0),"Not required") -> Surveillance | O36: =IF(INTRO!$E$41="Endemic", IF($J36>1, IF($J36=4, "Unknown", IF($J36=99, "Surveillance", F36)), 0),"Not required") -> Surveillance | P36: =IF(INTRO!$E$41="Endemic", IF($J36>1, IF($J36=4, "Unknown", IF($J36=99, "Surveillance", ROUND(D36*INTRO!$E$51,0))), 0),"Not required") -> Surveillance | Q36: =IF(INTRO!$E$41="Endemic", IF($J36>1, IF($J36=4, "Unknown", IF($J36=99, "Surveillance", SUM($N36:$P36))), 0),"Not required") -> Surveillance | R36: 71989 | S36: 224160 | T36: 456674 | U36: 752823 | W36: 2 | X36: 0 | Y36: 1 | AH36: 28971 | AI36: Zomba
A37: =IF(INTRO!$E$33<>0,INTRO!$E$33, " ") -> MALAWI | B37: South | C37: Neno | D37: 193855 | E37: =IF(INTRO!$E$48="","",ROUND($D37*INTRO!$E$48,0)) -> 0 | F37: =IF(INTRO!$E$49="","",ROUND($D37*INTRO!$E$49,0)) -> 54086 | G37: =IF(INTRO!$E$50="","",ROUND($D37*INTRO!$E$50,0)) -> 110187 | I37: 1 | J37: 11 | K37: 1 | L37: =IF(INTRO!$E$37="Endemic",IF($H37>0,IF($H37=4,"Unknown",IF($H37=99,"Stopped",$D37)),0),"Not required") -> Not required | M37: 193855 | N37: =IF(INTRO!$E$41="Endemic", IF($J37>1, IF($J37=4, "Unknown", IF($J37=99, "Surveillance", E37)), 0),"Not required") -> 0 | O37: =IF(INTRO!$E$41="Endemic", IF($J37>1, IF($J37=4, "Unknown", IF($J37=99, "Surveillance", F37)), 0),"Not required") -> 54086 | P37: =IF(INTRO!$E$41="Endemic", IF($J37>1, IF($J37=4, "Unknown", IF($J37=99, "Surveillance", ROUND(D37*INTRO!$E$51,0))), 0),"Not required") -> 0 | Q37: =IF(INTRO!$E$41="Endemic", IF($J37>1, IF($J37=4, "Unknown", IF($J37=99, "Surveillance", SUM($N37:$P37))), 0),"Not required") -> 54086 | R37: 0 | S37: 0 | T37: 0 | U37: 0 | W37: 1 | X37: 1 | Y37: 0 | AB37: Yes | AH37: 28961 | AI37: Neno
A38: =IF(INTRO!$E$33<>0,INTRO!$E$33, " ") -> MALAWI | B38: South | C38: Mwanza | D38: 157374 | E38: =IF(INTRO!$E$48="","",ROUND($D38*INTRO!$E$48,0)) -> 0 | F38: =IF(INTRO!$E$49="","",ROUND($D38*INTRO!$E$49,0)) -> 43907 | G38: =IF(INTRO!$E$50="","",ROUND($D38*INTRO!$E$50,0)) -> 89451 | I38: 1 | J38: 99 | K38: 2 | L38: =IF(INTRO!$E$37="Endemic",IF($H38>0,IF($H38=4,"Unknown",IF($H38=99,"Stopped",$D38)),0),"Not required") -> Not required | M38: 157374 | N38: =IF(INTRO!$E$41="Endemic", IF($J38>1, IF($J38=4, "Unknown", IF($J38=99, "Surveillance", E38)), 0),"Not required") -> Surveillance | O38: =IF(INTRO!$E$41="Endemic", IF($J38>1, IF($J38=4, "Unknown", IF($J38=99, "Surveillance", F38)), 0),"Not required") -> Surveillance | P38: =IF(INTRO!$E$41="Endemic", IF($J38>1, IF($J38=4, "Unknown", IF($J38=99, "Surveillance", ROUND(D38*INTRO!$E$51,0))), 0),"Not required") -> Surveillance | Q38: =IF(INTRO!$E$41="Endemic", IF($J38>1, IF($J38=4, "Unknown", IF($J38=99, "Surveillance", SUM($N38:$P38))), 0),"Not required") -> Surveillance | R38: 13452 | S38: 41887 | T38: 85334 | U38: 140673 | W38: 1 | X38: 0 | Y38: 1 | AB38: Yes | AH38: 28959 | AI38: Mwanza

Sheet DEC (hidden)
A1: Diethylcarbamazine citrate (DEC)
A2: Administrative structure, eligible population by age group, treatment plan and information about tablets
A4: TOTAL | D4: =SUBTOTAL(9,D$10:D$1010) -> 0 | E4: 0 | F4: 0 | G4: 0 | I4: =SUBTOTAL(9,I$10:I$1010) -> 0 | J4: 0 | K4: 0 | L4: 0
A6: Country administrative structure | D6: Population requiring treatment with DEC | H6: Treatment plan | I6: Target population | J6: Diethylcarbamazine citrate (DEC)
A7: Country | B7: Province/State | C7: District | D7: PreSAC | E7: SAC | F7: Adults | G7: Total | H7: LF | I7: LF | J7: Total required | K7: Remaining in stock | L7: Tablets to be procured
A10: =IF(INTRO!$E$39<>"Non-endemic", " ", IF(INTRO!$E$37="Non-endemic"," ", IF(COUNTRY_INFO!A10=0," ",COUNTRY_INFO!A10))) ->  | B10: =IF(INTRO!$E$39<>"Non-endemic", " ", IF(INTRO!$E$37="Non-endemic"," ", IF(COUNTRY_INFO!B10=0," ",COUNTRY_INFO!B10))) ->  | C10: =IF(INTRO!$E$39<>"Non-endemic", " ", IF(INTRO!$E$37="Non-endemic"," ", IF(COUNTRY_INFO!C10=0," ",COUNTRY_INFO!C10))) ->  | D10: =IF(INTRO!$E$39<>"Non-endemic", 0, IF(INTRO!$E$37="Non-endemic",0,IF(COUNTRY_INFO!$H10=1,COUNTRY_INFO!E10,0))) -> 0 | E10: =IF(INTRO!$E$39<>"Non-endemic", 0, IF(INTRO!$E$37="Non-endemic",0,IF(COUNTRY_INFO!$H10=1,COUNTRY_INFO!F10,0))) -> 0 | F10: =IF(INTRO!$E$39<>"Non-endemic", 0, IF(INTRO!$E$37="Non-endemic",0,IF(COUNTRY_INFO!$H10=1,COUNTRY_INFO!G10,0))) -> 0 | G10: =SUM(D10:F10) -> 0 | H10: =IF(INTRO!$E$39="Non-endemic",IF(INTRO!$E$37="Non-endemic","Not required",COUNTRY_INFO!V10),"Treat with IVM") -> Treat with IVM | I10: =IF(H10=1,G10,0) -> 0 | J10: =IF(I10>0,I10*2.5,0) -> 0 | L10: =IF($J10>$K10,$J10-$K10,0) -> 0
A11: =IF(INTRO!$E$39<>"Non-endemic", " ", IF(INTRO!$E$37="Non-endemic"," ", IF(COUNTRY_INFO!A11=0," ",COUNTRY_INFO!A11))) ->  | B11: =IF(INTRO!$E$39<>"Non-endemic", " ", IF(INTRO!$E$37="Non-endemic"," ", IF(COUNTRY_INFO!B11=0," ",COUNTRY_INFO!B11))) ->  | C11: =IF(INTRO!$E$39<>"Non-endemic", " ", IF(INTRO!$E$37="Non-endemic"," ", IF(COUNTRY_INFO!C11=0," ",COUNTRY_INFO!C11))) ->  | D11: =IF(INTRO!$E$39<>"Non-endemic", 0, IF(INTRO!$E$37="Non-endemic",0,IF(COUNTRY_INFO!$H11=1,COUNTRY_INFO!E11,0))) -> 0 | E11: =IF(INTRO!$E$39<>"Non-endemic", 0, IF(INTRO!$E$37="Non-endemic",0,IF(COUNTRY_INFO!$H11=1,COUNTRY_INFO!F11,0))) -> 0 | F11: =IF(INTRO!$E$39<>"Non-endemic", 0, IF(INTRO!$E$37="Non-endemic",0,IF(COUNTRY_INFO!$H11=1,COUNTRY_INFO!G11,0))) -> 0 | G11: =SUM(D11:F11) -> 0 | H11: =IF(INTRO!$E$39="Non-endemic",IF(INTRO!$E$37="Non-endemic","Not required",COUNTRY_INFO!V11),"Treat with IVM") -> Treat with IVM | I11: =IF(H11=1,G11,0) -> 0 | J11: =IF(I11>0,I11*2.5,0) -> 0 | L11: 0
A12: =IF(INTRO!$E$39<>"Non-endemic", " ", IF(INTRO!$E$37="Non-endemic"," ", IF(COUNTRY_INFO!A12=0," ",COUNTRY_INFO!A12))) ->  | B12: =IF(INTRO!$E$39<>"Non-endemic", " ", IF(INTRO!$E$37="Non-endemic"," ", IF(COUNTRY_INFO!B12=0," ",COUNTRY_INFO!B12))) ->  | C12: =IF(INTRO!$E$39<>"Non-endemic", " ", IF(INTRO!$E$37="Non-endemic"," ", IF(COUNTRY_INFO!C12=0," ",COUNTRY_INFO!C12))) ->  | D12: =IF(INTRO!$E$39<>"Non-endemic", 0, IF(INTRO!$E$37="Non-endemic",0,IF(COUNTRY_INFO!$H12=1,COUNTRY_INFO!E12,0))) -> 0 | E12: =IF(INTRO!$E$39<>"Non-endemic", 0, IF(INTRO!$E$37="Non-endemic",0,IF(COUNTRY_INFO!$H12=1,COUNTRY_INFO!F12,0))) -> 0 | F12: =IF(INTRO!$E$39<>"Non-endemic", 0, IF(INTRO!$E$37="Non-endemic",0,IF(COUNTRY_INFO!$H12=1,COUNTRY_INFO!G12,0))) -> 0 | G12: 0 | H12: =IF(INTRO!$E$39="Non-endemic",IF(INTRO!$E$37="Non-endemic","Not required",COUNTRY_INFO!V12),"Treat with IVM") -> Treat with IVM | I12: 0 | J12: 0 | L12: 0
A13: =IF(INTRO!$E$39<>"Non-endemic", " ", IF(INTRO!$E$37="Non-endemic"," ", IF(COUNTRY_INFO!A13=0," ",COUNTRY_INFO!A13))) ->  | B13: =IF(INTRO!$E$39<>"Non-endemic", " ", IF(INTRO!$E$37="Non-endemic"," ", IF(COUNTRY_INFO!B13=0," ",COUNTRY_INFO!B13))) ->  | C13: =IF(INTRO!$E$39<>"Non-endemic", " ", IF(INTRO!$E$37="Non-endemic"," ", IF(COUNTRY_INFO!C13=0," ",COUNTRY_INFO!C13))) ->  | D13: =IF(INTRO!$E$39<>"Non-endemic", 0, IF(INTRO!$E$37="Non-endemic",0,IF(COUNTRY_INFO!$H13=1,COUNTRY_INFO!E13,0))) -> 0 | E13: =IF(INTRO!$E$39<>"Non-endemic", 0, IF(INTRO!$E$37="Non-endemic",0,IF(COUNTRY_INFO!$H13=1,COUNTRY_INFO!F13,0))) -> 0 | F13: =IF(INTRO!$E$39<>"Non-endemic", 0, IF(INTRO!$E$37="Non-endemic",0,IF(COUNTRY_INFO!$H13=1,COUNTRY_INFO!G13,0))) -> 0 | G13: 0 | H13: =IF(INTRO!$E$39="Non-endemic",IF(INTRO!$E$37="Non-endemic","Not required",COUNTRY_INFO!V13),"Treat with IVM") -> Treat with IVM | I13: 0 | J13: 0 | L13: 0
A14: =IF(INTRO!$E$39<>"Non-endemic", " ", IF(INTRO!$E$37="Non-endemic"," ", IF(COUNTRY_INFO!A14=0," ",COUNTRY_INFO!A14))) ->  | B14: =IF(INTRO!$E$39<>"Non-endemic", " ", IF(INTRO!$E$37="Non-endemic"," ", IF(COUNTRY_INFO!B14=0," ",COUNTRY_INFO!B14))) ->  | C14: =IF(INTRO!$E$39<>"Non-endemic", " ", IF(INTRO!$E$37="Non-endemic"," ", IF(COUNTRY_INFO!C14=0," ",COUNTRY_INFO!C14))) ->  | D14: =IF(INTRO!$E$39<>"Non-endemic", 0, IF(INTRO!$E$37="Non-endemic",0,IF(COUNTRY_INFO!$H14=1,COUNTRY_INFO!E14,0))) -> 0 | E14: =IF(INTRO!$E$39<>"Non-endemic", 0, IF(INTRO!$E$37="Non-endemic",0,IF(COUNTRY_INFO!$H14=1,COUNTRY_INFO!F14,0))) -> 0 | F14: =IF(INTRO!$E$39<>"Non-endemic", 0, IF(INTRO!$E$37="Non-endemic",0,IF(COUNTRY_INFO!$H14=1,COUNTRY_INFO!G14,0))) -> 0 | G14: 0 | H14: =IF(INTRO!$E$39="Non-endemic",IF(INTRO!$E$37="Non-endemic","Not required",COUNTRY_INFO!V14),"Treat with IVM") -> Treat with IVM | I14: 0 | J14: 0 | L14: 0
A15: =IF(INTRO!$E$39<>"Non-endemic", " ", IF(INTRO!$E$37="Non-endemic"," ", IF(COUNTRY_INFO!A15=0," ",COUNTRY_INFO!A15))) ->  | B15: =IF(INTRO!$E$39<>"Non-endemic", " ", IF(INTRO!$E$37="Non-endemic"," ", IF(COUNTRY_INFO!B15=0," ",COUNTRY_INFO!B15))) ->  | C15: =IF(INTRO!$E$39<>"Non-endemic", " ", IF(INTRO!$E$37="Non-endemic"," ", IF(COUNTRY_INFO!C15=0," ",COUNTRY_INFO!C15))) ->  | D15: =IF(INTRO!$E$39<>"Non-endemic", 0, IF(INTRO!$E$37="Non-endemic",0,IF(COUNTRY_INFO!$H15=1,COUNTRY_INFO!E15,0))) -> 0 | E15: =IF(INTRO!$E$39<>"Non-endemic", 0, IF(INTRO!$E$37="Non-endemic",0,IF(COUNTRY_INFO!$H15=1,COUNTRY_INFO!F15,0))) -> 0 | F15: =IF(INTRO!$E$39<>"Non-endemic", 0, IF(INTRO!$E$37="Non-endemic",0,IF(COUNTRY_INFO!$H15=1,COUNTRY_INFO!G15,0))) -> 0 | G15: 0 | H15: =IF(INTRO!$E$39="Non-endemic",IF(INTRO!$E$37="Non-endemic","Not required",COUNTRY_INFO!V15),"Treat with IVM") -> Treat with IVM | I15: 0 | J15: 0 | L15: 0
A16: =IF(INTRO!$E$39<>"Non-endemic", " ", IF(INTRO!$E$37="Non-endemic"," ", IF(COUNTRY_INFO!A16=0," ",COUNTRY_INFO!A16))) ->  | B16: =IF(INTRO!$E$39<>"Non-endemic", " ", IF(INTRO!$E$37="Non-endemic"," ", IF(COUNTRY_INFO!B16=0," ",COUNTRY_INFO!B16))) ->  | C16: =IF(INTRO!$E$39<>"Non-endemic", " ", IF(INTRO!$E$37="Non-endemic"," ", IF(COUNTRY_INFO!C16=0," ",COUNTRY_INFO!C16))) ->  | D16: =IF(INTRO!$E$39<>"Non-endemic", 0, IF(INTRO!$E$37="Non-endemic",0,IF(COUNTRY_INFO!$H16=1,COUNTRY_INFO!E16,0))) -> 0 | E16: =IF(INTRO!$E$39<>"Non-endemic", 0, IF(INTRO!$E$37="Non-endemic",0,IF(COUNTRY_INFO!$H16=1,COUNTRY_INFO!F16,0))) -> 0 | F16: =IF(INTRO!$E$39<>"Non-endemic", 0, IF(INTRO!$E$37="Non-endemic",0,IF(COUNTRY_INFO!$H16=1,COUNTRY_INFO!G16,0))) -> 0 | G16: 0 | H16: =IF(INTRO!$E$39="Non-endemic",IF(INTRO!$E$37="Non-endemic","Not required",COUNTRY_INFO!V16),"Treat with IVM") -> Treat with IVM | I16: 0 | J16: 0 | L16: 0
A17: =IF(INTRO!$E$39<>"Non-endemic", " ", IF(INTRO!$E$37="Non-endemic"," ", IF(COUNTRY_INFO!A17=0," ",COUNTRY_INFO!A17))) ->  | B17: =IF(INTRO!$E$39<>"Non-endemic", " ", IF(INTRO!$E$37="Non-endemic"," ", IF(COUNTRY_INFO!B17=0," ",COUNTRY_INFO!B17))) ->  | C17: =IF(INTRO!$E$39<>"Non-endemic", " ", IF(INTRO!$E$37="Non-endemic"," ", IF(COUNTRY_INFO!C17=0," ",COUNTRY_INFO!C17))) ->  | D17: =IF(INTRO!$E$39<>"Non-endemic", 0, IF(INTRO!$E$37="Non-endemic",0,IF(COUNTRY_INFO!$H17=1,COUNTRY_INFO!E17,0))) -> 0 | E17: =IF(INTRO!$E$39<>"Non-endemic", 0, IF(INTRO!$E$37="Non-endemic",0,IF(COUNTRY_INFO!$H17=1,COUNTRY_INFO!F17,0))) -> 0 | F17: =IF(INTRO!$E$39<>"Non-endemic", 0, IF(INTRO!$E$37="Non-endemic",0,IF(COUNTRY_INFO!$H17=1,COUNTRY_INFO!G17,0))) -> 0 | G17: 0 | H17: =IF(INTRO!$E$39="Non-endemic",IF(INTRO!$E$37="Non-endemic","Not required",COUNTRY_INFO!V17),"Treat with IVM") -> Treat with IVM | I17: 0 | J17: 0 | L17: 0
A18: =IF(INTRO!$E$39<>"Non-endemic", " ", IF(INTRO!$E$37="Non-endemic"," ", IF(COUNTRY_INFO!A18=0," ",COUNTRY_INFO!A18))) ->  | B18: =IF(INTRO!$E$39<>"Non-endemic", " ", IF(INTRO!$E$37="Non-endemic"," ", IF(COUNTRY_INFO!B18=0," ",COUNTRY_INFO!B18))) ->  | C18: =IF(INTRO!$E$39<>"Non-endemic", " ", IF(INTRO!$E$37="Non-endemic"," ", IF(COUNTRY_INFO!C18=0," ",COUNTRY_INFO!C18))) ->  | D18: =IF(INTRO!$E$39<>"Non-endemic", 0, IF(INTRO!$E$37="Non-endemic",0,IF(COUNTRY_INFO!$H18=1,COUNTRY_INFO!E18,0))) -> 0 | E18: =IF(INTRO!$E$39<>"Non-endemic", 0, IF(INTRO!$E$37="Non-endemic",0,IF(COUNTRY_INFO!$H18=1,COUNTRY_INFO!F18,0))) -> 0 | F18: =IF(INTRO!$E$39<>"Non-endemic", 0, IF(INTRO!$E$37="Non-endemic",0,IF(COUNTRY_INFO!$H18=1,COUNTRY_INFO!G18,0))) -> 0 | G18: 0 | H18: =IF(INTRO!$E$39="Non-endemic",IF(INTRO!$E$37="Non-endemic","Not required",COUNTRY_INFO!V18),"Treat with IVM") -> Treat with IVM | I18: 0 | J18: 0 | L18: 0
A19: =IF(INTRO!$E$39<>"Non-endemic", " ", IF(INTRO!$E$37="Non-endemic"," ", IF(COUNTRY_INFO!A19=0," ",COUNTRY_INFO!A19))) ->  | B19: =IF(INTRO!$E$39<>"Non-endemic", " ", IF(INTRO!$E$37="Non-endemic"," ", IF(COUNTRY_INFO!B19=0," ",COUNTRY_INFO!B19))) ->  | C19: =IF(INTRO!$E$39<>"Non-endemic", " ", IF(INTRO!$E$37="Non-endemic"," ", IF(COUNTRY_INFO!C19=0," ",COUNTRY_INFO!C19))) ->  | D19: =IF(INTRO!$E$39<>"Non-endemic", 0, IF(INTRO!$E$37="Non-endemic",0,IF(COUNTRY_INFO!$H19=1,COUNTRY_INFO!E19,0))) -> 0 | E19: =IF(INTRO!$E$39<>"Non-endemic", 0, IF(INTRO!$E$37="Non-endemic",0,IF(COUNTRY_INFO!$H19=1,COUNTRY_INFO!F19,0))) -> 0 | F19: =IF(INTRO!$E$39<>"Non-endemic", 0, IF(INTRO!$E$37="Non-endemic",0,IF(COUNTRY_INFO!$H19=1,COUNTRY_INFO!G19,0))) -> 0 | G19: 0 | H19: =IF(INTRO!$E$39="Non-endemic",IF(INTRO!$E$37="Non-endemic","Not required",COUNTRY_INFO!V19),"Treat with IVM") -> Treat with IVM | I19: 0 | J19: 0 | L19: 0
A20: =IF(INTRO!$E$39<>"Non-endemic", " ", IF(INTRO!$E$37="Non-endemic"," ", IF(COUNTRY_INFO!A20=0," ",COUNTRY_INFO!A20))) ->  | B20: =IF(INTRO!$E$39<>"Non-endemic", " ", IF(INTRO!$E$37="Non-endemic"," ", IF(COUNTRY_INFO!B20=0," ",COUNTRY_INFO!B20))) ->  | C20: =IF(INTRO!$E$39<>"Non-endemic", " ", IF(INTRO!$E$37="Non-endemic"," ", IF(COUNTRY_INFO!C20=0," ",COUNTRY_INFO!C20))) ->  | D20: =IF(INTRO!$E$39<>"Non-endemic", 0, IF(INTRO!$E$37="Non-endemic",0,IF(COUNTRY_INFO!$H20=1,COUNTRY_INFO!E20,0))) -> 0 | E20: =IF(INTRO!$E$39<>"Non-endemic", 0, IF(INTRO!$E$37="Non-endemic",0,IF(COUNTRY_INFO!$H20=1,COUNTRY_INFO!F20,0))) -> 0 | F20: =IF(INTRO!$E$39<>"Non-endemic", 0, IF(INTRO!$E$37="Non-endemic",0,IF(COUNTRY_INFO!$H20=1,COUNTRY_INFO!G20,0))) -> 0 | G20: 0 | H20: =IF(INTRO!$E$39="Non-endemic",IF(INTRO!$E$37="Non-endemic","Not required",COUNTRY_INFO!V20),"Treat with IVM") -> Treat with IVM | I20: 0 | J20: 0 | L20: 0
A21: =IF(INTRO!$E$39<>"Non-endemic", " ", IF(INTRO!$E$37="Non-endemic"," ", IF(COUNTRY_INFO!A21=0," ",COUNTRY_INFO!A21))) ->  | B21: =IF(INTRO!$E$39<>"Non-endemic", " ", IF(INTRO!$E$37="Non-endemic"," ", IF(COUNTRY_INFO!B21=0," ",COUNTRY_INFO!B21))) ->  | C21: =IF(INTRO!$E$39<>"Non-endemic", " ", IF(INTRO!$E$37="Non-endemic"," ", IF(COUNTRY_INFO!C21=0," ",COUNTRY_INFO!C21))) ->  | D21: =IF(INTRO!$E$39<>"Non-endemic", 0, IF(INTRO!$E$37="Non-endemic",0,IF(COUNTRY_INFO!$H21=1,COUNTRY_INFO!E21,0))) -> 0 | E21: =IF(INTRO!$E$39<>"Non-endemic", 0, IF(INTRO!$E$37="Non-endemic",0,IF(COUNTRY_INFO!$H21=1,COUNTRY_INFO!F21,0))) -> 0 | F21: =IF(INTRO!$E$39<>"Non-endemic", 0, IF(INTRO!$E$37="Non-endemic",0,IF(COUNTRY_INFO!$H21=1,COUNTRY_INFO!G21,0))) -> 0 | G21: 0 | H21: =IF(INTRO!$E$39="Non-endemic",IF(INTRO!$E$37="Non-endemic","Not required",COUNTRY_INFO!V21),"Treat with IVM") -> Treat with IVM | I21: 0 | J21: 0 | L21: 0
A22: =IF(INTRO!$E$39<>"Non-endemic", " ", IF(INTRO!$E$37="Non-endemic"," ", IF(COUNTRY_INFO!A22=0," ",COUNTRY_INFO!A22))) ->  | B22: =IF(INTRO!$E$39<>"Non-endemic", " ", IF(INTRO!$E$37="Non-endemic"," ", IF(COUNTRY_INFO!B22=0," ",COUNTRY_INFO!B22))) ->  | C22: =IF(INTRO!$E$39<>"Non-endemic", " ", IF(INTRO!$E$37="Non-endemic"," ", IF(COUNTRY_INFO!C22=0," ",COUNTRY_INFO!C22))) ->  | D22: =IF(INTRO!$E$39<>"Non-endemic", 0, IF(INTRO!$E$37="Non-endemic",0,IF(COUNTRY_INFO!$H22=1,COUNTRY_INFO!E22,0))) -> 0 | E22: =IF(INTRO!$E$39<>"Non-endemic", 0, IF(INTRO!$E$37="Non-endemic",0,IF(COUNTRY_INFO!$H22=1,COUNTRY_INFO!F22,0))) -> 0 | F22: =IF(INTRO!$E$39<>"Non-endemic", 0, IF(INTRO!$E$37="Non-endemic",0,IF(COUNTRY_INFO!$H22=1,COUNTRY_INFO!G22,0))) -> 0 | G22: 0 | H22: =IF(INTRO!$E$39="Non-endemic",IF(INTRO!$E$37="Non-endemic","Not required",COUNTRY_INFO!V22),"Treat with IVM") -> Treat with IVM | I22: 0 | J22: 0 | L22: 0
A23: =IF(INTRO!$E$39<>"Non-endemic", " ", IF(INTRO!$E$37="Non-endemic"," ", IF(COUNTRY_INFO!A23=0," ",COUNTRY_INFO!A23))) ->  | B23: =IF(INTRO!$E$39<>"Non-endemic", " ", IF(INTRO!$E$37="Non-endemic"," ", IF(COUNTRY_INFO!B23=0," ",COUNTRY_INFO!B23))) ->  | C23: =IF(INTRO!$E$39<>"Non-endemic", " ", IF(INTRO!$E$37="Non-endemic"," ", IF(COUNTRY_INFO!C23=0," ",COUNTRY_INFO!C23))) ->  | D23: =IF(INTRO!$E$39<>"Non-endemic", 0, IF(INTRO!$E$37="Non-endemic",0,IF(COUNTRY_INFO!$H23=1,COUNTRY_INFO!E23,0))) -> 0 | E23: =IF(INTRO!$E$39<>"Non-endemic", 0, IF(INTRO!$E$37="Non-endemic",0,IF(COUNTRY_INFO!$H23=1,COUNTRY_INFO!F23,0))) -> 0 | F23: =IF(INTRO!$E$39<>"Non-endemic", 0, IF(INTRO!$E$37="Non-endemic",0,IF(COUNTRY_INFO!$H23=1,COUNTRY_INFO!G23,0))) -> 0 | G23: 0 | H23: =IF(INTRO!$E$39="Non-endemic",IF(INTRO!$E$37="Non-endemic","Not required",COUNTRY_INFO!V23),"Treat with IVM") -> Treat with IVM | I23: 0 | J23: 0 | L23: 0
A24: =IF(INTRO!$E$39<>"Non-endemic", " ", IF(INTRO!$E$37="Non-endemic"," ", IF(COUNTRY_INFO!A24=0," ",COUNTRY_INFO!A24))) ->  | B24: =IF(INTRO!$E$39<>"Non-endemic", " ", IF(INTRO!$E$37="Non-endemic"," ", IF(COUNTRY_INFO!B24=0," ",COUNTRY_INFO!B24))) ->  | C24: =IF(INTRO!$E$39<>"Non-endemic", " ", IF(INTRO!$E$37="Non-endemic"," ", IF(COUNTRY_INFO!C24=0," ",COUNTRY_INFO!C24))) ->  | D24: =IF(INTRO!$E$39<>"Non-endemic", 0, IF(INTRO!$E$37="Non-endemic",0,IF(COUNTRY_INFO!$H24=1,COUNTRY_INFO!E24,0))) -> 0 | E24: =IF(INTRO!$E$39<>"Non-endemic", 0, IF(INTRO!$E$37="Non-endemic",0,IF(COUNTRY_INFO!$H24=1,COUNTRY_INFO!F24,0))) -> 0 | F24: =IF(INTRO!$E$39<>"Non-endemic", 0, IF(INTRO!$E$37="Non-endemic",0,IF(COUNTRY_INFO!$H24=1,COUNTRY_INFO!G24,0))) -> 0 | G24: 0 | H24: =IF(INTRO!$E$39="Non-endemic",IF(INTRO!$E$37="Non-endemic","Not required",COUNTRY_INFO!V24),"Treat with IVM") -> Treat with IVM | I24: 0 | J24: 0 | L24: 0
A25: =IF(INTRO!$E$39<>"Non-endemic", " ", IF(INTRO!$E$37="Non-endemic"," ", IF(COUNTRY_INFO!A25=0," ",COUNTRY_INFO!A25))) ->  | B25: =IF(INTRO!$E$39<>"Non-endemic", " ", IF(INTRO!$E$37="Non-endemic"," ", IF(COUNTRY_INFO!B25=0," ",COUNTRY_INFO!B25))) ->  | C25: =IF(INTRO!$E$39<>"Non-endemic", " ", IF(INTRO!$E$37="Non-endemic"," ", IF(COUNTRY_INFO!C25=0," ",COUNTRY_INFO!C25))) ->  | D25: =IF(INTRO!$E$39<>"Non-endemic", 0, IF(INTRO!$E$37="Non-endemic",0,IF(COUNTRY_INFO!$H25=1,COUNTRY_INFO!E25,0))) -> 0 | E25: =IF(INTRO!$E$39<>"Non-endemic", 0, IF(INTRO!$E$37="Non-endemic",0,IF(COUNTRY_INFO!$H25=1,COUNTRY_INFO!F25,0))) -> 0 | F25: =IF(INTRO!$E$39<>"Non-endemic", 0, IF(INTRO!$E$37="Non-endemic",0,IF(COUNTRY_INFO!$H25=1,COUNTRY_INFO!G25,0))) -> 0 | G25: 0 | H25: =IF(INTRO!$E$39="Non-endemic",IF(INTRO!$E$37="Non-endemic","Not required",COUNTRY_INFO!V25),"Treat with IVM") -> Treat with IVM | I25: 0 | J25: 0 | L25: 0
A26: =IF(INTRO!$E$39<>"Non-endemic", " ", IF(INTRO!$E$37="Non-endemic"," ", IF(COUNTRY_INFO!A26=0," ",COUNTRY_INFO!A26))) ->  | B26: =IF(INTRO!$E$39<>"Non-endemic", " ", IF(INTRO!$E$37="Non-endemic"," ", IF(COUNTRY_INFO!B26=0," ",COUNTRY_INFO!B26))) ->  | C26: =IF(INTRO!$E$39<>"Non-endemic", " ", IF(INTRO!$E$37="Non-endemic"," ", IF(COUNTRY_INFO!C26=0," ",COUNTRY_INFO!C26))) ->  | D26: =IF(INTRO!$E$39<>"Non-endemic", 0, IF(INTRO!$E$37="Non-endemic",0,IF(COUNTRY_INFO!$H26=1,COUNTRY_INFO!E26,0))) -> 0 | E26: =IF(INTRO!$E$39<>"Non-endemic", 0, IF(INTRO!$E$37="Non-endemic",0,IF(COUNTRY_INFO!$H26=1,COUNTRY_INFO!F26,0))) -> 0 | F26: =IF(INTRO!$E$39<>"Non-endemic", 0, IF(INTRO!$E$37="Non-endemic",0,IF(COUNTRY_INFO!$H26=1,COUNTRY_INFO!G26,0))) -> 0 | G26: 0 | H26: =IF(INTRO!$E$39="Non-endemic",IF(INTRO!$E$37="Non-endemic","Not required",COUNTRY_INFO!V26),"Treat with IVM") -> Treat with IVM | I26: 0 | J26: 0 | L26: 0
A27: =IF(INTRO!$E$39<>"Non-endemic", " ", IF(INTRO!$E$37="Non-endemic"," ", IF(COUNTRY_INFO!A27=0," ",COUNTRY_INFO!A27))) ->  | B27: =IF(INTRO!$E$39<>"Non-endemic", " ", IF(INTRO!$E$37="Non-endemic"," ", IF(COUNTRY_INFO!B27=0," ",COUNTRY_INFO!B27))) ->  | C27: =IF(INTRO!$E$39<>"Non-endemic", " ", IF(INTRO!$E$37="Non-endemic"," ", IF(COUNTRY_INFO!C27=0," ",COUNTRY_INFO!C27))) ->  | D27: =IF(INTRO!$E$39<>"Non-endemic", 0, IF(INTRO!$E$37="Non-endemic",0,IF(COUNTRY_INFO!$H27=1,COUNTRY_INFO!E27,0))) -> 0 | E27: =IF(INTRO!$E$39<>"Non-endemic", 0, IF(INTRO!$E$37="Non-endemic",0,IF(COUNTRY_INFO!$H27=1,COUNTRY_INFO!F27,0))) -> 0 | F27: =IF(INTRO!$E$39<>"Non-endemic", 0, IF(INTRO!$E$37="Non-endemic",0,IF(COUNTRY_INFO!$H27=1,COUNTRY_INFO!G27,0))) -> 0 | G27: 0 | H27: =IF(INTRO!$E$39="Non-endemic",IF(INTRO!$E$37="Non-endemic","Not required",COUNTRY_INFO!V27),"Treat with IVM") -> Treat with IVM | I27: 0 | J27: 0 | L27: 0
A28: =IF(INTRO!$E$39<>"Non-endemic", " ", IF(INTRO!$E$37="Non-endemic"," ", IF(COUNTRY_INFO!A28=0," ",COUNTRY_INFO!A28))) ->  | B28: =IF(INTRO!$E$39<>"Non-endemic", " ", IF(INTRO!$E$37="Non-endemic"," ", IF(COUNTRY_INFO!B28=0," ",COUNTRY_INFO!B28))) ->  | C28: =IF(INTRO!$E$39<>"Non-endemic", " ", IF(INTRO!$E$37="Non-endemic"," ", IF(COUNTRY_INFO!C28=0," ",COUNTRY_INFO!C28))) ->  | D28: =IF(INTRO!$E$39<>"Non-endemic", 0, IF(INTRO!$E$37="Non-endemic",0,IF(COUNTRY_INFO!$H28=1,COUNTRY_INFO!E28,0))) -> 0 | E28: =IF(INTRO!$E$39<>"Non-endemic", 0, IF(INTRO!$E$37="Non-endemic",0,IF(COUNTRY_INFO!$H28=1,COUNTRY_INFO!F28,0))) -> 0 | F28: =IF(INTRO!$E$39<>"Non-endemic", 0, IF(INTRO!$E$37="Non-endemic",0,IF(COUNTRY_INFO!$H28=1,COUNTRY_INFO!G28,0))) -> 0 | G28: 0 | H28: =IF(INTRO!$E$39="Non-endemic",IF(INTRO!$E$37="Non-endemic","Not required",COUNTRY_INFO!V28),"Treat with IVM") -> Treat with IVM | I28: 0 | J28: 0 | L28: 0
A29: =IF(INTRO!$E$39<>"Non-endemic", " ", IF(INTRO!$E$37="Non-endemic"," ", IF(COUNTRY_INFO!A29=0," ",COUNTRY_INFO!A29))) ->  | B29: =IF(INTRO!$E$39<>"Non-endemic", " ", IF(INTRO!$E$37="Non-endemic"," ", IF(COUNTRY_INFO!B29=0," ",COUNTRY_INFO!B29))) ->  | C29: =IF(INTRO!$E$39<>"Non-endemic", " ", IF(INTRO!$E$37="Non-endemic"," ", IF(COUNTRY_INFO!C29=0," ",COUNTRY_INFO!C29))) ->  | D29: =IF(INTRO!$E$39<>"Non-endemic", 0, IF(INTRO!$E$37="Non-endemic",0,IF(COUNTRY_INFO!$H29=1,COUNTRY_INFO!E29,0))) -> 0 | E29: =IF(INTRO!$E$39<>"Non-endemic", 0, IF(INTRO!$E$37="Non-endemic",0,IF(COUNTRY_INFO!$H29=1,COUNTRY_INFO!F29,0))) -> 0 | F29: =IF(INTRO!$E$39<>"Non-endemic", 0, IF(INTRO!$E$37="Non-endemic",0,IF(COUNTRY_INFO!$H29=1,COUNTRY_INFO!G29,0))) -> 0 | G29: 0 | H29: =IF(INTRO!$E$39="Non-endemic",IF(INTRO!$E$37="Non-endemic","Not required",COUNTRY_INFO!V29),"Treat with IVM") -> Treat with IVM | I29: 0 | J29: 0 | L29: 0
A30: =IF(INTRO!$E$39<>"Non-endemic", " ", IF(INTRO!$E$37="Non-endemic"," ", IF(COUNTRY_INFO!A30=0," ",COUNTRY_INFO!A30))) ->  | B30: =IF(INTRO!$E$39<>"Non-endemic", " ", IF(INTRO!$E$37="Non-endemic"," ", IF(COUNTRY_INFO!B30=0," ",COUNTRY_INFO!B30))) ->  | C30: =IF(INTRO!$E$39<>"Non-endemic", " ", IF(INTRO!$E$37="Non-endemic"," ", IF(COUNTRY_INFO!C30=0," ",COUNTRY_INFO!C30))) ->  | D30: =IF(INTRO!$E$39<>"Non-endemic", 0, IF(INTRO!$E$37="Non-endemic",0,IF(COUNTRY_INFO!$H30=1,COUNTRY_INFO!E30,0))) -> 0 | E30: =IF(INTRO!$E$39<>"Non-endemic", 0, IF(INTRO!$E$37="Non-endemic",0,IF(COUNTRY_INFO!$H30=1,COUNTRY_INFO!F30,0))) -> 0 | F30: =IF(INTRO!$E$39<>"Non-endemic", 0, IF(INTRO!$E$37="Non-endemic",0,IF(COUNTRY_INFO!$H30=1,COUNTRY_INFO!G30,0))) -> 0 | G30: 0 | H30: =IF(INTRO!$E$39="Non-endemic",IF(INTRO!$E$37="Non-endemic","Not required",COUNTRY_INFO!V30),"Treat with IVM") -> Treat with IVM | I30: 0 | J30: 0 | L30: 0
A31: =IF(INTRO!$E$39<>"Non-endemic", " ", IF(INTRO!$E$37="Non-endemic"," ", IF(COUNTRY_INFO!A31=0," ",COUNTRY_INFO!A31))) ->  | B31: =IF(INTRO!$E$39<>"Non-endemic", " ", IF(INTRO!$E$37="Non-endemic"," ", IF(COUNTRY_INFO!B31=0," ",COUNTRY_INFO!B31))) ->  | C31: =IF(INTRO!$E$39<>"Non-endemic", " ", IF(INTRO!$E$37="Non-endemic"," ", IF(COUNTRY_INFO!C31=0," ",COUNTRY_INFO!C31))) ->  | D31: =IF(INTRO!$E$39<>"Non-endemic", 0, IF(INTRO!$E$37="Non-endemic",0,IF(COUNTRY_INFO!$H31=1,COUNTRY_INFO!E31,0))) -> 0 | E31: =IF(INTRO!$E$39<>"Non-endemic", 0, IF(INTRO!$E$37="Non-endemic",0,IF(COUNTRY_INFO!$H31=1,COUNTRY_INFO!F31,0))) -> 0 | F31: =IF(INTRO!$E$39<>"Non-endemic", 0, IF(INTRO!$E$37="Non-endemic",0,IF(COUNTRY_INFO!$H31=1,COUNTRY_INFO!G31,0))) -> 0 | G31: 0 | H31: =IF(INTRO!$E$39="Non-endemic",IF(INTRO!$E$37="Non-endemic","Not required",COUNTRY_INFO!V31),"Treat with IVM") -> Treat with IVM | I31: 0 | J31: 0 | L31: 0
A32: =IF(INTRO!$E$39<>"Non-endemic", " ", IF(INTRO!$E$37="Non-endemic"," ", IF(COUNTRY_INFO!A32=0," ",COUNTRY_INFO!A32))) ->  | B32: =IF(INTRO!$E$39<>"Non-endemic", " ", IF(INTRO!$E$37="Non-endemic"," ", IF(COUNTRY_INFO!B32=0," ",COUNTRY_INFO!B32))) ->  | C32: =IF(INTRO!$E$39<>"Non-endemic", " ", IF(INTRO!$E$37="Non-endemic"," ", IF(COUNTRY_INFO!C32=0," ",COUNTRY_INFO!C32))) ->  | D32: =IF(INTRO!$E$39<>"Non-endemic", 0, IF(INTRO!$E$37="Non-endemic",0,IF(COUNTRY_INFO!$H32=1,COUNTRY_INFO!E32,0))) -> 0 | E32: =IF(INTRO!$E$39<>"Non-endemic", 0, IF(INTRO!$E$37="Non-endemic",0,IF(COUNTRY_INFO!$H32=1,COUNTRY_INFO!F32,0))) -> 0 | F32: =IF(INTRO!$E$39<>"Non-endemic", 0, IF(INTRO!$E$37="Non-endemic",0,IF(COUNTRY_INFO!$H32=1,COUNTRY_INFO!G32,0))) -> 0 | G32: 0 | H32: =IF(INTRO!$E$39="Non-endemic",IF(INTRO!$E$37="Non-endemic","Not required",COUNTRY_INFO!V32),"Treat with IVM") -> Treat with IVM | I32: 0 | J32: 0 | L32: 0
A33: =IF(INTRO!$E$39<>"Non-endemic", " ", IF(INTRO!$E$37="Non-endemic"," ", IF(COUNTRY_INFO!A33=0," ",COUNTRY_INFO!A33))) ->  | B33: =IF(INTRO!$E$39<>"Non-endemic", " ", IF(INTRO!$E$37="Non-endemic"," ", IF(COUNTRY_INFO!B33=0," ",COUNTRY_INFO!B33))) ->  | C33: =IF(INTRO!$E$39<>"Non-endemic", " ", IF(INTRO!$E$37="Non-endemic"," ", IF(COUNTRY_INFO!C33=0," ",COUNTRY_INFO!C33))) ->  | D33: =IF(INTRO!$E$39<>"Non-endemic", 0, IF(INTRO!$E$37="Non-endemic",0,IF(COUNTRY_INFO!$H33=1,COUNTRY_INFO!E33,0))) -> 0 | E33: =IF(INTRO!$E$39<>"Non-endemic", 0, IF(INTRO!$E$37="Non-endemic",0,IF(COUNTRY_INFO!$H33=1,COUNTRY_INFO!F33,0))) -> 0 | F33: =IF(INTRO!$E$39<>"Non-endemic", 0, IF(INTRO!$E$37="Non-endemic",0,IF(COUNTRY_INFO!$H33=1,COUNTRY_INFO!G33,0))) -> 0 | G33: 0 | H33: =IF(INTRO!$E$39="Non-endemic",IF(INTRO!$E$37="Non-endemic","Not required",COUNTRY_INFO!V33),"Treat with IVM") -> Treat with IVM | I33: 0 | J33: 0 | L33: 0
A34: =IF(INTRO!$E$39<>"Non-endemic", " ", IF(INTRO!$E$37="Non-endemic"," ", IF(COUNTRY_INFO!A34=0," ",COUNTRY_INFO!A34))) ->  | B34: =IF(INTRO!$E$39<>"Non-endemic", " ", IF(INTRO!$E$37="Non-endemic"," ", IF(COUNTRY_INFO!B34=0," ",COUNTRY_INFO!B34))) ->  | C34: =IF(INTRO!$E$39<>"Non-endemic", " ", IF(INTRO!$E$37="Non-endemic"," ", IF(COUNTRY_INFO!C34=0," ",COUNTRY_INFO!C34))) ->  | D34: =IF(INTRO!$E$39<>"Non-endemic", 0, IF(INTRO!$E$37="Non-endemic",0,IF(COUNTRY_INFO!$H34=1,COUNTRY_INFO!E34,0))) -> 0 | E34: =IF(INTRO!$E$39<>"Non-endemic", 0, IF(INTRO!$E$37="Non-endemic",0,IF(COUNTRY_INFO!$H34=1,COUNTRY_INFO!F34,0))) -> 0 | F34: =IF(INTRO!$E$39<>"Non-endemic", 0, IF(INTRO!$E$37="Non-endemic",0,IF(COUNTRY_INFO!$H34=1,COUNTRY_INFO!G34,0))) -> 0 | G34: 0 | H34: =IF(INTRO!$E$39="Non-endemic",IF(INTRO!$E$37="Non-endemic","Not required",COUNTRY_INFO!V34),"Treat with IVM") -> Treat with IVM | I34: 0 | J34: 0 | L34: 0
A35: =IF(INTRO!$E$39<>"Non-endemic", " ", IF(INTRO!$E$37="Non-endemic"," ", IF(COUNTRY_INFO!A35=0," ",COUNTRY_INFO!A35))) ->  | B35: =IF(INTRO!$E$39<>"Non-endemic", " ", IF(INTRO!$E$37="Non-endemic"," ", IF(COUNTRY_INFO!B35=0," ",COUNTRY_INFO!B35))) ->  | C35: =IF(INTRO!$E$39<>"Non-endemic", " ", IF(INTRO!$E$37="Non-endemic"," ", IF(COUNTRY_INFO!C35=0," ",COUNTRY_INFO!C35))) ->  | D35: =IF(INTRO!$E$39<>"Non-endemic", 0, IF(INTRO!$E$37="Non-endemic",0,IF(COUNTRY_INFO!$H35=1,COUNTRY_INFO!E35,0))) -> 0 | E35: =IF(INTRO!$E$39<>"Non-endemic", 0, IF(INTRO!$E$37="Non-endemic",0,IF(COUNTRY_INFO!$H35=1,COUNTRY_INFO!F35,0))) -> 0 | F35: =IF(INTRO!$E$39<>"Non-endemic", 0, IF(INTRO!$E$37="Non-endemic",0,IF(COUNTRY_INFO!$H35=1,COUNTRY_INFO!G35,0))) -> 0 | G35: 0 | H35: =IF(INTRO!$E$39="Non-endemic",IF(INTRO!$E$37="Non-endemic","Not required",COUNTRY_INFO!V35),"Treat with IVM") -> Treat with IVM | I35: 0 | J35: 0 | L35: 0
A36: =IF(INTRO!$E$39<>"Non-endemic", " ", IF(INTRO!$E$37="Non-endemic"," ", IF(COUNTRY_INFO!A36=0," ",COUNTRY_INFO!A36))) ->  | B36: =IF(INTRO!$E$39<>"Non-endemic", " ", IF(INTRO!$E$37="Non-endemic"," ", IF(COUNTRY_INFO!B36=0," ",COUNTRY_INFO!B36))) ->  | C36: =IF(INTRO!$E$39<>"Non-endemic", " ", IF(INTRO!$E$37="Non-endemic"," ", IF(COUNTRY_INFO!C36=0," ",COUNTRY_INFO!C36))) ->  | D36: =IF(INTRO!$E$39<>"Non-endemic", 0, IF(INTRO!$E$37="Non-endemic",0,IF(COUNTRY_INFO!$H36=1,COUNTRY_INFO!E36,0))) -> 0 | E36: =IF(INTRO!$E$39<>"Non-endemic", 0, IF(INTRO!$E$37="Non-endemic",0,IF(COUNTRY_INFO!$H36=1,COUNTRY_INFO!F36,0))) -> 0 | F36: =IF(INTRO!$E$39<>"Non-endemic", 0, IF(INTRO!$E$37="Non-endemic",0,IF(COUNTRY_INFO!$H36=1,COUNTRY_INFO!G36,0))) -> 0 | G36: 0 | H36: =IF(INTRO!$E$39="Non-endemic",IF(INTRO!$E$37="Non-endemic","Not required",COUNTRY_INFO!V36),"Treat with IVM") -> Treat with IVM | I36: 0 | J36: 0 | L36: 0
A37: =IF(INTRO!$E$39<>"Non-endemic", " ", IF(INTRO!$E$37="Non-endemic"," ", IF(COUNTRY_INFO!A37=0," ",COUNTRY_INFO!A37))) ->  | B37: =IF(INTRO!$E$39<>"Non-endemic", " ", IF(INTRO!$E$37="Non-endemic"," ", IF(COUNTRY_INFO!B37=0," ",COUNTRY_INFO!B37))) ->  | C37: =IF(INTRO!$E$39<>"Non-endemic", " ", IF(INTRO!$E$37="Non-endemic"," ", IF(COUNTRY_INFO!C37=0," ",COUNTRY_INFO!C37))) ->  | D37: =IF(INTRO!$E$39<>"Non-endemic", 0, IF(INTRO!$E$37="Non-endemic",0,IF(COUNTRY_INFO!$H37=1,COUNTRY_INFO!E37,0))) -> 0 | E37: =IF(INTRO!$E$39<>"Non-endemic", 0, IF(INTRO!$E$37="Non-endemic",0,IF(COUNTRY_INFO!$H37=1,COUNTRY_INFO!F37,0))) -> 0 | F37: =IF(INTRO!$E$39<>"Non-endemic", 0, IF(INTRO!$E$37="Non-endemic",0,IF(COUNTRY_INFO!$H37=1,COUNTRY_INFO!G37,0))) -> 0 | G37: 0 | H37: =IF(INTRO!$E$39="Non-endemic",IF(INTRO!$E$37="Non-endemic","Not required",COUNTRY_INFO!V37),"Treat with IVM") -> Treat with IVM | I37: 0 | J37: 0 | L37: 0
A38: =IF(INTRO!$E$39<>"Non-endemic", " ", IF(INTRO!$E$37="Non-endemic"," ", IF(COUNTRY_INFO!A38=0," ",COUNTRY_INFO!A38))) ->  | B38: =IF(INTRO!$E$39<>"Non-endemic", " ", IF(INTRO!$E$37="Non-endemic"," ", IF(COUNTRY_INFO!B38=0," ",COUNTRY_INFO!B38))) ->  | C38: =IF(INTRO!$E$39<>"Non-endemic", " ", IF(INTRO!$E$37="Non-endemic"," ", IF(COUNTRY_INFO!C38=0," ",COUNTRY_INFO!C38))) ->  | D38: =IF(INTRO!$E$39<>"Non-endemic", 0, IF(INTRO!$E$37="Non-endemic",0,IF(COUNTRY_INFO!$H38=1,COUNTRY_INFO!E38,0))) -> 0 | E38: =IF(INTRO!$E$39<>"Non-endemic", 0, IF(INTRO!$E$37="Non-endemic",0,IF(COUNTRY_INFO!$H38=1,COUNTRY_INFO!F38,0))) -> 0 | F38: =IF(INTRO!$E$39<>"Non-endemic", 0, IF(INTRO!$E$37="Non-endemic",0,IF(COUNTRY_INFO!$H38=1,COUNTRY_INFO!G38,0))) -> 0 | G38: 0 | H38: =IF(INTRO!$E$39="Non-endemic",IF(INTRO!$E$37="Non-endemic","Not required",COUNTRY_INFO!V38),"Treat with IVM") -> Treat with IVM | I38: 0 | J38: 0 | L38: 0

Sheet ALB_MBD
A1: Albendazole (ALB) and Mebendazole (MBD) | G1: Select medicine for treatment of STH for each age group
A2: Administrative structure, eligible population by age group, treatment plan and information about tablets | G2: ALB | I2: ALB | J2: ALB
A4: TOTAL | F4: =SUBTOTAL(9,F$10:F$1010) -> 0 | H4: =SUBTOTAL(9,H$10:H$1010) -> 0 | I4: 2459358 | K4: 0 | L4: 2459358 | M4: 0 | N4: 0 | O4: 0 | P4: 2459358 | Q4: 0 | R4: 2459358 | S4: 0 | T4: 0 | U4: 0
A6: Country administrative structure | D6: Treatment plan | F6: People targeted by PELF with ALB | G6: Target population for STH | M6: Albendazole (ALB) | S6: Mebendazole (MBD)
A7: Country | B7: Province/State | C7: District | D7: LF | E7: STH | G7: PreSAC | I7: SAC | J7: WRA | L7: Total | M7: Total required | N7: Remaining in stock (LF) | O7: Tablets to be procured (LF) | P7: Total required | Q7: Remaining in stock (STH) | R7: Tablets to be procured (STH) | S7: Total required | T7: Remaining in stock | U7: Tablets to be procured
G8: Rounds | H8: People | I8: People | J8: Rounds | K8: People
A10: =IF(AND(INTRO!$E$37="Non-endemic",INTRO!$E$41="Non-endemic")," ",IF(COUNTRY_INFO!A10=0," ",COUNTRY_INFO!A10)) -> MALAWI | B10: =IF(AND(INTRO!$E$37="Non-endemic",INTRO!$E$41="Non-endemic")," ",IF(COUNTRY_INFO!B10=0," ",COUNTRY_INFO!B10)) -> North | C10: =IF(AND(INTRO!$E$37="Non-endemic",INTRO!$E$41="Non-endemic")," ",IF(COUNTRY_INFO!C10=0," ",COUNTRY_INFO!C10)) -> Chitipa | D10: =IF(AND(INTRO!$E$37="Non-endemic",INTRO!$E$41="Non-endemic"),0,COUNTRY_INFO!V10) -> 0 | E10: =IF(AND(INTRO!$E$37="Non-endemic",INTRO!$E$41="Non-endemic"),0,COUNTRY_INFO!X10) -> 0 | F10: =IF(INTRO!$E$39="Non-endemic",IF($D10=1,DEC!I10,0),IF($D10=1,IVM!G10,0)) -> 0 | G10: 1 | H10: =IF(OR(COUNTRY_INFO!N10="Unknown",COUNTRY_INFO!N10="Surveillance",COUNTRY_INFO!N10="Not required",COUNTRY_INFO!N10=0),0,IF(INTRO!$E$39="Non-endemic",IF(AND($E10<>0,$G10=""),IF($F10=0,COUNTRY_INFO!N10*$E10,COUNTRY_INFO!N10*($E10-$D10)),IF(AND($E10<>0,$G10<>0),IF($F10=0,COUNTRY_INFO!N10*$G10,COUNTRY_INFO!N10*($G10-$D10)),0)),IF($G10="",COUNTRY_INFO!N10*$E10,COUNTRY_INFO!N10*$G10))) -> 0 | I10: =IF(OR(COUNTRY_INFO!O10="Unknown",COUNTRY_INFO!O10="Surveillance",COUNTRY_INFO!O10="Not required",COUNTRY_INFO!O10=0),0,IF($E10<>0, IF($F10=0,COUNTRY_INFO!O10*$E10,COUNTRY_INFO!O10*($E10-$D10)),COUNTRY_INFO!O10*$E10)) -> 0 | J10: 1 | K10: =IF(OR(COUNTRY_INFO!P10="Unknown",COUNTRY_INFO!P10="Surveillance",COUNTRY_INFO!P10="Not required",COUNTRY_INFO!P10=0),0,IF(AND($E10<>0,$J10=""),IF($F10=0,COUNTRY_INFO!P10*$E10,COUNTRY_INFO!P10*($E10-$D10)), IF(AND($E10<>0,$J10<>0),IF($F10=0,COUNTRY_INFO!P10*$J10,COUNTRY_INFO!P10*($J10-$D10)), COUNTRY_INFO!P10*$J10))) -> 0 | L10: =ROUND($H10,0)+ROUND($I10,0)+ROUND($K10,0) -> 0 | M10: =$F10 -> 0 | O10: =IF($M10>$N10, $M10-$N10,0) -> 0 | P10: =ROUND((IF($G$2="ALB",$H10,0)+IF($I$2="ALB",$I10,0)+IF($J$2="ALB",$K10,0)),0) -> 0 | R10: =IF($P10>$Q10,$P10-$Q10,0) -> 0 | S10: =ROUND((IF($G$2="MBD",$H10,0)+IF($I$2="MBD",$I10,0)+IF($J$2="MBD",$K10,0)),0) -> 0 | U10: =IF($S10>$T10,$S10-$T10,0) -> 0
A11: =IF(AND(INTRO!$E$37="Non-endemic",INTRO!$E$41="Non-endemic")," ",IF(COUNTRY_INFO!A11=0," ",COUNTRY_INFO!A11)) -> MALAWI | B11: =IF(AND(INTRO!$E$37="Non-endemic",INTRO!$E$41="Non-endemic")," ",IF(COUNTRY_INFO!B11=0," ",COUNTRY_INFO!B11)) -> North | C11: =IF(AND(INTRO!$E$37="Non-endemic",INTRO!$E$41="Non-endemic")," ",IF(COUNTRY_INFO!C11=0," ",COUNTRY_INFO!C11)) -> Karonga | D11: =IF(AND(INTRO!$E$37="Non-endemic",INTRO!$E$41="Non-endemic"),0,COUNTRY_INFO!V11) -> 0 | E11: =IF(AND(INTRO!$E$37="Non-endemic",INTRO!$E$41="Non-endemic"),0,COUNTRY_INFO!X11) -> 0 | F11: =IF(INTRO!$E$39="Non-endemic",IF($D11=1,DEC!I11,0),IF($D11=1,IVM!G11,0)) -> 0 | G11: 1 | H11: =IF(OR(COUNTRY_INFO!N11="Unknown",COUNTRY_INFO!N11="Surveillance",COUNTRY_INFO!N11="Not required",COUNTRY_INFO!N11=0),0,IF(INTRO!$E$39="Non-endemic",IF(AND($E11<>0,$G11=""),IF($F11=0,COUNTRY_INFO!N11*$E11,COUNTRY_INFO!N11*($E11-$D11)),IF(AND($E11<>0,$G11<>0),IF($F11=0,COUNTRY_INFO!N11*$G11,COUNTRY_INFO!N11*($G11-$D11)),0)),IF($G11="",COUNTRY_INFO!N11*$E11,COUNTRY_INFO!N11*$G11))) -> 0 | I11: =IF(OR(COUNTRY_INFO!O11="Unknown",COUNTRY_INFO!O11="Surveillance",COUNTRY_INFO!O11="Not required",COUNTRY_INFO!O11=0),0,IF($E11<>0, IF($F11=0,COUNTRY_INFO!O11*$E11,COUNTRY_INFO!O11*($E11-$D11)),COUNTRY_INFO!O11*$E11)) -> 0 | J11: 1 | K11: =IF(OR(COUNTRY_INFO!P11="Unknown",COUNTRY_INFO!P11="Surveillance",COUNTRY_INFO!P11="Not required",COUNTRY_INFO!P11=0),0,IF(AND($E11<>0,$J11=""),IF($F11=0,COUNTRY_INFO!P11*$E11,COUNTRY_INFO!P11*($E11-$D11)), IF(AND($E11<>0,$J11<>0),IF($F11=0,COUNTRY_INFO!P11*$J11,COUNTRY_INFO!P11*($J11-$D11)), COUNTRY_INFO!P11*$J11))) -> 0 | L11: 0 | M11: 0 | O11: 0 | P11: 0 | R11: 0 | S11: 0 | U11: 0
A12: =IF(AND(INTRO!$E$37="Non-endemic",INTRO!$E$41="Non-endemic")," ",IF(COUNTRY_INFO!A12=0," ",COUNTRY_INFO!A12)) -> MALAWI | B12: =IF(AND(INTRO!$E$37="Non-endemic",INTRO!$E$41="Non-endemic")," ",IF(COUNTRY_INFO!B12=0," ",COUNTRY_INFO!B12)) -> North | C12: =IF(AND(INTRO!$E$37="Non-endemic",INTRO!$E$41="Non-endemic")," ",IF(COUNTRY_INFO!C12=0," ",COUNTRY_INFO!C12)) -> Rumphi | D12: =IF(AND(INTRO!$E$37="Non-endemic",INTRO!$E$41="Non-endemic"),0,COUNTRY_INFO!V12) -> 0 | E12: =IF(AND(INTRO!$E$37="Non-endemic",INTRO!$E$41="Non-endemic"),0,COUNTRY_INFO!X12) -> 0 | F12: =IF(INTRO!$E$39="Non-endemic",IF($D12=1,DEC!I12,0),IF($D12=1,IVM!G12,0)) -> 0 | G12: 1 | H12: =IF(OR(COUNTRY_INFO!N12="Unknown",COUNTRY_INFO!N12="Surveillance",COUNTRY_INFO!N12="Not required",COUNTRY_INFO!N12=0),0,IF(INTRO!$E$39="Non-endemic",IF(AND($E12<>0,$G12=""),IF($F12=0,COUNTRY_INFO!N12*$E12,COUNTRY_INFO!N12*($E12-$D12)),IF(AND($E12<>0,$G12<>0),IF($F12=0,COUNTRY_INFO!N12*$G12,COUNTRY_INFO!N12*($G12-$D12)),0)),IF($G12="",COUNTRY_INFO!N12*$E12,COUNTRY_INFO!N12*$G12))) -> 0 | I12: =IF(OR(COUNTRY_INFO!O12="Unknown",COUNTRY_INFO!O12="Surveillance",COUNTRY_INFO!O12="Not required",COUNTRY_INFO!O12=0),0,IF($E12<>0, IF($F12=0,COUNTRY_INFO!O12*$E12,COUNTRY_INFO!O12*($E12-$D12)),COUNTRY_INFO!O12*$E12)) -> 0 | J12: 1 | K12: =IF(OR(COUNTRY_INFO!P12="Unknown",COUNTRY_INFO!P12="Surveillance",COUNTRY_INFO!P12="Not required",COUNTRY_INFO!P12=0),0,IF(AND($E12<>0,$J12=""),IF($F12=0,COUNTRY_INFO!P12*$E12,COUNTRY_INFO!P12*($E12-$D12)), IF(AND($E12<>0,$J12<>0),IF($F12=0,COUNTRY_INFO!P12*$J12,COUNTRY_INFO!P12*($J12-$D12)), COUNTRY_INFO!P12*$J12))) -> 0 | L12: 0 | M12: 0 | O12: 0 | P12: 0 | R12: 0 | S12: 0 | U12: 0
A13: =IF(AND(INTRO!$E$37="Non-endemic",INTRO!$E$41="Non-endemic")," ",IF(COUNTRY_INFO!A13=0," ",COUNTRY_INFO!A13)) -> MALAWI | B13: =IF(AND(INTRO!$E$37="Non-endemic",INTRO!$E$41="Non-endemic")," ",IF(COUNTRY_INFO!B13=0," ",COUNTRY_INFO!B13)) -> North | C13: =IF(AND(INTRO!$E$37="Non-endemic",INTRO!$E$41="Non-endemic")," ",IF(COUNTRY_INFO!C13=0," ",COUNTRY_INFO!C13)) -> Mzimba North | D13: =IF(AND(INTRO!$E$37="Non-endemic",INTRO!$E$41="Non-endemic"),0,COUNTRY_INFO!V13) -> 0 | E13: =IF(AND(INTRO!$E$37="Non-endemic",INTRO!$E$41="Non-endemic"),0,COUNTRY_INFO!X13) -> 1 | F13: =IF(INTRO!$E$39="Non-endemic",IF($D13=1,DEC!I13,0),IF($D13=1,IVM!G13,0)) -> 0 | G13: 1 | H13: =IF(OR(COUNTRY_INFO!N13="Unknown",COUNTRY_INFO!N13="Surveillance",COUNTRY_INFO!N13="Not required",COUNTRY_INFO!N13=0),0,IF(INTRO!$E$39="Non-endemic",IF(AND($E13<>0,$G13=""),IF($F13=0,COUNTRY_INFO!N13*$E13,COUNTRY_INFO!N13*($E13-$D13)),IF(AND($E13<>0,$G13<>0),IF($F13=0,COUNTRY_INFO!N13*$G13,COUNTRY_INFO!N13*($G13-$D13)),0)),IF($G13="",COUNTRY_INFO!N13*$E13,COUNTRY_INFO!N13*$G13))) -> 0 | I13: =IF(OR(COUNTRY_INFO!O13="Unknown",COUNTRY_INFO!O13="Surveillance",COUNTRY_INFO!O13="Not required",COUNTRY_INFO!O13=0),0,IF($E13<>0, IF($F13=0,COUNTRY_INFO!O13*$E13,COUNTRY_INFO!O13*($E13-$D13)),COUNTRY_INFO!O13*$E13)) -> 301941 | J13: 1 | K13: =IF(OR(COUNTRY_INFO!P13="Unknown",COUNTRY_INFO!P13="Surveillance",COUNTRY_INFO!P13="Not required",COUNTRY_INFO!P13=0),0,IF(AND($E13<>0,$J13=""),IF($F13=0,COUNTRY_INFO!P13*$E13,COUNTRY_INFO!P13*($E13-$D13)), IF(AND($E13<>0,$J13<>0),IF($F13=0,COUNTRY_INFO!P13*$J13,COUNTRY_INFO!P13*($J13-$D13)), COUNTRY_INFO!P13*$J13))) -> 0 | L13: 301941 | M13: 0 | O13: 0 | P13: 301941 | R13: 301941 | S13: 0 | U13: 0
A14: =IF(AND(INTRO!$E$37="Non-endemic",INTRO!$E$41="Non-endemic")," ",IF(COUNTRY_INFO!A14=0," ",COUNTRY_INFO!A14)) -> MALAWI | B14: =IF(AND(INTRO!$E$37="Non-endemic",INTRO!$E$41="Non-endemic")," ",IF(COUNTRY_INFO!B14=0," ",COUNTRY_INFO!B14)) -> North | C14: =IF(AND(INTRO!$E$37="Non-endemic",INTRO!$E$41="Non-endemic")," ",IF(COUNTRY_INFO!C14=0," ",COUNTRY_INFO!C14)) -> Mzimba South | D14: =IF(AND(INTRO!$E$37="Non-endemic",INTRO!$E$41="Non-endemic"),0,COUNTRY_INFO!V14) -> 0 | E14: =IF(AND(INTRO!$E$37="Non-endemic",INTRO!$E$41="Non-endemic"),0,COUNTRY_INFO!X14) -> 1 | F14: =IF(INTRO!$E$39="Non-endemic",IF($D14=1,DEC!I14,0),IF($D14=1,IVM!G14,0)) -> 0 | G14: 1 | H14: =IF(OR(COUNTRY_INFO!N14="Unknown",COUNTRY_INFO!N14="Surveillance",COUNTRY_INFO!N14="Not required",COUNTRY_INFO!N14=0),0,IF(INTRO!$E$39="Non-endemic",IF(AND($E14<>0,$G14=""),IF($F14=0,COUNTRY_INFO!N14*$E14,COUNTRY_INFO!N14*($E14-$D14)),IF(AND($E14<>0,$G14<>0),IF($F14=0,COUNTRY_INFO!N14*$G14,COUNTRY_INFO!N14*($G14-$D14)),0)),IF($G14="",COUNTRY_INFO!N14*$E14,COUNTRY_INFO!N14*$G14))) -> 0 | I14: =IF(OR(COUNTRY_INFO!O14="Unknown",COUNTRY_INFO!O14="Surveillance",COUNTRY_INFO!O14="Not required",COUNTRY_INFO!O14=0),0,IF($E14<>0, IF($F14=0,COUNTRY_INFO!O14*$E14,COUNTRY_INFO!O14*($E14-$D14)),COUNTRY_INFO!O14*$E14)) -> 71062 | J14: 1 | K14: =IF(OR(COUNTRY_INFO!P14="Unknown",COUNTRY_INFO!P14="Surveillance",COUNTRY_INFO!P14="Not required",COUNTRY_INFO!P14=0),0,IF(AND($E14<>0,$J14=""),IF($F14=0,COUNTRY_INFO!P14*$E14,COUNTRY_INFO!P14*($E14-$D14)), IF(AND($E14<>0,$J14<>0),IF($F14=0,COUNTRY_INFO!P14*$J14,COUNTRY_INFO!P14*($J14-$D14)), COUNTRY_INFO!P14*$J14))) -> 0 | L14: 71062 | M14: 0 | O14: 0 | P14: 71062 | R14: 71062 | S14: 0 | U14: 0
A15: =IF(AND(INTRO!$E$37="Non-endemic",INTRO!$E$41="Non-endemic")," ",IF(COUNTRY_INFO!A15=0," ",COUNTRY_INFO!A15)) -> MALAWI | B15: =IF(AND(INTRO!$E$37="Non-endemic",INTRO!$E$41="Non-endemic")," ",IF(COUNTRY_INFO!B15=0," ",COUNTRY_INFO!B15)) -> North | C15: =IF(AND(INTRO!$E$37="Non-endemic",INTRO!$E$41="Non-endemic")," ",IF(COUNTRY_INFO!C15=0," ",COUNTRY_INFO!C15)) -> Nkhata bay | D15: =IF(AND(INTRO!$E$37="Non-endemic",INTRO!$E$41="Non-endemic"),0,COUNTRY_INFO!V15) -> 0 | E15: =IF(AND(INTRO!$E$37="Non-endemic",INTRO!$E$41="Non-endemic"),0,COUNTRY_INFO!X15) -> 1 | F15: =IF(INTRO!$E$39="Non-endemic",IF($D15=1,DEC!I15,0),IF($D15=1,IVM!G15,0)) -> 0 | G15: 1 | H15: =IF(OR(COUNTRY_INFO!N15="Unknown",COUNTRY_INFO!N15="Surveillance",COUNTRY_INFO!N15="Not required",COUNTRY_INFO!N15=0),0,IF(INTRO!$E$39="Non-endemic",IF(AND($E15<>0,$G15=""),IF($F15=0,COUNTRY_INFO!N15*$E15,COUNTRY_INFO!N15*($E15-$D15)),IF(AND($E15<>0,$G15<>0),IF($F15=0,COUNTRY_INFO!N15*$G15,COUNTRY_INFO!N15*($G15-$D15)),0)),IF($G15="",COUNTRY_INFO!N15*$E15,COUNTRY_INFO!N15*$G15))) -> 0 | I15: =IF(OR(COUNTRY_INFO!O15="Unknown",COUNTRY_INFO!O15="Surveillance",COUNTRY_INFO!O15="Not required",COUNTRY_INFO!O15=0),0,IF($E15<>0, IF($F15=0,COUNTRY_INFO!O15*$E15,COUNTRY_INFO!O15*($E15-$D15)),COUNTRY_INFO!O15*$E15)) -> 91426 | J15: 1 | K15: =IF(OR(COUNTRY_INFO!P15="Unknown",COUNTRY_INFO!P15="Surveillance",COUNTRY_INFO!P15="Not required",COUNTRY_INFO!P15=0),0,IF(AND($E15<>0,$J15=""),IF($F15=0,COUNTRY_INFO!P15*$E15,COUNTRY_INFO!P15*($E15-$D15)), IF(AND($E15<>0,$J15<>0),IF($F15=0,COUNTRY_INFO!P15*$J15,COUNTRY_INFO!P15*($J15-$D15)), COUNTRY_INFO!P15*$J15))) -> 0 | L15: 91426 | M15: 0 | O15: 0 | P15: 91426 | R15: 91426 | S15: 0 | U15: 0
A16: =IF(AND(INTRO!$E$37="Non-endemic",INTRO!$E$41="Non-endemic")," ",IF(COUNTRY_INFO!A16=0," ",COUNTRY_INFO!A16)) -> MALAWI | B16: =IF(AND(INTRO!$E$37="Non-endemic",INTRO!$E$41="Non-endemic")," ",IF(COUNTRY_INFO!B16=0," ",COUNTRY_INFO!B16)) -> North | C16: =IF(AND(INTRO!$E$37="Non-endemic",INTRO!$E$41="Non-endemic")," ",IF(COUNTRY_INFO!C16=0," ",COUNTRY_INFO!C16)) -> Likoma | D16: =IF(AND(INTRO!$E$37="Non-endemic",INTRO!$E$41="Non-endemic"),0,COUNTRY_INFO!V16) -> 0 | E16: =IF(AND(INTRO!$E$37="Non-endemic",INTRO!$E$41="Non-endemic"),0,COUNTRY_INFO!X16) -> 0 | F16: =IF(INTRO!$E$39="Non-endemic",IF($D16=1,DEC!I16,0),IF($D16=1,IVM!G16,0)) -> 0 | G16: 1 | H16: =IF(OR(COUNTRY_INFO!N16="Unknown",COUNTRY_INFO!N16="Surveillance",COUNTRY_INFO!N16="Not required",COUNTRY_INFO!N16=0),0,IF(INTRO!$E$39="Non-endemic",IF(AND($E16<>0,$G16=""),IF($F16=0,COUNTRY_INFO!N16*$E16,COUNTRY_INFO!N16*($E16-$D16)),IF(AND($E16<>0,$G16<>0),IF($F16=0,COUNTRY_INFO!N16*$G16,COUNTRY_INFO!N16*($G16-$D16)),0)),IF($G16="",COUNTRY_INFO!N16*$E16,COUNTRY_INFO!N16*$G16))) -> 0 | I16: =IF(OR(COUNTRY_INFO!O16="Unknown",COUNTRY_INFO!O16="Surveillance",COUNTRY_INFO!O16="Not required",COUNTRY_INFO!O16=0),0,IF($E16<>0, IF($F16=0,COUNTRY_INFO!O16*$E16,COUNTRY_INFO!O16*($E16-$D16)),COUNTRY_INFO!O16*$E16)) -> 0 | J16: 1 | K16: =IF(OR(COUNTRY_INFO!P16="Unknown",COUNTRY_INFO!P16="Surveillance",COUNTRY_INFO!P16="Not required",COUNTRY_INFO!P16=0),0,IF(AND($E16<>0,$J16=""),IF($F16=0,COUNTRY_INFO!P16*$E16,COUNTRY_INFO!P16*($E16-$D16)), IF(AND($E16<>0,$J16<>0),IF($F16=0,COUNTRY_INFO!P16*$J16,COUNTRY_INFO!P16*($J16-$D16)), COUNTRY_INFO!P16*$J16))) -> 0 | L16: 0 | M16: 0 | O16: 0 | P16: 0 | R16: 0 | S16: 0 | U16: 0
A17: =IF(AND(INTRO!$E$37="Non-endemic",INTRO!$E$41="Non-endemic")," ",IF(COUNTRY_INFO!A17=0," ",COUNTRY_INFO!A17)) -> MALAWI | B17: =IF(AND(INTRO!$E$37="Non-endemic",INTRO!$E$41="Non-endemic")," ",IF(COUNTRY_INFO!B17=0," ",COUNTRY_INFO!B17)) -> Central | C17: =IF(AND(INTRO!$E$37="Non-endemic",INTRO!$E$41="Non-endemic")," ",IF(COUNTRY_INFO!C17=0," ",COUNTRY_INFO!C17)) -> Kasungu | D17: =IF(AND(INTRO!$E$37="Non-endemic",INTRO!$E$41="Non-endemic"),0,COUNTRY_INFO!V17) -> 0 | E17: =IF(AND(INTRO!$E$37="Non-endemic",INTRO!$E$41="Non-endemic"),0,COUNTRY_INFO!X17) -> 0 | F17: =IF(INTRO!$E$39="Non-endemic",IF($D17=1,DEC!I17,0),IF($D17=1,IVM!G17,0)) -> 0 | G17: 1 | H17: =IF(OR(COUNTRY_INFO!N17="Unknown",COUNTRY_INFO!N17="Surveillance",COUNTRY_INFO!N17="Not required",COUNTRY_INFO!N17=0),0,IF(INTRO!$E$39="Non-endemic",IF(AND($E17<>0,$G17=""),IF($F17=0,COUNTRY_INFO!N17*$E17,COUNTRY_INFO!N17*($E17-$D17)),IF(AND($E17<>0,$G17<>0),IF($F17=0,COUNTRY_INFO!N17*$G17,COUNTRY_INFO!N17*($G17-$D17)),0)),IF($G17="",COUNTRY_INFO!N17*$E17,COUNTRY_INFO!N17*$G17))) -> 0 | I17: =IF(OR(COUNTRY_INFO!O17="Unknown",COUNTRY_INFO!O17="Surveillance",COUNTRY_INFO!O17="Not required",COUNTRY_INFO!O17=0),0,IF($E17<>0, IF($F17=0,COUNTRY_INFO!O17*$E17,COUNTRY_INFO!O17*($E17-$D17)),COUNTRY_INFO!O17*$E17)) -> 0 | J17: 1 | K17: =IF(OR(COUNTRY_INFO!P17="Unknown",COUNTRY_INFO!P17="Surveillance",COUNTRY_INFO!P17="Not required",COUNTRY_INFO!P17=0),0,IF(AND($E17<>0,$J17=""),IF($F17=0,COUNTRY_INFO!P17*$E17,COUNTRY_INFO!P17*($E17-$D17)), IF(AND($E17<>0,$J17<>0),IF($F17=0,COUNTRY_INFO!P17*$J17,COUNTRY_INFO!P17*($J17-$D17)), COUNTRY_INFO!P17*$J17))) -> 0 | L17: 0 | M17: 0 | O17: 0 | P17: 0 | R17: 0 | S17: 0 | U17: 0
A18: =IF(AND(INTRO!$E$37="Non-endemic",INTRO!$E$41="Non-endemic")," ",IF(COUNTRY_INFO!A18=0," ",COUNTRY_INFO!A18)) -> MALAWI | B18: =IF(AND(INTRO!$E$37="Non-endemic",INTRO!$E$41="Non-endemic")," ",IF(COUNTRY_INFO!B18=0," ",COUNTRY_INFO!B18)) -> Central | C18: =IF(AND(INTRO!$E$37="Non-endemic",INTRO!$E$41="Non-endemic")," ",IF(COUNTRY_INFO!C18=0," ",COUNTRY_INFO!C18)) -> Dedza | D18: =IF(AND(INTRO!$E$37="Non-endemic",INTRO!$E$41="Non-endemic"),0,COUNTRY_INFO!V18) -> 0 | E18: =IF(AND(INTRO!$E$37="Non-endemic",INTRO!$E$41="Non-endemic"),0,COUNTRY_INFO!X18) -> 0 | F18: =IF(INTRO!$E$39="Non-endemic",IF($D18=1,DEC!I18,0),IF($D18=1,IVM!G18,0)) -> 0 | G18: 1 | H18: =IF(OR(COUNTRY_INFO!N18="Unknown",COUNTRY_INFO!N18="Surveillance",COUNTRY_INFO!N18="Not required",COUNTRY_INFO!N18=0),0,IF(INTRO!$E$39="Non-endemic",IF(AND($E18<>0,$G18=""),IF($F18=0,COUNTRY_INFO!N18*$E18,COUNTRY_INFO!N18*($E18-$D18)),IF(AND($E18<>0,$G18<>0),IF($F18=0,COUNTRY_INFO!N18*$G18,COUNTRY_INFO!N18*($G18-$D18)),0)),IF($G18="",COUNTRY_INFO!N18*$E18,COUNTRY_INFO!N18*$G18))) -> 0 | I18: =IF(OR(COUNTRY_INFO!O18="Unknown",COUNTRY_INFO!O18="Surveillance",COUNTRY_INFO!O18="Not required",COUNTRY_INFO!O18=0),0,IF($E18<>0, IF($F18=0,COUNTRY_INFO!O18*$E18,COUNTRY_INFO!O18*($E18-$D18)),COUNTRY_INFO!O18*$E18)) -> 0 | J18: 1 | K18: =IF(OR(COUNTRY_INFO!P18="Unknown",COUNTRY_INFO!P18="Surveillance",COUNTRY_INFO!P18="Not required",COUNTRY_INFO!P18=0),0,IF(AND($E18<>0,$J18=""),IF($F18=0,COUNTRY_INFO!P18*$E18,COUNTRY_INFO!P18*($E18-$D18)), IF(AND($E18<>0,$J18<>0),IF($F18=0,COUNTRY_INFO!P18*$J18,COUNTRY_INFO!P18*($J18-$D18)), COUNTRY_INFO!P18*$J18))) -> 0 | L18: 0 | M18: 0 | O18: 0 | P18: 0 | R18: 0 | S18: 0 | U18: 0
A19: =IF(AND(INTRO!$E$37="Non-endemic",INTRO!$E$41="Non-endemic")," ",IF(COUNTRY_INFO!A19=0," ",COUNTRY_INFO!A19)) -> MALAWI | B19: =IF(AND(INTRO!$E$37="Non-endemic",INTRO!$E$41="Non-endemic")," ",IF(COUNTRY_INFO!B19=0," ",COUNTRY_INFO!B19)) -> Central | C19: =IF(AND(INTRO!$E$37="Non-endemic",INTRO!$E$41="Non-endemic")," ",IF(COUNTRY_INFO!C19=0," ",COUNTRY_INFO!C19)) -> Dowa | D19: =IF(AND(INTRO!$E$37="Non-endemic",INTRO!$E$41="Non-endemic"),0,COUNTRY_INFO!V19) -> 0 | E19: =IF(AND(INTRO!$E$37="Non-endemic",INTRO!$E$41="Non-endemic"),0,COUNTRY_INFO!X19) -> 0 | F19: =IF(INTRO!$E$39="Non-endemic",IF($D19=1,DEC!I19,0),IF($D19=1,IVM!G19,0)) -> 0 | G19: 1 | H19: =IF(OR(COUNTRY_INFO!N19="Unknown",COUNTRY_INFO!N19="Surveillance",COUNTRY_INFO!N19="Not required",COUNTRY_INFO!N19=0),0,IF(INTRO!$E$39="Non-endemic",IF(AND($E19<>0,$G19=""),IF($F19=0,COUNTRY_INFO!N19*$E19,COUNTRY_INFO!N19*($E19-$D19)),IF(AND($E19<>0,$G19<>0),IF($F19=0,COUNTRY_INFO!N19*$G19,COUNTRY_INFO!N19*($G19-$D19)),0)),IF($G19="",COUNTRY_INFO!N19*$E19,COUNTRY_INFO!N19*$G19))) -> 0 | I19: =IF(OR(COUNTRY_INFO!O19="Unknown",COUNTRY_INFO!O19="Surveillance",COUNTRY_INFO!O19="Not required",COUNTRY_INFO!O19=0),0,IF($E19<>0, IF($F19=0,COUNTRY_INFO!O19*$E19,COUNTRY_INFO!O19*($E19-$D19)),COUNTRY_INFO!O19*$E19)) -> 0 | J19: 1 | K19: =IF(OR(COUNTRY_INFO!P19="Unknown",COUNTRY_INFO!P19="Surveillance",COUNTRY_INFO!P19="Not required",COUNTRY_INFO!P19=0),0,IF(AND($E19<>0,$J19=""),IF($F19=0,COUNTRY_INFO!P19*$E19,COUNTRY_INFO!P19*($E19-$D19)), IF(AND($E19<>0,$J19<>0),IF($F19=0,COUNTRY_INFO!P19*$J19,COUNTRY_INFO!P19*($J19-$D19)), COUNTRY_INFO!P19*$J19))) -> 0 | L19: 0 | M19: 0 | O19: 0 | P19: 0 | R19: 0 | S19: 0 | U19: 0
A20: =IF(AND(INTRO!$E$37="Non-endemic",INTRO!$E$41="Non-endemic")," ",IF(COUNTRY_INFO!A20=0," ",COUNTRY_INFO!A20)) -> MALAWI | B20: =IF(AND(INTRO!$E$37="Non-endemic",INTRO!$E$41="Non-endemic")," ",IF(COUNTRY_INFO!B20=0," ",COUNTRY_INFO!B20)) -> Central | C20: =IF(AND(INTRO!$E$37="Non-endemic",INTRO!$E$41="Non-endemic")," ",IF(COUNTRY_INFO!C20=0," ",COUNTRY_INFO!C20)) -> Lilongwe | D20: =IF(AND(INTRO!$E$37="Non-endemic",INTRO!$E$41="Non-endemic"),0,COUNTRY_INFO!V20) -> 0 | E20: =IF(AND(INTRO!$E$37="Non-endemic",INTRO!$E$41="Non-endemic"),0,COUNTRY_INFO!X20) -> 1 | F20: =IF(INTRO!$E$39="Non-endemic",IF($D20=1,DEC!I20,0),IF($D20=1,IVM!G20,0)) -> 0 | G20: 1 | H20: =IF(OR(COUNTRY_INFO!N20="Unknown",COUNTRY_INFO!N20="Surveillance",COUNTRY_INFO!N20="Not required",COUNTRY_INFO!N20=0),0,IF(INTRO!$E$39="Non-endemic",IF(AND($E20<>0,$G20=""),IF($F20=0,COUNTRY_INFO!N20*$E20,COUNTRY_INFO!N20*($E20-$D20)),IF(AND($E20<>0,$G20<>0),IF($F20=0,COUNTRY_INFO!N20*$G20,COUNTRY_INFO!N20*($G20-$D20)),0)),IF($G20="",COUNTRY_INFO!N20*$E20,COUNTRY_INFO!N20*$G20))) -> 0 | I20: =IF(OR(COUNTRY_INFO!O20="Unknown",COUNTRY_INFO!O20="Surveillance",COUNTRY_INFO!O20="Not required",COUNTRY_INFO!O20=0),0,IF($E20<>0, IF($F20=0,COUNTRY_INFO!O20*$E20,COUNTRY_INFO!O20*($E20-$D20)),COUNTRY_INFO!O20*$E20)) -> 843632 | J20: 1 | K20: =IF(OR(COUNTRY_INFO!P20="Unknown",COUNTRY_INFO!P20="Surveillance",COUNTRY_INFO!P20="Not required",COUNTRY_INFO!P20=0),0,IF(AND($E20<>0,$J20=""),IF($F20=0,COUNTRY_INFO!P20*$E20,COUNTRY_INFO!P20*($E20-$D20)), IF(AND($E20<>0,$J20<>0),IF($F20=0,COUNTRY_INFO!P20*$J20,COUNTRY_INFO!P20*($J20-$D20)), COUNTRY_INFO!P20*$J20))) -> 0 | L20: 843632 | M20: 0 | O20: 0 | P20: 843632 | R20: 843632 | S20: 0 | U20: 0
A21: =IF(AND(INTRO!$E$37="Non-endemic",INTRO!$E$41="Non-endemic")," ",IF(COUNTRY_INFO!A21=0," ",COUNTRY_INFO!A21)) -> MALAWI | B21: =IF(AND(INTRO!$E$37="Non-endemic",INTRO!$E$41="Non-endemic")," ",IF(COUNTRY_INFO!B21=0," ",COUNTRY_INFO!B21)) -> Central | C21: =IF(AND(INTRO!$E$37="Non-endemic",INTRO!$E$41="Non-endemic")," ",IF(COUNTRY_INFO!C21=0," ",COUNTRY_INFO!C21)) -> Mchinji | D21: =IF(AND(INTRO!$E$37="Non-endemic",INTRO!$E$41="Non-endemic"),0,COUNTRY_INFO!V21) -> 0 | E21: =IF(AND(INTRO!$E$37="Non-endemic",INTRO!$E$41="Non-endemic"),0,COUNTRY_INFO!X21) -> 0 | F21: =IF(INTRO!$E$39="Non-endemic",IF($D21=1,DEC!I21,0),IF($D21=1,IVM!G21,0)) -> 0 | G21: 1 | H21: =IF(OR(COUNTRY_INFO!N21="Unknown",COUNTRY_INFO!N21="Surveillance",COUNTRY_INFO!N21="Not required",COUNTRY_INFO!N21=0),0,IF(INTRO!$E$39="Non-endemic",IF(AND($E21<>0,$G21=""),IF($F21=0,COUNTRY_INFO!N21*$E21,COUNTRY_INFO!N21*($E21-$D21)),IF(AND($E21<>0,$G21<>0),IF($F21=0,COUNTRY_INFO!N21*$G21,COUNTRY_INFO!N21*($G21-$D21)),0)),IF($G21="",COUNTRY_INFO!N21*$E21,COUNTRY_INFO!N21*$G21))) -> 0 | I21: =IF(OR(COUNTRY_INFO!O21="Unknown",COUNTRY_INFO!O21="Surveillance",COUNTRY_INFO!O21="Not required",COUNTRY_INFO!O21=0),0,IF($E21<>0, IF($F21=0,COUNTRY_INFO!O21*$E21,COUNTRY_INFO!O21*($E21-$D21)),COUNTRY_INFO!O21*$E21)) -> 0 | J21: 1 | K21: =IF(OR(COUNTRY_INFO!P21="Unknown",COUNTRY_INFO!P21="Surveillance",COUNTRY_INFO!P21="Not required",COUNTRY_INFO!P21=0),0,IF(AND($E21<>0,$J21=""),IF($F21=0,COUNTRY_INFO!P21*$E21,COUNTRY_INFO!P21*($E21-$D21)), IF(AND($E21<>0,$J21<>0),IF($F21=0,COUNTRY_INFO!P21*$J21,COUNTRY_INFO!P21*($J21-$D21)), COUNTRY_INFO!P21*$J21))) -> 0 | L21: 0 | M21: 0 | O21: 0 | P21: 0 | R21: 0 | S21: 0 | U21: 0
A22: =IF(AND(INTRO!$E$37="Non-endemic",INTRO!$E$41="Non-endemic")," ",IF(COUNTRY_INFO!A22=0," ",COUNTRY_INFO!A22)) -> MALAWI | B22: =IF(AND(INTRO!$E$37="Non-endemic",INTRO!$E$41="Non-endemic")," ",IF(COUNTRY_INFO!B22=0," ",COUNTRY_INFO!B22)) -> Central | C22: =IF(AND(INTRO!$E$37="Non-endemic",INTRO!$E$41="Non-endemic")," ",IF(COUNTRY_INFO!C22=0," ",COUNTRY_INFO!C22)) -> Salima | D22: =IF(AND(INTRO!$E$37="Non-endemic",INTRO!$E$41="Non-endemic"),0,COUNTRY_INFO!V22) -> 0 | E22: =IF(AND(INTRO!$E$37="Non-endemic",INTRO!$E$41="Non-endemic"),0,COUNTRY_INFO!X22) -> 0 | F22: =IF(INTRO!$E$39="Non-endemic",IF($D22=1,DEC!I22,0),IF($D22=1,IVM!G22,0)) -> 0 | G22: 1 | H22: =IF(OR(COUNTRY_INFO!N22="Unknown",COUNTRY_INFO!N22="Surveillance",COUNTRY_INFO!N22="Not required",COUNTRY_INFO!N22=0),0,IF(INTRO!$E$39="Non-endemic",IF(AND($E22<>0,$G22=""),IF($F22=0,COUNTRY_INFO!N22*$E22,COUNTRY_INFO!N22*($E22-$D22)),IF(AND($E22<>0,$G22<>0),IF($F22=0,COUNTRY_INFO!N22*$G22,COUNTRY_INFO!N22*($G22-$D22)),0)),IF($G22="",COUNTRY_INFO!N22*$E22,COUNTRY_INFO!N22*$G22))) -> 0 | I22: =IF(OR(COUNTRY_INFO!O22="Unknown",COUNTRY_INFO!O22="Surveillance",COUNTRY_INFO!O22="Not required",COUNTRY_INFO!O22=0),0,IF($E22<>0, IF($F22=0,COUNTRY_INFO!O22*$E22,COUNTRY_INFO!O22*($E22-$D22)),COUNTRY_INFO!O22*$E22)) -> 0 | J22: 1 | K22: =IF(OR(COUNTRY_INFO!P22="Unknown",COUNTRY_INFO!P22="Surveillance",COUNTRY_INFO!P22="Not required",COUNTRY_INFO!P22=0),0,IF(AND($E22<>0,$J22=""),IF($F22=0,COUNTRY_INFO!P22*$E22,COUNTRY_INFO!P22*($E22-$D22)), IF(AND($E22<>0,$J22<>0),IF($F22=0,COUNTRY_INFO!P22*$J22,COUNTRY_INFO!P22*($J22-$D22)), COUNTRY_INFO!P22*$J22))) -> 0 | L22: 0 | M22: 0 | O22: 0 | P22: 0 | R22: 0 | S22: 0 | U22: 0
A23: =IF(AND(INTRO!$E$37="Non-endemic",INTRO!$E$41="Non-endemic")," ",IF(COUNTRY_INFO!A23=0," ",COUNTRY_INFO!A23)) -> MALAWI | B23: =IF(AND(INTRO!$E$37="Non-endemic",INTRO!$E$41="Non-endemic")," ",IF(COUNTRY_INFO!B23=0," ",COUNTRY_INFO!B23)) -> Central | C23: =IF(AND(INTRO!$E$37="Non-endemic",INTRO!$E$41="Non-endemic")," ",IF(COUNTRY_INFO!C23=0," ",COUNTRY_INFO!C23)) -> Nkhotakota | D23: =IF(AND(INTRO!$E$37="Non-endemic",INTRO!$E$41="Non-endemic"),0,COUNTRY_INFO!V23) -> 0 | E23: =IF(AND(INTRO!$E$37="Non-endemic",INTRO!$E$41="Non-endemic"),0,COUNTRY_INFO!X23) -> 1 | F23: =IF(INTRO!$E$39="Non-endemic",IF($D23=1,DEC!I23,0),IF($D23=1,IVM!G23,0)) -> 0 | G23: 1 | H23: =IF(OR(COUNTRY_INFO!N23="Unknown",COUNTRY_INFO!N23="Surveillance",COUNTRY_INFO!N23="Not required",COUNTRY_INFO!N23=0),0,IF(INTRO!$E$39="Non-endemic",IF(AND($E23<>0,$G23=""),IF($F23=0,COUNTRY_INFO!N23*$E23,COUNTRY_INFO!N23*($E23-$D23)),IF(AND($E23<>0,$G23<>0),IF($F23=0,COUNTRY_INFO!N23*$G23,COUNTRY_INFO!N23*($G23-$D23)),0)),IF($G23="",COUNTRY_INFO!N23*$E23,COUNTRY_INFO!N23*$G23))) -> 0 | I23: =IF(OR(COUNTRY_INFO!O23="Unknown",COUNTRY_INFO!O23="Surveillance",COUNTRY_INFO!O23="Not required",COUNTRY_INFO!O23=0),0,IF($E23<>0, IF($F23=0,COUNTRY_INFO!O23*$E23,COUNTRY_INFO!O23*($E23-$D23)),COUNTRY_INFO!O23*$E23)) -> 126237 | J23: 1 | K23: =IF(OR(COUNTRY_INFO!P23="Unknown",COUNTRY_INFO!P23="Surveillance",COUNTRY_INFO!P23="Not required",COUNTRY_INFO!P23=0),0,IF(AND($E23<>0,$J23=""),IF($F23=0,COUNTRY_INFO!P23*$E23,COUNTRY_INFO!P23*($E23-$D23)), IF(AND($E23<>0,$J23<>0),IF($F23=0,COUNTRY_INFO!P23*$J23,COUNTRY_INFO!P23*($J23-$D23)), COUNTRY_INFO!P23*$J23))) -> 0 | L23: 126237 | M23: 0 | O23: 0 | P23: 126237 | R23: 126237 | S23: 0 | U23: 0
A24: =IF(AND(INTRO!$E$37="Non-endemic",INTRO!$E$41="Non-endemic")," ",IF(COUNTRY_INFO!A24=0," ",COUNTRY_INFO!A24)) -> MALAWI | B24: =IF(AND(INTRO!$E$37="Non-endemic",INTRO!$E$41="Non-endemic")," ",IF(COUNTRY_INFO!B24=0," ",COUNTRY_INFO!B24)) -> Central | C24: =IF(AND(INTRO!$E$37="Non-endemic",INTRO!$E$41="Non-endemic")," ",IF(COUNTRY_INFO!C24=0," ",COUNTRY_INFO!C24)) -> Ntchisi | D24: =IF(AND(INTRO!$E$37="Non-endemic",INTRO!$E$41="Non-endemic"),0,COUNTRY_INFO!V24) -> 0 | E24: =IF(AND(INTRO!$E$37="Non-endemic",INTRO!$E$41="Non-endemic"),0,COUNTRY_INFO!X24) -> 1 | F24: =IF(INTRO!$E$39="Non-endemic",IF($D24=1,DEC!I24,0),IF($D24=1,IVM!G24,0)) -> 0 | G24: 1 | H24: =IF(OR(COUNTRY_INFO!N24="Unknown",COUNTRY_INFO!N24="Surveillance",COUNTRY_INFO!N24="Not required",COUNTRY_INFO!N24=0),0,IF(INTRO!$E$39="Non-endemic",IF(AND($E24<>0,$G24=""),IF($F24=0,COUNTRY_INFO!N24*$E24,COUNTRY_INFO!N24*($E24-$D24)),IF(AND($E24<>0,$G24<>0),IF($F24=0,COUNTRY_INFO!N24*$G24,COUNTRY_INFO!N24*($G24-$D24)),0)),IF($G24="",COUNTRY_INFO!N24*$E24,COUNTRY_INFO!N24*$G24))) -> 0 | I24: =IF(OR(COUNTRY_INFO!O24="Unknown",COUNTRY_INFO!O24="Surveillance",COUNTRY_INFO!O24="Not required",COUNTRY_INFO!O24=0),0,IF($E24<>0, IF($F24=0,COUNTRY_INFO!O24*$E24,COUNTRY_INFO!O24*($E24-$D24)),COUNTRY_INFO!O24*$E24)) -> 101827 | J24: 1 | K24: =IF(OR(COUNTRY_INFO!P24="Unknown",COUNTRY_INFO!P24="Surveillance",COUNTRY_INFO!P24="Not required",COUNTRY_INFO!P24=0),0,IF(AND($E24<>0,$J24=""),IF($F24=0,COUNTRY_INFO!P24*$E24,COUNTRY_INFO!P24*($E24-$D24)), IF(AND($E24<>0,$J24<>0),IF($F24=0,COUNTRY_INFO!P24*$J24,COUNTRY_INFO!P24*($J24-$D24)), COUNTRY_INFO!P24*$J24))) -> 0 | L24: 101827 | M24: 0 | O24: 0 | P24: 101827 | R24: 101827 | S24: 0 | U24: 0
A25: =IF(AND(INTRO!$E$37="Non-endemic",INTRO!$E$41="Non-endemic")," ",IF(COUNTRY_INFO!A25=0," ",COUNTRY_INFO!A25)) -> MALAWI | B25: =IF(AND(INTRO!$E$37="Non-endemic",INTRO!$E$41="Non-endemic")," ",IF(COUNTRY_INFO!B25=0," ",COUNTRY_INFO!B25)) -> Central | C25: =IF(AND(INTRO!$E$37="Non-endemic",INTRO!$E$41="Non-endemic")," ",IF(COUNTRY_INFO!C25=0," ",COUNTRY_INFO!C25)) -> Ntcheu | D25: =IF(AND(INTRO!$E$37="Non-endemic",INTRO!$E$41="Non-endemic"),0,COUNTRY_INFO!V25) -> 0 | E25: =IF(AND(INTRO!$E$37="Non-endemic",INTRO!$E$41="Non-endemic"),0,COUNTRY_INFO!X25) -> 1 | F25: =IF(INTRO!$E$39="Non-endemic",IF($D25=1,DEC!I25,0),IF($D25=1,IVM!G25,0)) -> 0 | G25: 1 | H25: =IF(OR(COUNTRY_INFO!N25="Unknown",COUNTRY_INFO!N25="Surveillance",COUNTRY_INFO!N25="Not required",COUNTRY_INFO!N25=0),0,IF(INTRO!$E$39="Non-endemic",IF(AND($E25<>0,$G25=""),IF($F25=0,COUNTRY_INFO!N25*$E25,COUNTRY_INFO!N25*($E25-$D25)),IF(AND($E25<>0,$G25<>0),IF($F25=0,COUNTRY_INFO!N25*$G25,COUNTRY_INFO!N25*($G25-$D25)),0)),IF($G25="",COUNTRY_INFO!N25*$E25,COUNTRY_INFO!N25*$G25))) -> 0 | I25: =IF(OR(COUNTRY_INFO!O25="Unknown",COUNTRY_INFO!O25="Surveillance",COUNTRY_INFO!O25="Not required",COUNTRY_INFO!O25=0),0,IF($E25<>0, IF($F25=0,COUNTRY_INFO!O25*$E25,COUNTRY_INFO!O25*($E25-$D25)),COUNTRY_INFO!O25*$E25)) -> 211834 | J25: 1 | K25: =IF(OR(COUNTRY_INFO!P25="Unknown",COUNTRY_INFO!P25="Surveillance",COUNTRY_INFO!P25="Not required",COUNTRY_INFO!P25=0),0,IF(AND($E25<>0,$J25=""),IF($F25=0,COUNTRY_INFO!P25*$E25,COUNTRY_INFO!P25*($E25-$D25)), IF(AND($E25<>0,$J25<>0),IF($F25=0,COUNTRY_INFO!P25*$J25,COUNTRY_INFO!P25*($J25-$D25)), COUNTRY_INFO!P25*$J25))) -> 0 | L25: 211834 | M25: 0 | O25: 0 | P25: 211834 | R25: 211834 | S25: 0 | U25: 0
A26: =IF(AND(INTRO!$E$37="Non-endemic",INTRO!$E$41="Non-endemic")," ",IF(COUNTRY_INFO!A26=0," ",COUNTRY_INFO!A26)) -> MALAWI | B26: =IF(AND(INTRO!$E$37="Non-endemic",INTRO!$E$41="Non-endemic")," ",IF(COUNTRY_INFO!B26=0," ",COUNTRY_INFO!B26)) -> South | C26: =IF(AND(INTRO!$E$37="Non-endemic",INTRO!$E$41="Non-endemic")," ",IF(COUNTRY_INFO!C26=0," ",COUNTRY_INFO!C26)) -> Balaka | D26: =IF(AND(INTRO!$E$37="Non-endemic",INTRO!$E$41="Non-endemic"),0,COUNTRY_INFO!V26) -> 0 | E26: =IF(AND(INTRO!$E$37="Non-endemic",INTRO!$E$41="Non-endemic"),0,COUNTRY_INFO!X26) -> 1 | F26: =IF(INTRO!$E$39="Non-endemic",IF($D26=1,DEC!I26,0),IF($D26=1,IVM!G26,0)) -> 0 | G26: 1 | H26: =IF(OR(COUNTRY_INFO!N26="Unknown",COUNTRY_INFO!N26="Surveillance",COUNTRY_INFO!N26="Not required",COUNTRY_INFO!N26=0),0,IF(INTRO!$E$39="Non-endemic",IF(AND($E26<>0,$G26=""),IF($F26=0,COUNTRY_INFO!N26*$E26,COUNTRY_INFO!N26*($E26-$D26)),IF(AND($E26<>0,$G26<>0),IF($F26=0,COUNTRY_INFO!N26*$G26,COUNTRY_INFO!N26*($G26-$D26)),0)),IF($G26="",COUNTRY_INFO!N26*$E26,COUNTRY_INFO!N26*$G26))) -> 0 | I26: =IF(OR(COUNTRY_INFO!O26="Unknown",COUNTRY_INFO!O26="Surveillance",COUNTRY_INFO!O26="Not required",COUNTRY_INFO!O26=0),0,IF($E26<>0, IF($F26=0,COUNTRY_INFO!O26*$E26,COUNTRY_INFO!O26*($E26-$D26)),COUNTRY_INFO!O26*$E26)) -> 140786 | J26: 1 | K26: =IF(OR(COUNTRY_INFO!P26="Unknown",COUNTRY_INFO!P26="Surveillance",COUNTRY_INFO!P26="Not required",COUNTRY_INFO!P26=0),0,IF(AND($E26<>0,$J26=""),IF($F26=0,COUNTRY_INFO!P26*$E26,COUNTRY_INFO!P26*($E26-$D26)), IF(AND($E26<>0,$J26<>0),IF($F26=0,COUNTRY_INFO!P26*$J26,COUNTRY_INFO!P26*($J26-$D26)), COUNTRY_INFO!P26*$J26))) -> 0 | L26: 140786 | M26: 0 | O26: 0 | P26: 140786 | R26: 140786 | S26: 0 | U26: 0
A27: =IF(AND(INTRO!$E$37="Non-endemic",INTRO!$E$41="Non-endemic")," ",IF(COUNTRY_INFO!A27=0," ",COUNTRY_INFO!A27)) -> MALAWI | B27: =IF(AND(INTRO!$E$37="Non-endemic",INTRO!$E$41="Non-endemic")," ",IF(COUNTRY_INFO!B27=0," ",COUNTRY_INFO!B27)) -> South | C27: =IF(AND(INTRO!$E$37="Non-endemic",INTRO!$E$41="Non-endemic")," ",IF(COUNTRY_INFO!C27=0," ",COUNTRY_INFO!C27)) -> Chikwawa | D27: =IF(AND(INTRO!$E$37="Non-endemic",INTRO!$E$41="Non-endemic"),0,COUNTRY_INFO!V27) -> 0 | E27: =IF(AND(INTRO!$E$37="Non-endemic",INTRO!$E$41="Non-endemic"),0,COUNTRY_INFO!X27) -> 0 | F27: =IF(INTRO!$E$39="Non-endemic",IF($D27=1,DEC!I27,0),IF($D27=1,IVM!G27,0)) -> 0 | G27: 1 | H27: =IF(OR(COUNTRY_INFO!N27="Unknown",COUNTRY_INFO!N27="Surveillance",COUNTRY_INFO!N27="Not required",COUNTRY_INFO!N27=0),0,IF(INTRO!$E$39="Non-endemic",IF(AND($E27<>0,$G27=""),IF($F27=0,COUNTRY_INFO!N27*$E27,COUNTRY_INFO!N27*($E27-$D27)),IF(AND($E27<>0,$G27<>0),IF($F27=0,COUNTRY_INFO!N27*$G27,COUNTRY_INFO!N27*($G27-$D27)),0)),IF($G27="",COUNTRY_INFO!N27*$E27,COUNTRY_INFO!N27*$G27))) -> 0 | I27: =IF(OR(COUNTRY_INFO!O27="Unknown",COUNTRY_INFO!O27="Surveillance",COUNTRY_INFO!O27="Not required",COUNTRY_INFO!O27=0),0,IF($E27<>0, IF($F27=0,COUNTRY_INFO!O27*$E27,COUNTRY_INFO!O27*($E27-$D27)),COUNTRY_INFO!O27*$E27)) -> 0 | J27: 1 | K27: =IF(OR(COUNTRY_INFO!P27="Unknown",COUNTRY_INFO!P27="Surveillance",COUNTRY_INFO!P27="Not required",COUNTRY_INFO!P27=0),0,IF(AND($E27<>0,$J27=""),IF($F27=0,COUNTRY_INFO!P27*$E27,COUNTRY_INFO!P27*($E27-$D27)), IF(AND($E27<>0,$J27<>0),IF($F27=0,COUNTRY_INFO!P27*$J27,COUNTRY_INFO!P27*($J27-$D27)), COUNTRY_INFO!P27*$J27))) -> 0 | L27: 0 | M27: 0 | O27: 0 | P27: 0 | R27: 0 | S27: 0 | U27: 0
A28: =IF(AND(INTRO!$E$37="Non-endemic",INTRO!$E$41="Non-endemic")," ",IF(COUNTRY_INFO!A28=0," ",COUNTRY_INFO!A28)) -> MALAWI | B28: =IF(AND(INTRO!$E$37="Non-endemic",INTRO!$E$41="Non-endemic")," ",IF(COUNTRY_INFO!B28=0," ",COUNTRY_INFO!B28)) -> South | C28: =IF(AND(INTRO!$E$37="Non-endemic",INTRO!$E$41="Non-endemic")," ",IF(COUNTRY_INFO!C28=0," ",COUNTRY_INFO!C28)) -> Chiradzulu | D28: =IF(AND(INTRO!$E$37="Non-endemic",INTRO!$E$41="Non-endemic"),0,COUNTRY_INFO!V28) -> 0 | E28: =IF(AND(INTRO!$E$37="Non-endemic",INTRO!$E$41="Non-endemic"),0,COUNTRY_INFO!X28) -> 1 | F28: =IF(INTRO!$E$39="Non-endemic",IF($D28=1,DEC!I28,0),IF($D28=1,IVM!G28,0)) -> 0 | G28: 1 | H28: =IF(OR(COUNTRY_INFO!N28="Unknown",COUNTRY_INFO!N28="Surveillance",COUNTRY_INFO!N28="Not required",COUNTRY_INFO!N28=0),0,IF(INTRO!$E$39="Non-endemic",IF(AND($E28<>0,$G28=""),IF($F28=0,COUNTRY_INFO!N28*$E28,COUNTRY_INFO!N28*($E28-$D28)),IF(AND($E28<>0,$G28<>0),IF($F28=0,COUNTRY_INFO!N28*$G28,COUNTRY_INFO!N28*($G28-$D28)),0)),IF($G28="",COUNTRY_INFO!N28*$E28,COUNTRY_INFO!N28*$G28))) -> 0 | I28: =IF(OR(COUNTRY_INFO!O28="Unknown",COUNTRY_INFO!O28="Surveillance",COUNTRY_INFO!O28="Not required",COUNTRY_INFO!O28=0),0,IF($E28<>0, IF($F28=0,COUNTRY_INFO!O28*$E28,COUNTRY_INFO!O28*($E28-$D28)),COUNTRY_INFO!O28*$E28)) -> 114611 | J28: 1 | K28: =IF(OR(COUNTRY_INFO!P28="Unknown",COUNTRY_INFO!P28="Surveillance",COUNTRY_INFO!P28="Not required",COUNTRY_INFO!P28=0),0,IF(AND($E28<>0,$J28=""),IF($F28=0,COUNTRY_INFO!P28*$E28,COUNTRY_INFO!P28*($E28-$D28)), IF(AND($E28<>0,$J28<>0),IF($F28=0,COUNTRY_INFO!P28*$J28,COUNTRY_INFO!P28*($J28-$D28)), COUNTRY_INFO!P28*$J28))) -> 0 | L28: 114611 | M28: 0 | O28: 0 | P28: 114611 | R28: 114611 | S28: 0 | U28: 0
A29: =IF(AND(INTRO!$E$37="Non-endemic",INTRO!$E$41="Non-endemic")," ",IF(COUNTRY_INFO!A29=0," ",COUNTRY_INFO!A29)) -> MALAWI | B29: =IF(AND(INTRO!$E$37="Non-endemic",INTRO!$E$41="Non-endemic")," ",IF(COUNTRY_INFO!B29=0," ",COUNTRY_INFO!B29)) -> South | C29: =IF(AND(INTRO!$E$37="Non-endemic",INTRO!$E$41="Non-endemic")," ",IF(COUNTRY_INFO!C29=0," ",COUNTRY_INFO!C29)) -> Machinga | D29: =IF(AND(INTRO!$E$37="Non-endemic",INTRO!$E$41="Non-endemic"),0,COUNTRY_INFO!V29) -> 0 | E29: =IF(AND(INTRO!$E$37="Non-endemic",INTRO!$E$41="Non-endemic"),0,COUNTRY_INFO!X29) -> 0 | F29: =IF(INTRO!$E$39="Non-endemic",IF($D29=1,DEC!I29,0),IF($D29=1,IVM!G29,0)) -> 0 | G29: 1 | H29: =IF(OR(COUNTRY_INFO!N29="Unknown",COUNTRY_INFO!N29="Surveillance",COUNTRY_INFO!N29="Not required",COUNTRY_INFO!N29=0),0,IF(INTRO!$E$39="Non-endemic",IF(AND($E29<>0,$G29=""),IF($F29=0,COUNTRY_INFO!N29*$E29,COUNTRY_INFO!N29*($E29-$D29)),IF(AND($E29<>0,$G29<>0),IF($F29=0,COUNTRY_INFO!N29*$G29,COUNTRY_INFO!N29*($G29-$D29)),0)),IF($G29="",COUNTRY_INFO!N29*$E29,COUNTRY_INFO!N29*$G29))) -> 0 | I29: =IF(OR(COUNTRY_INFO!O29="Unknown",COUNTRY_INFO!O29="Surveillance",COUNTRY_INFO!O29="Not required",COUNTRY_INFO!O29=0),0,IF($E29<>0, IF($F29=0,COUNTRY_INFO!O29*$E29,COUNTRY_INFO!O29*($E29-$D29)),COUNTRY_INFO!O29*$E29)) -> 0 | J29: 1 | K29: =IF(OR(COUNTRY_INFO!P29="Unknown",COUNTRY_INFO!P29="Surveillance",COUNTRY_INFO!P29="Not required",COUNTRY_INFO!P29=0),0,IF(AND($E29<>0,$J29=""),IF($F29=0,COUNTRY_INFO!P29*$E29,COUNTRY_INFO!P29*($E29-$D29)), IF(AND($E29<>0,$J29<>0),IF($F29=0,COUNTRY_INFO!P29*$J29,COUNTRY_INFO!P29*($J29-$D29)), COUNTRY_INFO!P29*$J29))) -> 0 | L29: 0 | M29: 0 | O29: 0 | P29: 0 | R29: 0 | S29: 0 | U29: 0
A30: =IF(AND(INTRO!$E$37="Non-endemic",INTRO!$E$41="Non-endemic")," ",IF(COUNTRY_INFO!A30=0," ",COUNTRY_INFO!A30)) -> MALAWI | B30: =IF(AND(INTRO!$E$37="Non-endemic",INTRO!$E$41="Non-endemic")," ",IF(COUNTRY_INFO!B30=0," ",COUNTRY_INFO!B30)) -> South | C30: =IF(AND(INTRO!$E$37="Non-endemic",INTRO!$E$41="Non-endemic")," ",IF(COUNTRY_INFO!C30=0," ",COUNTRY_INFO!C30)) -> Blantyre | D30: =IF(AND(INTRO!$E$37="Non-endemic",INTRO!$E$41="Non-endemic"),0,COUNTRY_INFO!V30) -> 0 | E30: =IF(AND(INTRO!$E$37="Non-endemic",INTRO!$E$41="Non-endemic"),0,COUNTRY_INFO!X30) -> 1 | F30: =IF(INTRO!$E$39="Non-endemic",IF($D30=1,DEC!I30,0),IF($D30=1,IVM!G30,0)) -> 0 | G30: 1 | H30: =IF(OR(COUNTRY_INFO!N30="Unknown",COUNTRY_INFO!N30="Surveillance",COUNTRY_INFO!N30="Not required",COUNTRY_INFO!N30=0),0,IF(INTRO!$E$39="Non-endemic",IF(AND($E30<>0,$G30=""),IF($F30=0,COUNTRY_INFO!N30*$E30,COUNTRY_INFO!N30*($E30-$D30)),IF(AND($E30<>0,$G30<>0),IF($F30=0,COUNTRY_INFO!N30*$G30,COUNTRY_INFO!N30*($G30-$D30)),0)),IF($G30="",COUNTRY_INFO!N30*$E30,COUNTRY_INFO!N30*$G30))) -> 0 | I30: =IF(OR(COUNTRY_INFO!O30="Unknown",COUNTRY_INFO!O30="Surveillance",COUNTRY_INFO!O30="Not required",COUNTRY_INFO!O30=0),0,IF($E30<>0, IF($F30=0,COUNTRY_INFO!O30*$E30,COUNTRY_INFO!O30*($E30-$D30)),COUNTRY_INFO!O30*$E30)) -> 401916 | J30: 1 | K30: =IF(OR(COUNTRY_INFO!P30="Unknown",COUNTRY_INFO!P30="Surveillance",COUNTRY_INFO!P30="Not required",COUNTRY_INFO!P30=0),0,IF(AND($E30<>0,$J30=""),IF($F30=0,COUNTRY_INFO!P30*$E30,COUNTRY_INFO!P30*($E30-$D30)), IF(AND($E30<>0,$J30<>0),IF($F30=0,COUNTRY_INFO!P30*$J30,COUNTRY_INFO!P30*($J30-$D30)), COUNTRY_INFO!P30*$J30))) -> 0 | L30: 401916 | M30: 0 | O30: 0 | P30: 401916 | R30: 401916 | S30: 0 | U30: 0
A31: =IF(AND(INTRO!$E$37="Non-endemic",INTRO!$E$41="Non-endemic")," ",IF(COUNTRY_INFO!A31=0," ",COUNTRY_INFO!A31)) -> MALAWI | B31: =IF(AND(INTRO!$E$37="Non-endemic",INTRO!$E$41="Non-endemic")," ",IF(COUNTRY_INFO!B31=0," ",COUNTRY_INFO!B31)) -> South | C31: =IF(AND(INTRO!$E$37="Non-endemic",INTRO!$E$41="Non-endemic")," ",IF(COUNTRY_INFO!C31=0," ",COUNTRY_INFO!C31)) -> Mangochi | D31: =IF(AND(INTRO!$E$37="Non-endemic",INTRO!$E$41="Non-endemic"),0,COUNTRY_INFO!V31) -> 0 | E31: =IF(AND(INTRO!$E$37="Non-endemic",INTRO!$E$41="Non-endemic"),0,COUNTRY_INFO!X31) -> 0 | F31: =IF(INTRO!$E$39="Non-endemic",IF($D31=1,DEC!I31,0),IF($D31=1,IVM!G31,0)) -> 0 | G31: 1 | H31: =IF(OR(COUNTRY_INFO!N31="Unknown",COUNTRY_INFO!N31="Surveillance",COUNTRY_INFO!N31="Not required",COUNTRY_INFO!N31=0),0,IF(INTRO!$E$39="Non-endemic",IF(AND($E31<>0,$G31=""),IF($F31=0,COUNTRY_INFO!N31*$E31,COUNTRY_INFO!N31*($E31-$D31)),IF(AND($E31<>0,$G31<>0),IF($F31=0,COUNTRY_INFO!N31*$G31,COUNTRY_INFO!N31*($G31-$D31)),0)),IF($G31="",COUNTRY_INFO!N31*$E31,COUNTRY_INFO!N31*$G31))) -> 0 | I31: =IF(OR(COUNTRY_INFO!O31="Unknown",COUNTRY_INFO!O31="Surveillance",COUNTRY_INFO!O31="Not required",COUNTRY_INFO!O31=0),0,IF($E31<>0, IF($F31=0,COUNTRY_INFO!O31*$E31,COUNTRY_INFO!O31*($E31-$D31)),COUNTRY_INFO!O31*$E31)) -> 0 | J31: 1 | K31: =IF(OR(COUNTRY_INFO!P31="Unknown",COUNTRY_INFO!P31="Surveillance",COUNTRY_INFO!P31="Not required",COUNTRY_INFO!P31=0),0,IF(AND($E31<>0,$J31=""),IF($F31=0,COUNTRY_INFO!P31*$E31,COUNTRY_INFO!P31*($E31-$D31)), IF(AND($E31<>0,$J31<>0),IF($F31=0,COUNTRY_INFO!P31*$J31,COUNTRY_INFO!P31*($J31-$D31)), COUNTRY_INFO!P31*$J31))) -> 0 | L31: 0 | M31: 0 | O31: 0 | P31: 0 | R31: 0 | S31: 0 | U31: 0
A32: =IF(AND(INTRO!$E$37="Non-endemic",INTRO!$E$41="Non-endemic")," ",IF(COUNTRY_INFO!A32=0," ",COUNTRY_INFO!A32)) -> MALAWI | B32: =IF(AND(INTRO!$E$37="Non-endemic",INTRO!$E$41="Non-endemic")," ",IF(COUNTRY_INFO!B32=0," ",COUNTRY_INFO!B32)) -> South | C32: =IF(AND(INTRO!$E$37="Non-endemic",INTRO!$E$41="Non-endemic")," ",IF(COUNTRY_INFO!C32=0," ",COUNTRY_INFO!C32)) -> Mulanje | D32: =IF(AND(INTRO!$E$37="Non-endemic",INTRO!$E$41="Non-endemic"),0,COUNTRY_INFO!V32) -> 0 | E32: =IF(AND(INTRO!$E$37="Non-endemic",INTRO!$E$41="Non-endemic"),0,COUNTRY_INFO!X32) -> 0 | F32: =IF(INTRO!$E$39="Non-endemic",IF($D32=1,DEC!I32,0),IF($D32=1,IVM!G32,0)) -> 0 | G32: 1 | H32: =IF(OR(COUNTRY_INFO!N32="Unknown",COUNTRY_INFO!N32="Surveillance",COUNTRY_INFO!N32="Not required",COUNTRY_INFO!N32=0),0,IF(INTRO!$E$39="Non-endemic",IF(AND($E32<>0,$G32=""),IF($F32=0,COUNTRY_INFO!N32*$E32,COUNTRY_INFO!N32*($E32-$D32)),IF(AND($E32<>0,$G32<>0),IF($F32=0,COUNTRY_INFO!N32*$G32,COUNTRY_INFO!N32*($G32-$D32)),0)),IF($G32="",COUNTRY_INFO!N32*$E32,COUNTRY_INFO!N32*$G32))) -> 0 | I32: =IF(OR(COUNTRY_INFO!O32="Unknown",COUNTRY_INFO!O32="Surveillance",COUNTRY_INFO!O32="Not required",COUNTRY_INFO!O32=0),0,IF($E32<>0, IF($F32=0,COUNTRY_INFO!O32*$E32,COUNTRY_INFO!O32*($E32-$D32)),COUNTRY_INFO!O32*$E32)) -> 0 | J32: 1 | K32: =IF(OR(COUNTRY_INFO!P32="Unknown",COUNTRY_INFO!P32="Surveillance",COUNTRY_INFO!P32="Not required",COUNTRY_INFO!P32=0),0,IF(AND($E32<>0,$J32=""),IF($F32=0,COUNTRY_INFO!P32*$E32,COUNTRY_INFO!P32*($E32-$D32)), IF(AND($E32<>0,$J32<>0),IF($F32=0,COUNTRY_INFO!P32*$J32,COUNTRY_INFO!P32*($J32-$D32)), COUNTRY_INFO!P32*$J32))) -> 0 | L32: 0 | M32: 0 | O32: 0 | P32: 0 | R32: 0 | S32: 0 | U32: 0
A33: =IF(AND(INTRO!$E$37="Non-endemic",INTRO!$E$41="Non-endemic")," ",IF(COUNTRY_INFO!A33=0," ",COUNTRY_INFO!A33)) -> MALAWI | B33: =IF(AND(INTRO!$E$37="Non-endemic",INTRO!$E$41="Non-endemic")," ",IF(COUNTRY_INFO!B33=0," ",COUNTRY_INFO!B33)) -> South | C33: =IF(AND(INTRO!$E$37="Non-endemic",INTRO!$E$41="Non-endemic")," ",IF(COUNTRY_INFO!C33=0," ",COUNTRY_INFO!C33)) -> Nsanje | D33: =IF(AND(INTRO!$E$37="Non-endemic",INTRO!$E$41="Non-endemic"),0,COUNTRY_INFO!V33) -> 0 | E33: =IF(AND(INTRO!$E$37="Non-endemic",INTRO!$E$41="Non-endemic"),0,COUNTRY_INFO!X33) -> 0 | F33: =IF(INTRO!$E$39="Non-endemic",IF($D33=1,DEC!I33,0),IF($D33=1,IVM!G33,0)) -> 0 | G33: 1 | H33: =IF(OR(COUNTRY_INFO!N33="Unknown",COUNTRY_INFO!N33="Surveillance",COUNTRY_INFO!N33="Not required",COUNTRY_INFO!N33=0),0,IF(INTRO!$E$39="Non-endemic",IF(AND($E33<>0,$G33=""),IF($F33=0,COUNTRY_INFO!N33*$E33,COUNTRY_INFO!N33*($E33-$D33)),IF(AND($E33<>0,$G33<>0),IF($F33=0,COUNTRY_INFO!N33*$G33,COUNTRY_INFO!N33*($G33-$D33)),0)),IF($G33="",COUNTRY_INFO!N33*$E33,COUNTRY_INFO!N33*$G33))) -> 0 | I33: =IF(OR(COUNTRY_INFO!O33="Unknown",COUNTRY_INFO!O33="Surveillance",COUNTRY_INFO!O33="Not required",COUNTRY_INFO!O33=0),0,IF($E33<>0, IF($F33=0,COUNTRY_INFO!O33*$E33,COUNTRY_INFO!O33*($E33-$D33)),COUNTRY_INFO!O33*$E33)) -> 0 | J33: 1 | K33: =IF(OR(COUNTRY_INFO!P33="Unknown",COUNTRY_INFO!P33="Surveillance",COUNTRY_INFO!P33="Not required",COUNTRY_INFO!P33=0),0,IF(AND($E33<>0,$J33=""),IF($F33=0,COUNTRY_INFO!P33*$E33,COUNTRY_INFO!P33*($E33-$D33)), IF(AND($E33<>0,$J33<>0),IF($F33=0,COUNTRY_INFO!P33*$J33,COUNTRY_INFO!P33*($J33-$D33)), COUNTRY_INFO!P33*$J33))) -> 0 | L33: 0 | M33: 0 | O33: 0 | P33: 0 | R33: 0 | S33: 0 | U33: 0
A34: =IF(AND(INTRO!$E$37="Non-endemic",INTRO!$E$41="Non-endemic")," ",IF(COUNTRY_INFO!A34=0," ",COUNTRY_INFO!A34)) -> MALAWI | B34: =IF(AND(INTRO!$E$37="Non-endemic",INTRO!$E$41="Non-endemic")," ",IF(COUNTRY_INFO!B34=0," ",COUNTRY_INFO!B34)) -> South | C34: =IF(AND(INTRO!$E$37="Non-endemic",INTRO!$E$41="Non-endemic")," ",IF(COUNTRY_INFO!C34=0," ",COUNTRY_INFO!C34)) -> Phalombe | D34: =IF(AND(INTRO!$E$37="Non-endemic",INTRO!$E$41="Non-endemic"),0,COUNTRY_INFO!V34) -> 0 | E34: =IF(AND(INTRO!$E$37="Non-endemic",INTRO!$E$41="Non-endemic"),0,COUNTRY_INFO!X34) -> 0 | F34: =IF(INTRO!$E$39="Non-endemic",IF($D34=1,DEC!I34,0),IF($D34=1,IVM!G34,0)) -> 0 | G34: 1 | H34: =IF(OR(COUNTRY_INFO!N34="Unknown",COUNTRY_INFO!N34="Surveillance",COUNTRY_INFO!N34="Not required",COUNTRY_INFO!N34=0),0,IF(INTRO!$E$39="Non-endemic",IF(AND($E34<>0,$G34=""),IF($F34=0,COUNTRY_INFO!N34*$E34,COUNTRY_INFO!N34*($E34-$D34)),IF(AND($E34<>0,$G34<>0),IF($F34=0,COUNTRY_INFO!N34*$G34,COUNTRY_INFO!N34*($G34-$D34)),0)),IF($G34="",COUNTRY_INFO!N34*$E34,COUNTRY_INFO!N34*$G34))) -> 0 | I34: =IF(OR(COUNTRY_INFO!O34="Unknown",COUNTRY_INFO!O34="Surveillance",COUNTRY_INFO!O34="Not required",COUNTRY_INFO!O34=0),0,IF($E34<>0, IF($F34=0,COUNTRY_INFO!O34*$E34,COUNTRY_INFO!O34*($E34-$D34)),COUNTRY_INFO!O34*$E34)) -> 0 | J34: 1 | K34: =IF(OR(COUNTRY_INFO!P34="Unknown",COUNTRY_INFO!P34="Surveillance",COUNTRY_INFO!P34="Not required",COUNTRY_INFO!P34=0),0,IF(AND($E34<>0,$J34=""),IF($F34=0,COUNTRY_INFO!P34*$E34,COUNTRY_INFO!P34*($E34-$D34)), IF(AND($E34<>0,$J34<>0),IF($F34=0,COUNTRY_INFO!P34*$J34,COUNTRY_INFO!P34*($J34-$D34)), COUNTRY_INFO!P34*$J34))) -> 0 | L34: 0 | M34: 0 | O34: 0 | P34: 0 | R34: 0 | S34: 0 | U34: 0
A35: =IF(AND(INTRO!$E$37="Non-endemic",INTRO!$E$41="Non-endemic")," ",IF(COUNTRY_INFO!A35=0," ",COUNTRY_INFO!A35)) -> MALAWI | B35: =IF(AND(INTRO!$E$37="Non-endemic",INTRO!$E$41="Non-endemic")," ",IF(COUNTRY_INFO!B35=0," ",COUNTRY_INFO!B35)) -> South | C35: =IF(AND(INTRO!$E$37="Non-endemic",INTRO!$E$41="Non-endemic")," ",IF(COUNTRY_INFO!C35=0," ",COUNTRY_INFO!C35)) -> Thyolo | D35: =IF(AND(INTRO!$E$37="Non-endemic",INTRO!$E$41="Non-endemic"),0,COUNTRY_INFO!V35) -> 0 | E35: =IF(AND(INTRO!$E$37="Non-endemic",INTRO!$E$41="Non-endemic"),0,COUNTRY_INFO!X35) -> 0 | F35: =IF(INTRO!$E$39="Non-endemic",IF($D35=1,DEC!I35,0),IF($D35=1,IVM!G35,0)) -> 0 | G35: 1 | H35: =IF(OR(COUNTRY_INFO!N35="Unknown",COUNTRY_INFO!N35="Surveillance",COUNTRY_INFO!N35="Not required",COUNTRY_INFO!N35=0),0,IF(INTRO!$E$39="Non-endemic",IF(AND($E35<>0,$G35=""),IF($F35=0,COUNTRY_INFO!N35*$E35,COUNTRY_INFO!N35*($E35-$D35)),IF(AND($E35<>0,$G35<>0),IF($F35=0,COUNTRY_INFO!N35*$G35,COUNTRY_INFO!N35*($G35-$D35)),0)),IF($G35="",COUNTRY_INFO!N35*$E35,COUNTRY_INFO!N35*$G35))) -> 0 | I35: =IF(OR(COUNTRY_INFO!O35="Unknown",COUNTRY_INFO!O35="Surveillance",COUNTRY_INFO!O35="Not required",COUNTRY_INFO!O35=0),0,IF($E35<>0, IF($F35=0,COUNTRY_INFO!O35*$E35,COUNTRY_INFO!O35*($E35-$D35)),COUNTRY_INFO!O35*$E35)) -> 0 | J35: 1 | K35: =IF(OR(COUNTRY_INFO!P35="Unknown",COUNTRY_INFO!P35="Surveillance",COUNTRY_INFO!P35="Not required",COUNTRY_INFO!P35=0),0,IF(AND($E35<>0,$J35=""),IF($F35=0,COUNTRY_INFO!P35*$E35,COUNTRY_INFO!P35*($E35-$D35)), IF(AND($E35<>0,$J35<>0),IF($F35=0,COUNTRY_INFO!P35*$J35,COUNTRY_INFO!P35*($J35-$D35)), COUNTRY_INFO!P35*$J35))) -> 0 | L35: 0 | M35: 0 | O35: 0 | P35: 0 | R35: 0 | S35: 0 | U35: 0
A36: =IF(AND(INTRO!$E$37="Non-endemic",INTRO!$E$41="Non-endemic")," ",IF(COUNTRY_INFO!A36=0," ",COUNTRY_INFO!A36)) -> MALAWI | B36: =IF(AND(INTRO!$E$37="Non-endemic",INTRO!$E$41="Non-endemic")," ",IF(COUNTRY_INFO!B36=0," ",COUNTRY_INFO!B36)) -> South | C36: =IF(AND(INTRO!$E$37="Non-endemic",INTRO!$E$41="Non-endemic")," ",IF(COUNTRY_INFO!C36=0," ",COUNTRY_INFO!C36)) -> Zomba | D36: =IF(AND(INTRO!$E$37="Non-endemic",INTRO!$E$41="Non-endemic"),0,COUNTRY_INFO!V36) -> 0 | E36: =IF(AND(INTRO!$E$37="Non-endemic",INTRO!$E$41="Non-endemic"),0,COUNTRY_INFO!X36) -> 0 | F36: =IF(INTRO!$E$39="Non-endemic",IF($D36=1,DEC!I36,0),IF($D36=1,IVM!G36,0)) -> 0 | G36: 1 | H36: =IF(OR(COUNTRY_INFO!N36="Unknown",COUNTRY_INFO!N36="Surveillance",COUNTRY_INFO!N36="Not required",COUNTRY_INFO!N36=0),0,IF(INTRO!$E$39="Non-endemic",IF(AND($E36<>0,$G36=""),IF($F36=0,COUNTRY_INFO!N36*$E36,COUNTRY_INFO!N36*($E36-$D36)),IF(AND($E36<>0,$G36<>0),IF($F36=0,COUNTRY_INFO!N36*$G36,COUNTRY_INFO!N36*($G36-$D36)),0)),IF($G36="",COUNTRY_INFO!N36*$E36,COUNTRY_INFO!N36*$G36))) -> 0 | I36: =IF(OR(COUNTRY_INFO!O36="Unknown",COUNTRY_INFO!O36="Surveillance",COUNTRY_INFO!O36="Not required",COUNTRY_INFO!O36=0),0,IF($E36<>0, IF($F36=0,COUNTRY_INFO!O36*$E36,COUNTRY_INFO!O36*($E36-$D36)),COUNTRY_INFO!O36*$E36)) -> 0 | J36: 1 | K36: =IF(OR(COUNTRY_INFO!P36="Unknown",COUNTRY_INFO!P36="Surveillance",COUNTRY_INFO!P36="Not required",COUNTRY_INFO!P36=0),0,IF(AND($E36<>0,$J36=""),IF($F36=0,COUNTRY_INFO!P36*$E36,COUNTRY_INFO!P36*($E36-$D36)), IF(AND($E36<>0,$J36<>0),IF($F36=0,COUNTRY_INFO!P36*$J36,COUNTRY_INFO!P36*($J36-$D36)), COUNTRY_INFO!P36*$J36))) -> 0 | L36: 0 | M36: 0 | O36: 0 | P36: 0 | R36: 0 | S36: 0 | U36: 0
A37: =IF(AND(INTRO!$E$37="Non-endemic",INTRO!$E$41="Non-endemic")," ",IF(COUNTRY_INFO!A37=0," ",COUNTRY_INFO!A37)) -> MALAWI | B37: =IF(AND(INTRO!$E$37="Non-endemic",INTRO!$E$41="Non-endemic")," ",IF(COUNTRY_INFO!B37=0," ",COUNTRY_INFO!B37)) -> South | C37: =IF(AND(INTRO!$E$37="Non-endemic",INTRO!$E$41="Non-endemic")," ",IF(COUNTRY_INFO!C37=0," ",COUNTRY_INFO!C37)) -> Neno | D37: =IF(AND(INTRO!$E$37="Non-endemic",INTRO!$E$41="Non-endemic"),0,COUNTRY_INFO!V37) -> 0 | E37: =IF(AND(INTRO!$E$37="Non-endemic",INTRO!$E$41="Non-endemic"),0,COUNTRY_INFO!X37) -> 1 | F37: =IF(INTRO!$E$39="Non-endemic",IF($D37=1,DEC!I37,0),IF($D37=1,IVM!G37,0)) -> 0 | G37: 1 | H37: =IF(OR(COUNTRY_INFO!N37="Unknown",COUNTRY_INFO!N37="Surveillance",COUNTRY_INFO!N37="Not required",COUNTRY_INFO!N37=0),0,IF(INTRO!$E$39="Non-endemic",IF(AND($E37<>0,$G37=""),IF($F37=0,COUNTRY_INFO!N37*$E37,COUNTRY_INFO!N37*($E37-$D37)),IF(AND($E37<>0,$G37<>0),IF($F37=0,COUNTRY_INFO!N37*$G37,COUNTRY_INFO!N37*($G37-$D37)),0)),IF($G37="",COUNTRY_INFO!N37*$E37,COUNTRY_INFO!N37*$G37))) -> 0 | I37: =IF(OR(COUNTRY_INFO!O37="Unknown",COUNTRY_INFO!O37="Surveillance",COUNTRY_INFO!O37="Not required",COUNTRY_INFO!O37=0),0,IF($E37<>0, IF($F37=0,COUNTRY_INFO!O37*$E37,COUNTRY_INFO!O37*($E37-$D37)),COUNTRY_INFO!O37*$E37)) -> 54086 | J37: 1 | K37: =IF(OR(COUNTRY_INFO!P37="Unknown",COUNTRY_INFO!P37="Surveillance",COUNTRY_INFO!P37="Not required",COUNTRY_INFO!P37=0),0,IF(AND($E37<>0,$J37=""),IF($F37=0,COUNTRY_INFO!P37*$E37,COUNTRY_INFO!P37*($E37-$D37)), IF(AND($E37<>0,$J37<>0),IF($F37=0,COUNTRY_INFO!P37*$J37,COUNTRY_INFO!P37*($J37-$D37)), COUNTRY_INFO!P37*$J37))) -> 0 | L37: 54086 | M37: 0 | O37: 0 | P37: 54086 | R37: 54086 | S37: 0 | U37: 0
A38: =IF(AND(INTRO!$E$37="Non-endemic",INTRO!$E$41="Non-endemic")," ",IF(COUNTRY_INFO!A38=0," ",COUNTRY_INFO!A38)) -> MALAWI | B38: =IF(AND(INTRO!$E$37="Non-endemic",INTRO!$E$41="Non-endemic")," ",IF(COUNTRY_INFO!B38=0," ",COUNTRY_INFO!B38)) -> South | C38: =IF(AND(INTRO!$E$37="Non-endemic",INTRO!$E$41="Non-endemic")," ",IF(COUNTRY_INFO!C38=0," ",COUNTRY_INFO!C38)) -> Mwanza | D38: =IF(AND(INTRO!$E$37="Non-endemic",INTRO!$E$41="Non-endemic"),0,COUNTRY_INFO!V38) -> 0 | E38: =IF(AND(INTRO!$E$37="Non-endemic",INTRO!$E$41="Non-endemic"),0,COUNTRY_INFO!X38) -> 0 | F38: =IF(INTRO!$E$39="Non-endemic",IF($D38=1,DEC!I38,0),IF($D38=1,IVM!G38,0)) -> 0 | G38: 1 | H38: =IF(OR(COUNTRY_INFO!N38="Unknown",COUNTRY_INFO!N38="Surveillance",COUNTRY_INFO!N38="Not required",COUNTRY_INFO!N38=0),0,IF(INTRO!$E$39="Non-endemic",IF(AND($E38<>0,$G38=""),IF($F38=0,COUNTRY_INFO!N38*$E38,COUNTRY_INFO!N38*($E38-$D38)),IF(AND($E38<>0,$G38<>0),IF($F38=0,COUNTRY_INFO!N38*$G38,COUNTRY_INFO!N38*($G38-$D38)),0)),IF($G38="",COUNTRY_INFO!N38*$E38,COUNTRY_INFO!N38*$G38))) -> 0 | I38: =IF(OR(COUNTRY_INFO!O38="Unknown",COUNTRY_INFO!O38="Surveillance",COUNTRY_INFO!O38="Not required",COUNTRY_INFO!O38=0),0,IF($E38<>0, IF($F38=0,COUNTRY_INFO!O38*$E38,COUNTRY_INFO!O38*($E38-$D38)),COUNTRY_INFO!O38*$E38)) -> 0 | J38: 1 | K38: =IF(OR(COUNTRY_INFO!P38="Unknown",COUNTRY_INFO!P38="Surveillance",COUNTRY_INFO!P38="Not required",COUNTRY_INFO!P38=0),0,IF(AND($E38<>0,$J38=""),IF($F38=0,COUNTRY_INFO!P38*$E38,COUNTRY_INFO!P38*($E38-$D38)), IF(AND($E38<>0,$J38<>0),IF($F38=0,COUNTRY_INFO!P38*$J38,COUNTRY_INFO!P38*($J38-$D38)), COUNTRY_INFO!P38*$J38))) -> 0 | L38: 0 | M38: 0 | O38: 0 | P38: 0 | R38: 0 | S38: 0 | U38: 0

Sheet PZQ
A1: Praziquantel (PZQ)
A2: Administrative structure, eligible population by age group, treatment plan and information about tablets
A4: TOTAL | E4: =SUBTOTAL(9,E$10:E$1010) -> 1075377 | F4: 3348548 | G4: 0 | H4: 4423925 | J4: 191461 | M4: =SUBTOTAL(9,M$10:M$1010) -> 0 | N4: 6748226 | O4: 0 | P4: 6748226 | Q4: 0 | R4: 6748226
A6: Country administrative structure | D6: Treatment plan SCH | E6: Target population for SCH | I6: Hot spots | K6: Previous year MDA | M6: Praziquantel (PZQ)
A7: Country | B7: Province/State | C7: District | E7: PreSAC | F7: SAC | G7: Adults | H7: Total | I7: Planned | J7: Population | K7: Rounds | L7: Age groups | M7: PreSAC | N7: SAC | O7: Adults | P7: Total required | Q7: Remaining in stock | R7: Tablets to be procured
A10: =IF(INTRO!$E$43="Non-endemic"," ", IF(COUNTRY_INFO!A10=0," ",COUNTRY_INFO!A10)) -> MALAWI | B10: =IF(INTRO!$E$43="Non-endemic"," ", IF(COUNTRY_INFO!B10=0," ",COUNTRY_INFO!B10)) -> North | C10: =IF(INTRO!$E$43="Non-endemic"," ", IF(COUNTRY_INFO!C10=0," ",COUNTRY_INFO!C10)) -> Chitipa | D10: =IF(INTRO!$E$43="Non-endemic", "Not required", COUNTRY_INFO!Y10) -> 1 | E10: =IF(OR(COUNTRY_INFO!R10="Unknown",COUNTRY_INFO!R10="Surveillance",COUNTRY_INFO!R10="Not required",COUNTRY_INFO!R10=0),0,IF($D10<>0, COUNTRY_INFO!R10,0)) -> 15176 | F10: 47259 | H10: =SUM(E10:G10) -> 62435 | N10: =IF($I10<>"Yes",$F10*2,($F10+ROUND(J10*$F10/SUM(COUNTRY_INFO!$E10:$G10),0))*2) -> 94518 | O10: =IF($I10<>"Yes",$G10*3,($G10+ROUND(J10*$G10/SUM(COUNTRY_INFO!$E10:$G10),0))*3) -> 0 | P10: =SUM(M10:O10) -> 94518 | R10: =IF($P10>$Q10,P10-Q10,0) -> 94518
A11: =IF(INTRO!$E$43="Non-endemic"," ", IF(COUNTRY_INFO!A11=0," ",COUNTRY_INFO!A11)) -> MALAWI | B11: =IF(INTRO!$E$43="Non-endemic"," ", IF(COUNTRY_INFO!B11=0," ",COUNTRY_INFO!B11)) -> North | C11: =IF(INTRO!$E$43="Non-endemic"," ", IF(COUNTRY_INFO!C11=0," ",COUNTRY_INFO!C11)) -> Karonga | D11: =IF(INTRO!$E$43="Non-endemic", "Not required", COUNTRY_INFO!Y11) -> 1 | E11: =IF(OR(COUNTRY_INFO!R11="Unknown",COUNTRY_INFO!R11="Surveillance",COUNTRY_INFO!R11="Not required",COUNTRY_INFO!R11=0),0,IF($D11<>0, COUNTRY_INFO!R11,0)) -> 18111 | F11: 56393 | H11: =SUM(E11:G11) -> 74504 | N11: =IF($I11<>"Yes",$F11*2,($F11+ROUND(J11*$F11/SUM(COUNTRY_INFO!$E11:$G11),0))*2) -> 112786 | O11: =IF($I11<>"Yes",$G11*3,($G11+ROUND(J11*$G11/SUM(COUNTRY_INFO!$E11:$G11),0))*3) -> 0 | P11: =SUM(M11:O11) -> 112786 | R11: =IF($P11>$Q11,P11-Q11,0) -> 112786
A12: =IF(INTRO!$E$43="Non-endemic"," ", IF(COUNTRY_INFO!A12=0," ",COUNTRY_INFO!A12)) -> MALAWI | B12: =IF(INTRO!$E$43="Non-endemic"," ", IF(COUNTRY_INFO!B12=0," ",COUNTRY_INFO!B12)) -> North | C12: =IF(INTRO!$E$43="Non-endemic"," ", IF(COUNTRY_INFO!C12=0," ",COUNTRY_INFO!C12)) -> Rumphi | D12: =IF(INTRO!$E$43="Non-endemic", "Not required", COUNTRY_INFO!Y12) -> 1 | E12: =IF(OR(COUNTRY_INFO!R12="Unknown",COUNTRY_INFO!R12="Surveillance",COUNTRY_INFO!R12="Not required",COUNTRY_INFO!R12=0),0,IF($D12<>0, COUNTRY_INFO!R12,0)) -> 3835 | F12: 11943 | H12: 15778 | N12: =IF($I12<>"Yes",$F12*2,($F12+ROUND(J12*$F12/SUM(COUNTRY_INFO!$E12:$G12),0))*2) -> 23886 | O12: =IF($I12<>"Yes",$G12*3,($G12+ROUND(J12*$G12/SUM(COUNTRY_INFO!$E12:$G12),0))*3) -> 0 | P12: 23886 | R12: 23886
A13: =IF(INTRO!$E$43="Non-endemic"," ", IF(COUNTRY_INFO!A13=0," ",COUNTRY_INFO!A13)) -> MALAWI | B13: =IF(INTRO!$E$43="Non-endemic"," ", IF(COUNTRY_INFO!B13=0," ",COUNTRY_INFO!B13)) -> North | C13: =IF(INTRO!$E$43="Non-endemic"," ", IF(COUNTRY_INFO!C13=0," ",COUNTRY_INFO!C13)) -> Mzimba North | D13: =IF(INTRO!$E$43="Non-endemic", "Not required", COUNTRY_INFO!Y13) -> 1 | E13: =IF(OR(COUNTRY_INFO!R13="Unknown",COUNTRY_INFO!R13="Surveillance",COUNTRY_INFO!R13="Not required",COUNTRY_INFO!R13=0),0,IF($D13<>0, COUNTRY_INFO!R13,0)) -> 48246 | F13: 150232 | H13: 198478 | N13: =IF($I13<>"Yes",$F13*2,($F13+ROUND(J13*$F13/SUM(COUNTRY_INFO!$E13:$G13),0))*2) -> 300464 | O13: =IF($I13<>"Yes",$G13*3,($G13+ROUND(J13*$G13/SUM(COUNTRY_INFO!$E13:$G13),0))*3) -> 0 | P13: 300464 | R13: 300464
A14: =IF(INTRO!$E$43="Non-endemic"," ", IF(COUNTRY_INFO!A14=0," ",COUNTRY_INFO!A14)) -> MALAWI | B14: =IF(INTRO!$E$43="Non-endemic"," ", IF(COUNTRY_INFO!B14=0," ",COUNTRY_INFO!B14)) -> North | C14: =IF(INTRO!$E$43="Non-endemic"," ", IF(COUNTRY_INFO!C14=0," ",COUNTRY_INFO!C14)) -> Mzimba South | D14: =IF(INTRO!$E$43="Non-endemic", "Not required", COUNTRY_INFO!Y14) -> 1 | E14: =IF(OR(COUNTRY_INFO!R14="Unknown",COUNTRY_INFO!R14="Surveillance",COUNTRY_INFO!R14="Not required",COUNTRY_INFO!R14=0),0,IF($D14<>0, COUNTRY_INFO!R14,0)) -> 11352 | F14: 35349 | H14: 46701 | N14: =IF($I14<>"Yes",$F14*2,($F14+ROUND(J14*$F14/SUM(COUNTRY_INFO!$E14:$G14),0))*2) -> 70698 | O14: =IF($I14<>"Yes",$G14*3,($G14+ROUND(J14*$G14/SUM(COUNTRY_INFO!$E14:$G14),0))*3) -> 0 | P14: 70698 | R14: 70698
A15: =IF(INTRO!$E$43="Non-endemic"," ", IF(COUNTRY_INFO!A15=0," ",COUNTRY_INFO!A15)) -> MALAWI | B15: =IF(INTRO!$E$43="Non-endemic"," ", IF(COUNTRY_INFO!B15=0," ",COUNTRY_INFO!B15)) -> North | C15: =IF(INTRO!$E$43="Non-endemic"," ", IF(COUNTRY_INFO!C15=0," ",COUNTRY_INFO!C15)) -> Nkhata bay | D15: =IF(INTRO!$E$43="Non-endemic", "Not required", COUNTRY_INFO!Y15) -> 1 | E15: =IF(OR(COUNTRY_INFO!R15="Unknown",COUNTRY_INFO!R15="Surveillance",COUNTRY_INFO!R15="Not required",COUNTRY_INFO!R15=0),0,IF($D15<>0, COUNTRY_INFO!R15,0)) -> 17985 | F15: 55997 | H15: 73982 | N15: =IF($I15<>"Yes",$F15*2,($F15+ROUND(J15*$F15/SUM(COUNTRY_INFO!$E15:$G15),0))*2) -> 111994 | O15: =IF($I15<>"Yes",$G15*3,($G15+ROUND(J15*$G15/SUM(COUNTRY_INFO!$E15:$G15),0))*3) -> 0 | P15: 111994 | R15: 111994
A16: =IF(INTRO!$E$43="Non-endemic"," ", IF(COUNTRY_INFO!A16=0," ",COUNTRY_INFO!A16)) -> MALAWI | B16: =IF(INTRO!$E$43="Non-endemic"," ", IF(COUNTRY_INFO!B16=0," ",COUNTRY_INFO!B16)) -> North | C16: =IF(INTRO!$E$43="Non-endemic"," ", IF(COUNTRY_INFO!C16=0," ",COUNTRY_INFO!C16)) -> Likoma | D16: =IF(INTRO!$E$43="Non-endemic", "Not required", COUNTRY_INFO!Y16) -> 1 | E16: =IF(OR(COUNTRY_INFO!R16="Unknown",COUNTRY_INFO!R16="Surveillance",COUNTRY_INFO!R16="Not required",COUNTRY_INFO!R16=0),0,IF($D16<>0, COUNTRY_INFO!R16,0)) -> 1357 | F16: 4224 | H16: 5581 | N16: =IF($I16<>"Yes",$F16*2,($F16+ROUND(J16*$F16/SUM(COUNTRY_INFO!$E16:$G16),0))*2) -> 8448 | O16: =IF($I16<>"Yes",$G16*3,($G16+ROUND(J16*$G16/SUM(COUNTRY_INFO!$E16:$G16),0))*3) -> 0 | P16: 8448 | R16: 8448
A17: =IF(INTRO!$E$43="Non-endemic"," ", IF(COUNTRY_INFO!A17=0," ",COUNTRY_INFO!A17)) -> MALAWI | B17: =IF(INTRO!$E$43="Non-endemic"," ", IF(COUNTRY_INFO!B17=0," ",COUNTRY_INFO!B17)) -> Central | C17: =IF(INTRO!$E$43="Non-endemic"," ", IF(COUNTRY_INFO!C17=0," ",COUNTRY_INFO!C17)) -> Kasungu | D17: =IF(INTRO!$E$43="Non-endemic", "Not required", COUNTRY_INFO!Y17) -> 1 | E17: =IF(OR(COUNTRY_INFO!R17="Unknown",COUNTRY_INFO!R17="Surveillance",COUNTRY_INFO!R17="Not required",COUNTRY_INFO!R17=0),0,IF($D17<>0, COUNTRY_INFO!R17,0)) -> 56826 | F17: 176946 | H17: 233772 | N17: =IF($I17<>"Yes",$F17*2,($F17+ROUND(J17*$F17/SUM(COUNTRY_INFO!$E17:$G17),0))*2) -> 353892 | O17: =IF($I17<>"Yes",$G17*3,($G17+ROUND(J17*$G17/SUM(COUNTRY_INFO!$E17:$G17),0))*3) -> 0 | P17: 353892 | R17: 353892
A18: =IF(INTRO!$E$43="Non-endemic"," ", IF(COUNTRY_INFO!A18=0," ",COUNTRY_INFO!A18)) -> MALAWI | B18: =IF(INTRO!$E$43="Non-endemic"," ", IF(COUNTRY_INFO!B18=0," ",COUNTRY_INFO!B18)) -> Central | C18: =IF(INTRO!$E$43="Non-endemic"," ", IF(COUNTRY_INFO!C18=0," ",COUNTRY_INFO!C18)) -> Dedza | D18: =IF(INTRO!$E$43="Non-endemic", "Not required", COUNTRY_INFO!Y18) -> 1 | E18: =IF(OR(COUNTRY_INFO!R18="Unknown",COUNTRY_INFO!R18="Surveillance",COUNTRY_INFO!R18="Not required",COUNTRY_INFO!R18=0),0,IF($D18<>0, COUNTRY_INFO!R18,0)) -> 52942 | F18: 164853 | H18: 217795 | N18: =IF($I18<>"Yes",$F18*2,($F18+ROUND(J18*$F18/SUM(COUNTRY_INFO!$E18:$G18),0))*2) -> 329706 | O18: =IF($I18<>"Yes",$G18*3,($G18+ROUND(J18*$G18/SUM(COUNTRY_INFO!$E18:$G18),0))*3) -> 0 | P18: 329706 | R18: 329706
A19: =IF(INTRO!$E$43="Non-endemic"," ", IF(COUNTRY_INFO!A19=0," ",COUNTRY_INFO!A19)) -> MALAWI | B19: =IF(INTRO!$E$43="Non-endemic"," ", IF(COUNTRY_INFO!B19=0," ",COUNTRY_INFO!B19)) -> Central | C19: =IF(INTRO!$E$43="Non-endemic"," ", IF(COUNTRY_INFO!C19=0," ",COUNTRY_INFO!C19)) -> Dowa | D19: =IF(INTRO!$E$43="Non-endemic", "Not required", COUNTRY_INFO!Y19) -> 1 | E19: =IF(OR(COUNTRY_INFO!R19="Unknown",COUNTRY_INFO!R19="Surveillance",COUNTRY_INFO!R19="Not required",COUNTRY_INFO!R19=0),0,IF($D19<>0, COUNTRY_INFO!R19,0)) -> 10859 | F19: 33812 | H19: 44671 | N19: =IF($I19<>"Yes",$F19*2,($F19+ROUND(J19*$F19/SUM(COUNTRY_INFO!$E19:$G19),0))*2) -> 67624 | O19: =IF($I19<>"Yes",$G19*3,($G19+ROUND(J19*$G19/SUM(COUNTRY_INFO!$E19:$G19),0))*3) -> 0 | P19: 67624 | R19: 67624
A20: =IF(INTRO!$E$43="Non-endemic"," ", IF(COUNTRY_INFO!A20=0," ",COUNTRY_INFO!A20)) -> MALAWI | B20: =IF(INTRO!$E$43="Non-endemic"," ", IF(COUNTRY_INFO!B20=0," ",COUNTRY_INFO!B20)) -> Central | C20: =IF(INTRO!$E$43="Non-endemic"," ", IF(COUNTRY_INFO!C20=0," ",COUNTRY_INFO!C20)) -> Lilongwe | D20: =IF(INTRO!$E$43="Non-endemic", "Not required", COUNTRY_INFO!Y20) -> 1 | E20: =IF(OR(COUNTRY_INFO!R20="Unknown",COUNTRY_INFO!R20="Surveillance",COUNTRY_INFO!R20="Not required",COUNTRY_INFO!R20=0),0,IF($D20<>0, COUNTRY_INFO!R20,0)) -> 140987 | F20: 439008 | H20: 579995 | I20: Yes | J20: 31400 | N20: =IF($I20<>"Yes",$F20*2,($F20+ROUND(J20*$F20/SUM(COUNTRY_INFO!$E20:$G20),0))*2) -> 888776 | O20: =IF($I20<>"Yes",$G20*3,($G20+ROUND(J20*$G20/SUM(COUNTRY_INFO!$E20:$G20),0))*3) -> 0 | P20: 888776 | R20: 888776
A21: =IF(INTRO!$E$43="Non-endemic"," ", IF(COUNTRY_INFO!A21=0," ",COUNTRY_INFO!A21)) -> MALAWI | B21: =IF(INTRO!$E$43="Non-endemic"," ", IF(COUNTRY_INFO!B21=0," ",COUNTRY_INFO!B21)) -> Central | C21: =IF(INTRO!$E$43="Non-endemic"," ", IF(COUNTRY_INFO!C21=0," ",COUNTRY_INFO!C21)) -> Mchinji | D21: =IF(INTRO!$E$43="Non-endemic", "Not required", COUNTRY_INFO!Y21) -> 1 | E21: =IF(OR(COUNTRY_INFO!R21="Unknown",COUNTRY_INFO!R21="Surveillance",COUNTRY_INFO!R21="Not required",COUNTRY_INFO!R21=0),0,IF($D21<>0, COUNTRY_INFO!R21,0)) -> 15227 | F21: 47414 | H21: 62641 | N21: =IF($I21<>"Yes",$F21*2,($F21+ROUND(J21*$F21/SUM(COUNTRY_INFO!$E21:$G21),0))*2) -> 94828 | O21: =IF($I21<>"Yes",$G21*3,($G21+ROUND(J21*$G21/SUM(COUNTRY_INFO!$E21:$G21),0))*3) -> 0 | P21: 94828 | R21: 94828
A22: =IF(INTRO!$E$43="Non-endemic"," ", IF(COUNTRY_INFO!A22=0," ",COUNTRY_INFO!A22)) -> MALAWI | B22: =IF(INTRO!$E$43="Non-endemic"," ", IF(COUNTRY_INFO!B22=0," ",COUNTRY_INFO!B22)) -> Central | C22: =IF(INTRO!$E$43="Non-endemic"," ", IF(COUNTRY_INFO!C22=0," ",COUNTRY_INFO!C22)) -> Salima | D22: =IF(INTRO!$E$43="Non-endemic", "Not required", COUNTRY_INFO!Y22) -> 1 | E22: =IF(OR(COUNTRY_INFO!R22="Unknown",COUNTRY_INFO!R22="Surveillance",COUNTRY_INFO!R22="Not required",COUNTRY_INFO!R22=0),0,IF($D22<>0, COUNTRY_INFO!R22,0)) -> 31230 | F22: 97249 | H22: 128479 | N22: =IF($I22<>"Yes",$F22*2,($F22+ROUND(J22*$F22/SUM(COUNTRY_INFO!$E22:$G22),0))*2) -> 194498 | O22: =IF($I22<>"Yes",$G22*3,($G22+ROUND(J22*$G22/SUM(COUNTRY_INFO!$E22:$G22),0))*3) -> 0 | P22: 194498 | R22: 194498
A23: =IF(INTRO!$E$43="Non-endemic"," ", IF(COUNTRY_INFO!A23=0," ",COUNTRY_INFO!A23)) -> MALAWI | B23: =IF(INTRO!$E$43="Non-endemic"," ", IF(COUNTRY_INFO!B23=0," ",COUNTRY_INFO!B23)) -> Central | C23: =IF(INTRO!$E$43="Non-endemic"," ", IF(COUNTRY_INFO!C23=0," ",COUNTRY_INFO!C23)) -> Nkhotakota | D23: =IF(INTRO!$E$43="Non-endemic", "Not required", COUNTRY_INFO!Y23) -> 1 | E23: =IF(OR(COUNTRY_INFO!R23="Unknown",COUNTRY_INFO!R23="Surveillance",COUNTRY_INFO!R23="Not required",COUNTRY_INFO!R23=0),0,IF($D23<>0, COUNTRY_INFO!R23,0)) -> 40378 | F23: 125732 | H23: 166110 | I23: Yes | J23: 61555 | N23: =IF($I23<>"Yes",$F23*2,($F23+ROUND(J23*$F23/SUM(COUNTRY_INFO!$E23:$G23),0))*2) -> 291834 | O23: =IF($I23<>"Yes",$G23*3,($G23+ROUND(J23*$G23/SUM(COUNTRY_INFO!$E23:$G23),0))*3) -> 0 | P23: 291834 | R23: 291834
A24: =IF(INTRO!$E$43="Non-endemic"," ", IF(COUNTRY_INFO!A24=0," ",COUNTRY_INFO!A24)) -> MALAWI | B24: =IF(INTRO!$E$43="Non-endemic"," ", IF(COUNTRY_INFO!B24=0," ",COUNTRY_INFO!B24)) -> Central | C24: =IF(INTRO!$E$43="Non-endemic"," ", IF(COUNTRY_INFO!C24=0," ",COUNTRY_INFO!C24)) -> Ntchisi | D24: =IF(INTRO!$E$43="Non-endemic", "Not required", COUNTRY_INFO!Y24) -> 1 | E24: =IF(OR(COUNTRY_INFO!R24="Unknown",COUNTRY_INFO!R24="Surveillance",COUNTRY_INFO!R24="Not required",COUNTRY_INFO!R24=0),0,IF($D24<>0, COUNTRY_INFO!R24,0)) -> 15374 | F24: 47872 | H24: 63246 | N24: =IF($I24<>"Yes",$F24*2,($F24+ROUND(J24*$F24/SUM(COUNTRY_INFO!$E24:$G24),0))*2) -> 95744 | O24: =IF($I24<>"Yes",$G24*3,($G24+ROUND(J24*$G24/SUM(COUNTRY_INFO!$E24:$G24),0))*3) -> 0 | P24: 95744 | R24: 95744
A25: =IF(INTRO!$E$43="Non-endemic"," ", IF(COUNTRY_INFO!A25=0," ",COUNTRY_INFO!A25)) -> MALAWI | B25: =IF(INTRO!$E$43="Non-endemic"," ", IF(COUNTRY_INFO!B25=0," ",COUNTRY_INFO!B25)) -> Central | C25: =IF(INTRO!$E$43="Non-endemic"," ", IF(COUNTRY_INFO!C25=0," ",COUNTRY_INFO!C25)) -> Ntcheu | D25: =IF(INTRO!$E$43="Non-endemic", "Not required", COUNTRY_INFO!Y25) -> 1 | E25: =IF(OR(COUNTRY_INFO!R25="Unknown",COUNTRY_INFO!R25="Surveillance",COUNTRY_INFO!R25="Not required",COUNTRY_INFO!R25=0),0,IF($D25<>0, COUNTRY_INFO!R25,0)) -> 19796 | F25: 61641 | H25: 81437 | N25: =IF($I25<>"Yes",$F25*2,($F25+ROUND(J25*$F25/SUM(COUNTRY_INFO!$E25:$G25),0))*2) -> 123282 | O25: =IF($I25<>"Yes",$G25*3,($G25+ROUND(J25*$G25/SUM(COUNTRY_INFO!$E25:$G25),0))*3) -> 0 | P25: 123282 | R25: 123282
A26: =IF(INTRO!$E$43="Non-endemic"," ", IF(COUNTRY_INFO!A26=0," ",COUNTRY_INFO!A26)) -> MALAWI | B26: =IF(INTRO!$E$43="Non-endemic"," ", IF(COUNTRY_INFO!B26=0," ",COUNTRY_INFO!B26)) -> South | C26: =IF(INTRO!$E$43="Non-endemic"," ", IF(COUNTRY_INFO!C26=0," ",COUNTRY_INFO!C26)) -> Balaka | D26: =IF(INTRO!$E$43="Non-endemic", "Not required", COUNTRY_INFO!Y26) -> 1 | E26: =IF(OR(COUNTRY_INFO!R26="Unknown",COUNTRY_INFO!R26="Surveillance",COUNTRY_INFO!R26="Not required",COUNTRY_INFO!R26=0),0,IF($D26<>0, COUNTRY_INFO!R26,0)) -> 7185 | F26: 22373 | H26: 29558 | N26: =IF($I26<>"Yes",$F26*2,($F26+ROUND(J26*$F26/SUM(COUNTRY_INFO!$E26:$G26),0))*2) -> 44746 | O26: =IF($I26<>"Yes",$G26*3,($G26+ROUND(J26*$G26/SUM(COUNTRY_INFO!$E26:$G26),0))*3) -> 0 | P26: 44746 | R26: 44746
A27: =IF(INTRO!$E$43="Non-endemic"," ", IF(COUNTRY_INFO!A27=0," ",COUNTRY_INFO!A27)) -> MALAWI | B27: =IF(INTRO!$E$43="Non-endemic"," ", IF(COUNTRY_INFO!B27=0," ",COUNTRY_INFO!B27)) -> South | C27: =IF(INTRO!$E$43="Non-endemic"," ", IF(COUNTRY_INFO!C27=0," ",COUNTRY_INFO!C27)) -> Chikwawa | D27: =IF(INTRO!$E$43="Non-endemic", "Not required", COUNTRY_INFO!Y27) -> 1 | E27: =IF(OR(COUNTRY_INFO!R27="Unknown",COUNTRY_INFO!R27="Surveillance",COUNTRY_INFO!R27="Not required",COUNTRY_INFO!R27=0),0,IF($D27<>0, COUNTRY_INFO!R27,0)) -> 58008 | F27: 180624 | H27: 238632 | N27: =IF($I27<>"Yes",$F27*2,($F27+ROUND(J27*$F27/SUM(COUNTRY_INFO!$E27:$G27),0))*2) -> 361248 | O27: =IF($I27<>"Yes",$G27*3,($G27+ROUND(J27*$G27/SUM(COUNTRY_INFO!$E27:$G27),0))*3) -> 0 | P27: 361248 | R27: 361248
A28: =IF(INTRO!$E$43="Non-endemic"," ", IF(COUNTRY_INFO!A28=0," ",COUNTRY_INFO!A28)) -> MALAWI | B28: =IF(INTRO!$E$43="Non-endemic"," ", IF(COUNTRY_INFO!B28=0," ",COUNTRY_INFO!B28)) -> South | C28: =IF(INTRO!$E$43="Non-endemic"," ", IF(COUNTRY_INFO!C28=0," ",COUNTRY_INFO!C28)) -> Chiradzulu | D28: =IF(INTRO!$E$43="Non-endemic", "Not required", COUNTRY_INFO!Y28) -> 1 | E28: =IF(OR(COUNTRY_INFO!R28="Unknown",COUNTRY_INFO!R28="Surveillance",COUNTRY_INFO!R28="Not required",COUNTRY_INFO!R28=0),0,IF($D28<>0, COUNTRY_INFO!R28,0)) -> 21452 | F28: 66800 | H28: 88252 | N28: =IF($I28<>"Yes",$F28*2,($F28+ROUND(J28*$F28/SUM(COUNTRY_INFO!$E28:$G28),0))*2) -> 133600 | O28: =IF($I28<>"Yes",$G28*3,($G28+ROUND(J28*$G28/SUM(COUNTRY_INFO!$E28:$G28),0))*3) -> 0 | P28: 133600 | R28: 133600
A29: =IF(INTRO!$E$43="Non-endemic"," ", IF(COUNTRY_INFO!A29=0," ",COUNTRY_INFO!A29)) -> MALAWI | B29: =IF(INTRO!$E$43="Non-endemic"," ", IF(COUNTRY_INFO!B29=0," ",COUNTRY_INFO!B29)) -> South | C29: =IF(INTRO!$E$43="Non-endemic"," ", IF(COUNTRY_INFO!C29=0," ",COUNTRY_INFO!C29)) -> Machinga | D29: =IF(INTRO!$E$43="Non-endemic", "Not required", COUNTRY_INFO!Y29) -> 1 | E29: =IF(OR(COUNTRY_INFO!R29="Unknown",COUNTRY_INFO!R29="Surveillance",COUNTRY_INFO!R29="Not required",COUNTRY_INFO!R29=0),0,IF($D29<>0, COUNTRY_INFO!R29,0)) -> 75546 | F29: 235242 | H29: 310788 | N29: =IF($I29<>"Yes",$F29*2,($F29+ROUND(J29*$F29/SUM(COUNTRY_INFO!$E29:$G29),0))*2) -> 470484 | O29: =IF($I29<>"Yes",$G29*3,($G29+ROUND(J29*$G29/SUM(COUNTRY_INFO!$E29:$G29),0))*3) -> 0 | P29: 470484 | R29: 470484
A30: =IF(INTRO!$E$43="Non-endemic"," ", IF(COUNTRY_INFO!A30=0," ",COUNTRY_INFO!A30)) -> MALAWI | B30: =IF(INTRO!$E$43="Non-endemic"," ", IF(COUNTRY_INFO!B30=0," ",COUNTRY_INFO!B30)) -> South | C30: =IF(INTRO!$E$43="Non-endemic"," ", IF(COUNTRY_INFO!C30=0," ",COUNTRY_INFO!C30)) -> Blantyre | D30: =IF(INTRO!$E$43="Non-endemic", "Not required", COUNTRY_INFO!Y30) -> 1 | E30: =IF(OR(COUNTRY_INFO!R30="Unknown",COUNTRY_INFO!R30="Surveillance",COUNTRY_INFO!R30="Not required",COUNTRY_INFO!R30=0),0,IF($D30<>0, COUNTRY_INFO!R30,0)) -> 39737 | F30: 123735 | H30: 163472 | N30: =IF($I30<>"Yes",$F30*2,($F30+ROUND(J30*$F30/SUM(COUNTRY_INFO!$E30:$G30),0))*2) -> 247470 | O30: =IF($I30<>"Yes",$G30*3,($G30+ROUND(J30*$G30/SUM(COUNTRY_INFO!$E30:$G30),0))*3) -> 0 | P30: 247470 | R30: 247470
A31: =IF(INTRO!$E$43="Non-endemic"," ", IF(COUNTRY_INFO!A31=0," ",COUNTRY_INFO!A31)) -> MALAWI | B31: =IF(INTRO!$E$43="Non-endemic"," ", IF(COUNTRY_INFO!B31=0," ",COUNTRY_INFO!B31)) -> South | C31: =IF(INTRO!$E$43="Non-endemic"," ", IF(COUNTRY_INFO!C31=0," ",COUNTRY_INFO!C31)) -> Mangochi | D31: =IF(INTRO!$E$43="Non-endemic", "Not required", COUNTRY_INFO!Y31) -> 1 | E31: =IF(OR(COUNTRY_INFO!R31="Unknown",COUNTRY_INFO!R31="Surveillance",COUNTRY_INFO!R31="Not required",COUNTRY_INFO!R31=0),0,IF($D31<>0, COUNTRY_INFO!R31,0)) -> 107420 | F31: 334492 | H31: 441912 | J31: 84805 | N31: =IF($I31<>"Yes",$F31*2,($F31+ROUND(J31*$F31/SUM(COUNTRY_INFO!$E31:$G31),0))*2) -> 668984 | O31: =IF($I31<>"Yes",$G31*3,($G31+ROUND(J31*$G31/SUM(COUNTRY_INFO!$E31:$G31),0))*3) -> 0 | P31: 668984 | R31: 668984
A32: =IF(INTRO!$E$43="Non-endemic"," ", IF(COUNTRY_INFO!A32=0," ",COUNTRY_INFO!A32)) -> MALAWI | B32: =IF(INTRO!$E$43="Non-endemic"," ", IF(COUNTRY_INFO!B32=0," ",COUNTRY_INFO!B32)) -> South | C32: =IF(INTRO!$E$43="Non-endemic"," ", IF(COUNTRY_INFO!C32=0," ",COUNTRY_INFO!C32)) -> Mulanje | D32: =IF(INTRO!$E$43="Non-endemic", "Not required", COUNTRY_INFO!Y32) -> 1 | E32: =IF(OR(COUNTRY_INFO!R32="Unknown",COUNTRY_INFO!R32="Surveillance",COUNTRY_INFO!R32="Not required",COUNTRY_INFO!R32=0),0,IF($D32<>0, COUNTRY_INFO!R32,0)) -> 65023 | F32: 202475 | H32: 267498 | N32: =IF($I32<>"Yes",$F32*2,($F32+ROUND(J32*$F32/SUM(COUNTRY_INFO!$E32:$G32),0))*2) -> 404950 | O32: =IF($I32<>"Yes",$G32*3,($G32+ROUND(J32*$G32/SUM(COUNTRY_INFO!$E32:$G32),0))*3) -> 0 | P32: 404950 | R32: 404950
A33: =IF(INTRO!$E$43="Non-endemic"," ", IF(COUNTRY_INFO!A33=0," ",COUNTRY_INFO!A33)) -> MALAWI | B33: =IF(INTRO!$E$43="Non-endemic"," ", IF(COUNTRY_INFO!B33=0," ",COUNTRY_INFO!B33)) -> South | C33: =IF(INTRO!$E$43="Non-endemic"," ", IF(COUNTRY_INFO!C33=0," ",COUNTRY_INFO!C33)) -> Nsanje | D33: =IF(INTRO!$E$43="Non-endemic", "Not required", COUNTRY_INFO!Y33) -> 1 | E33: =IF(OR(COUNTRY_INFO!R33="Unknown",COUNTRY_INFO!R33="Surveillance",COUNTRY_INFO!R33="Not required",COUNTRY_INFO!R33=0),0,IF($D33<>0, COUNTRY_INFO!R33,0)) -> 29834 | F33: 92896 | H33: =SUM(E33:G33) -> 122730 | J33: 13701 | N33: =IF($I33<>"Yes",$F33*2,($F33+ROUND(J33*$F33/SUM(COUNTRY_INFO!$E33:$G33),0))*2) -> 185792 | O33: =IF($I33<>"Yes",$G33*3,($G33+ROUND(J33*$G33/SUM(COUNTRY_INFO!$E33:$G33),0))*3) -> 0 | P33: 185792 | R33: 185792
A34: =IF(INTRO!$E$43="Non-endemic"," ", IF(COUNTRY_INFO!A34=0," ",COUNTRY_INFO!A34)) -> MALAWI | B34: =IF(INTRO!$E$43="Non-endemic"," ", IF(COUNTRY_INFO!B34=0," ",COUNTRY_INFO!B34)) -> South | C34: =IF(INTRO!$E$43="Non-endemic"," ", IF(COUNTRY_INFO!C34=0," ",COUNTRY_INFO!C34)) -> Phalombe | D34: =IF(INTRO!$E$43="Non-endemic", "Not required", COUNTRY_INFO!Y34) -> 1 | E34: =IF(OR(COUNTRY_INFO!R34="Unknown",COUNTRY_INFO!R34="Surveillance",COUNTRY_INFO!R34="Not required",COUNTRY_INFO!R34=0),0,IF($D34<>0, COUNTRY_INFO!R34,0)) -> 33734 | F34: 105039 | H34: 138773 | N34: =IF($I34<>"Yes",$F34*2,($F34+ROUND(J34*$F34/SUM(COUNTRY_INFO!$E34:$G34),0))*2) -> 210078 | O34: =IF($I34<>"Yes",$G34*3,($G34+ROUND(J34*$G34/SUM(COUNTRY_INFO!$E34:$G34),0))*3) -> 0 | P34: 210078 | R34: 210078
A35: =IF(INTRO!$E$43="Non-endemic"," ", IF(COUNTRY_INFO!A35=0," ",COUNTRY_INFO!A35)) -> MALAWI | B35: =IF(INTRO!$E$43="Non-endemic"," ", IF(COUNTRY_INFO!B35=0," ",COUNTRY_INFO!B35)) -> South | C35: =IF(INTRO!$E$43="Non-endemic"," ", IF(COUNTRY_INFO!C35=0," ",COUNTRY_INFO!C35)) -> Thyolo | D35: =IF(INTRO!$E$43="Non-endemic", "Not required", COUNTRY_INFO!Y35) -> 1 | E35: =IF(OR(COUNTRY_INFO!R35="Unknown",COUNTRY_INFO!R35="Surveillance",COUNTRY_INFO!R35="Not required",COUNTRY_INFO!R35=0),0,IF($D35<>0, COUNTRY_INFO!R35,0)) -> 52316 | F35: 162901 | H35: 215217 | N35: =IF($I35<>"Yes",$F35*2,($F35+ROUND(J35*$F35/SUM(COUNTRY_INFO!$E35:$G35),0))*2) -> 325802 | O35: =IF($I35<>"Yes",$G35*3,($G35+ROUND(J35*$G35/SUM(COUNTRY_INFO!$E35:$G35),0))*3) -> 0 | P35: 325802 | R35: 325802
A36: =IF(INTRO!$E$43="Non-endemic"," ", IF(COUNTRY_INFO!A36=0," ",COUNTRY_INFO!A36)) -> MALAWI | B36: =IF(INTRO!$E$43="Non-endemic"," ", IF(COUNTRY_INFO!B36=0," ",COUNTRY_INFO!B36)) -> South | C36: =IF(INTRO!$E$43="Non-endemic"," ", IF(COUNTRY_INFO!C36=0," ",COUNTRY_INFO!C36)) -> Zomba | D36: =IF(INTRO!$E$43="Non-endemic", "Not required", COUNTRY_INFO!Y36) -> 1 | E36: =IF(OR(COUNTRY_INFO!R36="Unknown",COUNTRY_INFO!R36="Surveillance",COUNTRY_INFO!R36="Not required",COUNTRY_INFO!R36=0),0,IF($D36<>0, COUNTRY_INFO!R36,0)) -> 71989 | F36: 224160 | H36: 296149 | N36: =IF($I36<>"Yes",$F36*2,($F36+ROUND(J36*$F36/SUM(COUNTRY_INFO!$E36:$G36),0))*2) -> 448320 | O36: =IF($I36<>"Yes",$G36*3,($G36+ROUND(J36*$G36/SUM(COUNTRY_INFO!$E36:$G36),0))*3) -> 0 | P36: 448320 | R36: 448320
A37: =IF(INTRO!$E$43="Non-endemic"," ", IF(COUNTRY_INFO!A37=0," ",COUNTRY_INFO!A37)) -> MALAWI | B37: =IF(INTRO!$E$43="Non-endemic"," ", IF(COUNTRY_INFO!B37=0," ",COUNTRY_INFO!B37)) -> South | C37: =IF(INTRO!$E$43="Non-endemic"," ", IF(COUNTRY_INFO!C37=0," ",COUNTRY_INFO!C37)) -> Neno | D37: =IF(INTRO!$E$43="Non-endemic", "Not required", COUNTRY_INFO!Y37) -> 0 | E37: =IF(OR(COUNTRY_INFO!R37="Unknown",COUNTRY_INFO!R37="Surveillance",COUNTRY_INFO!R37="Not required",COUNTRY_INFO!R37=0),0,IF($D37<>0, COUNTRY_INFO!R37,0)) -> 0 | F37: 0 | H37: 0 | N37: =IF($I37<>"Yes",$F37*2,($F37+ROUND(J37*$F37/SUM(COUNTRY_INFO!$E37:$G37),0))*2) -> 0 | O37: =IF($I37<>"Yes",$G37*3,($G37+ROUND(J37*$G37/SUM(COUNTRY_INFO!$E37:$G37),0))*3) -> 0 | P37: 0 | R37: 0
A38: =IF(INTRO!$E$43="Non-endemic"," ", IF(COUNTRY_INFO!A38=0," ",COUNTRY_INFO!A38)) -> MALAWI | B38: =IF(INTRO!$E$43="Non-endemic"," ", IF(COUNTRY_INFO!B38=0," ",COUNTRY_INFO!B38)) -> South | C38: =IF(INTRO!$E$43="Non-endemic"," ", IF(COUNTRY_INFO!C38=0," ",COUNTRY_INFO!C38)) -> Mwanza | D38: =IF(INTRO!$E$43="Non-endemic", "Not required", COUNTRY_INFO!Y38) -> 1 | E38: =IF(OR(COUNTRY_INFO!R38="Unknown",COUNTRY_INFO!R38="Surveillance",COUNTRY_INFO!R38="Not required",COUNTRY_INFO!R38=0),0,IF($D38<>0, COUNTRY_INFO!R38,0)) -> 13452 | F38: 41887 | H38: 55339 | N38: =IF($I38<>"Yes",$F38*2,($F38+ROUND(J38*$F38/SUM(COUNTRY_INFO!$E38:$G38),0))*2) -> 83774 | O38: =IF($I38<>"Yes",$G38*3,($G38+ROUND(J38*$G38/SUM(COUNTRY_INFO!$E38:$G38),0))*3) -> 0 | P38: 83774 | R38: 83774

Sheet IVM
A1: Ivermectin (IVM)
A2: Administrative structure, eligible population by age group, treatment plan and information about tablets
A4: TOTAL | D4: =SUBTOTAL(9,D$10:D$1010) -> 2891396 | G4: =SUBTOTAL(9,G$10:G$1010) -> 0 | H4: 2891396 | I4: 0 | J4: 9328272.8 | K4: 0 | L4: 9328272.8 | M4: 0 | N4: 9328272.8
A6: Country administrative structure | D6: Population requiring treatment with IVM | E6: Treatment plan | G6: Target population | I6: Ivermectin (IVM)
A7: Country | B7: Province/State | C7: District | E7: LF | F7: Oncho | G7: LF | H7: Oncho | I7: LF only | J7: Oncho only | K7: LF+Oncho | L7: Total required | M7: Remaining in stock | N7: Tablets to be procured
A10: =IF(INTRO!$E$39="Non-endemic"," ",IF(COUNTRY_INFO!A10=0," ",COUNTRY_INFO!A10)) -> MALAWI | B10: =IF(INTRO!$E$39="Non-endemic"," ",IF(COUNTRY_INFO!B10=0," ",COUNTRY_INFO!B10)) -> North | C10: =IF(INTRO!$E$39="Non-endemic"," ",IF(COUNTRY_INFO!C10=0," ",COUNTRY_INFO!C10)) -> Chitipa | D10: =IF(INTRO!$E$39="Non-endemic",0,IF(INTRO!$E$39="Endemic but PC is not required",IF(COUNTRY_INFO!$H10=1,COUNTRY_INFO!F10+COUNTRY_INFO!G10,0),IF(COUNTRY_INFO!$H10=1,COUNTRY_INFO!F10+COUNTRY_INFO!G10,IF(COUNTRY_INFO!$I10=1,IF(COUNTRY_INFO!M10>=(COUNTRY_INFO!F10+COUNTRY_INFO!G10),COUNTRY_INFO!F10+COUNTRY_INFO!G10,COUNTRY_INFO!$M10),0)))) -> 0 | E10: =IF(AND(INTRO!$E$39="Non-endemic",INTRO!$E$37="Non-endemic"),"Not required",IF(INTRO!$E$39="Non-endemic","Treat with DEC",COUNTRY_INFO!V10)) -> 0 | F10: =IF(INTRO!$E$39<>"Non-endemic",COUNTRY_INFO!W10,"Not required") -> 0 | G10: =IF(COUNTRY_INFO!H10=1, IF($E10=1,$D10, 0),0) -> 0 | H10: =IF(COUNTRY_INFO!I10=1, IF(AND(COUNTRY_INFO!$I10=1,$F10<>0),IF(COUNTRY_INFO!M10>=(COUNTRY_INFO!F10+COUNTRY_INFO!G10),COUNTRY_INFO!F10+COUNTRY_INFO!G10,COUNTRY_INFO!$M10), 0),0) -> 0 | I10: =IF(G10<H10,0,IF($E10=1, (G10-H10)*2.8, 0)) -> 0 | J10: =IF($E10<$F10, H10*(F10-E10)*2.8, 0) -> 0 | K10: =IF(AND($E10=1, $F10<>0), H10*2.8, 0) -> 0 | L10: =SUM(I10:K10) -> 0 | N10: =IF($L10>$M10,$L10-$M10,0) -> 0
A11: =IF(INTRO!$E$39="Non-endemic"," ",IF(COUNTRY_INFO!A11=0," ",COUNTRY_INFO!A11)) -> MALAWI | B11: =IF(INTRO!$E$39="Non-endemic"," ",IF(COUNTRY_INFO!B11=0," ",COUNTRY_INFO!B11)) -> North | C11: =IF(INTRO!$E$39="Non-endemic"," ",IF(COUNTRY_INFO!C11=0," ",COUNTRY_INFO!C11)) -> Karonga | D11: =IF(INTRO!$E$39="Non-endemic",0,IF(INTRO!$E$39="Endemic but PC is not required",IF(COUNTRY_INFO!$H11=1,COUNTRY_INFO!F11+COUNTRY_INFO!G11,0),IF(COUNTRY_INFO!$H11=1,COUNTRY_INFO!F11+COUNTRY_INFO!G11,IF(COUNTRY_INFO!$I11=1,IF(COUNTRY_INFO!M11>=(COUNTRY_INFO!F11+COUNTRY_INFO!G11),COUNTRY_INFO!F11+COUNTRY_INFO!G11,COUNTRY_INFO!$M11),0)))) -> 0 | E11: =IF(AND(INTRO!$E$39="Non-endemic",INTRO!$E$37="Non-endemic"),"Not required",IF(INTRO!$E$39="Non-endemic","Treat with DEC",COUNTRY_INFO!V11)) -> 0 | F11: =IF(INTRO!$E$39<>"Non-endemic",COUNTRY_INFO!W11,"Not required") -> 0 | G11: =IF(COUNTRY_INFO!H11=1, IF($E11=1,$D11, 0),0) -> 0 | H11: =IF(COUNTRY_INFO!I11=1, IF(AND(COUNTRY_INFO!$I11=1,$F11<>0),IF(COUNTRY_INFO!M11>=(COUNTRY_INFO!F11+COUNTRY_INFO!G11),COUNTRY_INFO!F11+COUNTRY_INFO!G11,COUNTRY_INFO!$M11), 0),0) -> 0 | I11: 0 | J11: 0 | K11: =IF(AND($E11=1, $F11<>0), H11*2.8, 0) -> 0 | L11: =SUM(I11:K11) -> 0 | N11: 0
A12: =IF(INTRO!$E$39="Non-endemic"," ",IF(COUNTRY_INFO!A12=0," ",COUNTRY_INFO!A12)) -> MALAWI | B12: =IF(INTRO!$E$39="Non-endemic"," ",IF(COUNTRY_INFO!B12=0," ",COUNTRY_INFO!B12)) -> North | C12: =IF(INTRO!$E$39="Non-endemic"," ",IF(COUNTRY_INFO!C12=0," ",COUNTRY_INFO!C12)) -> Rumphi | D12: =IF(INTRO!$E$39="Non-endemic",0,IF(INTRO!$E$39="Endemic but PC is not required",IF(COUNTRY_INFO!$H12=1,COUNTRY_INFO!F12+COUNTRY_INFO!G12,0),IF(COUNTRY_INFO!$H12=1,COUNTRY_INFO!F12+COUNTRY_INFO!G12,IF(COUNTRY_INFO!$I12=1,IF(COUNTRY_INFO!M12>=(COUNTRY_INFO!F12+COUNTRY_INFO!G12),COUNTRY_INFO!F12+COUNTRY_INFO!G12,COUNTRY_INFO!$M12),0)))) -> 0 | E12: =IF(AND(INTRO!$E$39="Non-endemic",INTRO!$E$37="Non-endemic"),"Not required",IF(INTRO!$E$39="Non-endemic","Treat with DEC",COUNTRY_INFO!V12)) -> 0 | F12: =IF(INTRO!$E$39<>"Non-endemic",COUNTRY_INFO!W12,"Not required") -> 0 | G12: =IF(COUNTRY_INFO!H12=1, IF($E12=1,$D12, 0),0) -> 0 | H12: =IF(COUNTRY_INFO!I12=1, IF(AND(COUNTRY_INFO!$I12=1,$F12<>0),IF(COUNTRY_INFO!M12>=(COUNTRY_INFO!F12+COUNTRY_INFO!G12),COUNTRY_INFO!F12+COUNTRY_INFO!G12,COUNTRY_INFO!$M12), 0),0) -> 0 | I12: 0 | J12: 0 | K12: 0 | L12: 0 | N12: 0
A13: =IF(INTRO!$E$39="Non-endemic"," ",IF(COUNTRY_INFO!A13=0," ",COUNTRY_INFO!A13)) -> MALAWI | B13: =IF(INTRO!$E$39="Non-endemic"," ",IF(COUNTRY_INFO!B13=0," ",COUNTRY_INFO!B13)) -> North | C13: =IF(INTRO!$E$39="Non-endemic"," ",IF(COUNTRY_INFO!C13=0," ",COUNTRY_INFO!C13)) -> Mzimba North | D13: =IF(INTRO!$E$39="Non-endemic",0,IF(INTRO!$E$39="Endemic but PC is not required",IF(COUNTRY_INFO!$H13=1,COUNTRY_INFO!F13+COUNTRY_INFO!G13,0),IF(COUNTRY_INFO!$H13=1,COUNTRY_INFO!F13+COUNTRY_INFO!G13,IF(COUNTRY_INFO!$I13=1,IF(COUNTRY_INFO!M13>=(COUNTRY_INFO!F13+COUNTRY_INFO!G13),COUNTRY_INFO!F13+COUNTRY_INFO!G13,COUNTRY_INFO!$M13),0)))) -> 0 | E13: =IF(AND(INTRO!$E$39="Non-endemic",INTRO!$E$37="Non-endemic"),"Not required",IF(INTRO!$E$39="Non-endemic","Treat with DEC",COUNTRY_INFO!V13)) -> 0 | F13: =IF(INTRO!$E$39<>"Non-endemic",COUNTRY_INFO!W13,"Not required") -> 0 | G13: =IF(COUNTRY_INFO!H13=1, IF($E13=1,$D13, 0),0) -> 0 | H13: =IF(COUNTRY_INFO!I13=1, IF(AND(COUNTRY_INFO!$I13=1,$F13<>0),IF(COUNTRY_INFO!M13>=(COUNTRY_INFO!F13+COUNTRY_INFO!G13),COUNTRY_INFO!F13+COUNTRY_INFO!G13,COUNTRY_INFO!$M13), 0),0) -> 0 | I13: 0 | J13: 0 | K13: 0 | L13: 0 | N13: 0
A14: =IF(INTRO!$E$39="Non-endemic"," ",IF(COUNTRY_INFO!A14=0," ",COUNTRY_INFO!A14)) -> MALAWI | B14: =IF(INTRO!$E$39="Non-endemic"," ",IF(COUNTRY_INFO!B14=0," ",COUNTRY_INFO!B14)) -> North | C14: =IF(INTRO!$E$39="Non-endemic"," ",IF(COUNTRY_INFO!C14=0," ",COUNTRY_INFO!C14)) -> Mzimba South | D14: =IF(INTRO!$E$39="Non-endemic",0,IF(INTRO!$E$39="Endemic but PC is not required",IF(COUNTRY_INFO!$H14=1,COUNTRY_INFO!F14+COUNTRY_INFO!G14,0),IF(COUNTRY_INFO!$H14=1,COUNTRY_INFO!F14+COUNTRY_INFO!G14,IF(COUNTRY_INFO!$I14=1,IF(COUNTRY_INFO!M14>=(COUNTRY_INFO!F14+COUNTRY_INFO!G14),COUNTRY_INFO!F14+COUNTRY_INFO!G14,COUNTRY_INFO!$M14),0)))) -> 0 | E14: =IF(AND(INTRO!$E$39="Non-endemic",INTRO!$E$37="Non-endemic"),"Not required",IF(INTRO!$E$39="Non-endemic","Treat with DEC",COUNTRY_INFO!V14)) -> 0 | F14: =IF(INTRO!$E$39<>"Non-endemic",COUNTRY_INFO!W14,"Not required") -> 0 | G14: =IF(COUNTRY_INFO!H14=1, IF($E14=1,$D14, 0),0) -> 0 | H14: =IF(COUNTRY_INFO!I14=1, IF(AND(COUNTRY_INFO!$I14=1,$F14<>0),IF(COUNTRY_INFO!M14>=(COUNTRY_INFO!F14+COUNTRY_INFO!G14),COUNTRY_INFO!F14+COUNTRY_INFO!G14,COUNTRY_INFO!$M14), 0),0) -> 0 | I14: 0 | J14: 0 | K14: 0 | L14: 0 | N14: 0
A15: =IF(INTRO!$E$39="Non-endemic"," ",IF(COUNTRY_INFO!A15=0," ",COUNTRY_INFO!A15)) -> MALAWI | B15: =IF(INTRO!$E$39="Non-endemic"," ",IF(COUNTRY_INFO!B15=0," ",COUNTRY_INFO!B15)) -> North | C15: =IF(INTRO!$E$39="Non-endemic"," ",IF(COUNTRY_INFO!C15=0," ",COUNTRY_INFO!C15)) -> Nkhata bay | D15: =IF(INTRO!$E$39="Non-endemic",0,IF(INTRO!$E$39="Endemic but PC is not required",IF(COUNTRY_INFO!$H15=1,COUNTRY_INFO!F15+COUNTRY_INFO!G15,0),IF(COUNTRY_INFO!$H15=1,COUNTRY_INFO!F15+COUNTRY_INFO!G15,IF(COUNTRY_INFO!$I15=1,IF(COUNTRY_INFO!M15>=(COUNTRY_INFO!F15+COUNTRY_INFO!G15),COUNTRY_INFO!F15+COUNTRY_INFO!G15,COUNTRY_INFO!$M15),0)))) -> 0 | E15: =IF(AND(INTRO!$E$39="Non-endemic",INTRO!$E$37="Non-endemic"),"Not required",IF(INTRO!$E$39="Non-endemic","Treat with DEC",COUNTRY_INFO!V15)) -> 0 | F15: =IF(INTRO!$E$39<>"Non-endemic",COUNTRY_INFO!W15,"Not required") -> 0 | G15: =IF(COUNTRY_INFO!H15=1, IF($E15=1,$D15, 0),0) -> 0 | H15: =IF(COUNTRY_INFO!I15=1, IF(AND(COUNTRY_INFO!$I15=1,$F15<>0),IF(COUNTRY_INFO!M15>=(COUNTRY_INFO!F15+COUNTRY_INFO!G15),COUNTRY_INFO!F15+COUNTRY_INFO!G15,COUNTRY_INFO!$M15), 0),0) -> 0 | I15: 0 | J15: 0 | K15: 0 | L15: 0 | N15: 0
A16: =IF(INTRO!$E$39="Non-endemic"," ",IF(COUNTRY_INFO!A16=0," ",COUNTRY_INFO!A16)) -> MALAWI | B16: =IF(INTRO!$E$39="Non-endemic"," ",IF(COUNTRY_INFO!B16=0," ",COUNTRY_INFO!B16)) -> North | C16: =IF(INTRO!$E$39="Non-endemic"," ",IF(COUNTRY_INFO!C16=0," ",COUNTRY_INFO!C16)) -> Likoma | D16: =IF(INTRO!$E$39="Non-endemic",0,IF(INTRO!$E$39="Endemic but PC is not required",IF(COUNTRY_INFO!$H16=1,COUNTRY_INFO!F16+COUNTRY_INFO!G16,0),IF(COUNTRY_INFO!$H16=1,COUNTRY_INFO!F16+COUNTRY_INFO!G16,IF(COUNTRY_INFO!$I16=1,IF(COUNTRY_INFO!M16>=(COUNTRY_INFO!F16+COUNTRY_INFO!G16),COUNTRY_INFO!F16+COUNTRY_INFO!G16,COUNTRY_INFO!$M16),0)))) -> 0 | E16: =IF(AND(INTRO!$E$39="Non-endemic",INTRO!$E$37="Non-endemic"),"Not required",IF(INTRO!$E$39="Non-endemic","Treat with DEC",COUNTRY_INFO!V16)) -> 0 | F16: =IF(INTRO!$E$39<>"Non-endemic",COUNTRY_INFO!W16,"Not required") -> 0 | G16: =IF(COUNTRY_INFO!H16=1, IF($E16=1,$D16, 0),0) -> 0 | H16: =IF(COUNTRY_INFO!I16=1, IF(AND(COUNTRY_INFO!$I16=1,$F16<>0),IF(COUNTRY_INFO!M16>=(COUNTRY_INFO!F16+COUNTRY_INFO!G16),COUNTRY_INFO!F16+COUNTRY_INFO!G16,COUNTRY_INFO!$M16), 0),0) -> 0 | I16: 0 | J16: 0 | K16: 0 | L16: 0 | N16: 0
A17: =IF(INTRO!$E$39="Non-endemic"," ",IF(COUNTRY_INFO!A17=0," ",COUNTRY_INFO!A17)) -> MALAWI | B17: =IF(INTRO!$E$39="Non-endemic"," ",IF(COUNTRY_INFO!B17=0," ",COUNTRY_INFO!B17)) -> Central | C17: =IF(INTRO!$E$39="Non-endemic"," ",IF(COUNTRY_INFO!C17=0," ",COUNTRY_INFO!C17)) -> Kasungu | D17: =IF(INTRO!$E$39="Non-endemic",0,IF(INTRO!$E$39="Endemic but PC is not required",IF(COUNTRY_INFO!$H17=1,COUNTRY_INFO!F17+COUNTRY_INFO!G17,0),IF(COUNTRY_INFO!$H17=1,COUNTRY_INFO!F17+COUNTRY_INFO!G17,IF(COUNTRY_INFO!$I17=1,IF(COUNTRY_INFO!M17>=(COUNTRY_INFO!F17+COUNTRY_INFO!G17),COUNTRY_INFO!F17+COUNTRY_INFO!G17,COUNTRY_INFO!$M17),0)))) -> 0 | E17: =IF(AND(INTRO!$E$39="Non-endemic",INTRO!$E$37="Non-endemic"),"Not required",IF(INTRO!$E$39="Non-endemic","Treat with DEC",COUNTRY_INFO!V17)) -> 0 | F17: =IF(INTRO!$E$39<>"Non-endemic",COUNTRY_INFO!W17,"Not required") -> 0 | G17: =IF(COUNTRY_INFO!H17=1, IF($E17=1,$D17, 0),0) -> 0 | H17: =IF(COUNTRY_INFO!I17=1, IF(AND(COUNTRY_INFO!$I17=1,$F17<>0),IF(COUNTRY_INFO!M17>=(COUNTRY_INFO!F17+COUNTRY_INFO!G17),COUNTRY_INFO!F17+COUNTRY_INFO!G17,COUNTRY_INFO!$M17), 0),0) -> 0 | I17: 0 | J17: 0 | K17: 0 | L17: 0 | N17: 0
A18: =IF(INTRO!$E$39="Non-endemic"," ",IF(COUNTRY_INFO!A18=0," ",COUNTRY_INFO!A18)) -> MALAWI | B18: =IF(INTRO!$E$39="Non-endemic"," ",IF(COUNTRY_INFO!B18=0," ",COUNTRY_INFO!B18)) -> Central | C18: =IF(INTRO!$E$39="Non-endemic"," ",IF(COUNTRY_INFO!C18=0," ",COUNTRY_INFO!C18)) -> Dedza | D18: =IF(INTRO!$E$39="Non-endemic",0,IF(INTRO!$E$39="Endemic but PC is not required",IF(COUNTRY_INFO!$H18=1,COUNTRY_INFO!F18+COUNTRY_INFO!G18,0),IF(COUNTRY_INFO!$H18=1,COUNTRY_INFO!F18+COUNTRY_INFO!G18,IF(COUNTRY_INFO!$I18=1,IF(COUNTRY_INFO!M18>=(COUNTRY_INFO!F18+COUNTRY_INFO!G18),COUNTRY_INFO!F18+COUNTRY_INFO!G18,COUNTRY_INFO!$M18),0)))) -> 0 | E18: =IF(AND(INTRO!$E$39="Non-endemic",INTRO!$E$37="Non-endemic"),"Not required",IF(INTRO!$E$39="Non-endemic","Treat with DEC",COUNTRY_INFO!V18)) -> 0 | F18: =IF(INTRO!$E$39<>"Non-endemic",COUNTRY_INFO!W18,"Not required") -> 0 | G18: =IF(COUNTRY_INFO!H18=1, IF($E18=1,$D18, 0),0) -> 0 | H18: =IF(COUNTRY_INFO!I18=1, IF(AND(COUNTRY_INFO!$I18=1,$F18<>0),IF(COUNTRY_INFO!M18>=(COUNTRY_INFO!F18+COUNTRY_INFO!G18),COUNTRY_INFO!F18+COUNTRY_INFO!G18,COUNTRY_INFO!$M18), 0),0) -> 0 | I18: 0 | J18: 0 | K18: 0 | L18: 0 | N18: 0
A19: =IF(INTRO!$E$39="Non-endemic"," ",IF(COUNTRY_INFO!A19=0," ",COUNTRY_INFO!A19)) -> MALAWI | B19: =IF(INTRO!$E$39="Non-endemic"," ",IF(COUNTRY_INFO!B19=0," ",COUNTRY_INFO!B19)) -> Central | C19: =IF(INTRO!$E$39="Non-endemic"," ",IF(COUNTRY_INFO!C19=0," ",COUNTRY_INFO!C19)) -> Dowa | D19: =IF(INTRO!$E$39="Non-endemic",0,IF(INTRO!$E$39="Endemic but PC is not required",IF(COUNTRY_INFO!$H19=1,COUNTRY_INFO!F19+COUNTRY_INFO!G19,0),IF(COUNTRY_INFO!$H19=1,COUNTRY_INFO!F19+COUNTRY_INFO!G19,IF(COUNTRY_INFO!$I19=1,IF(COUNTRY_INFO!M19>=(COUNTRY_INFO!F19+COUNTRY_INFO!G19),COUNTRY_INFO!F19+COUNTRY_INFO!G19,COUNTRY_INFO!$M19),0)))) -> 0 | E19: =IF(AND(INTRO!$E$39="Non-endemic",INTRO!$E$37="Non-endemic"),"Not required",IF(INTRO!$E$39="Non-endemic","Treat with DEC",COUNTRY_INFO!V19)) -> 0 | F19: =IF(INTRO!$E$39<>"Non-endemic",COUNTRY_INFO!W19,"Not required") -> 0 | G19: =IF(COUNTRY_INFO!H19=1, IF($E19=1,$D19, 0),0) -> 0 | H19: =IF(COUNTRY_INFO!I19=1, IF(AND(COUNTRY_INFO!$I19=1,$F19<>0),IF(COUNTRY_INFO!M19>=(COUNTRY_INFO!F19+COUNTRY_INFO!G19),COUNTRY_INFO!F19+COUNTRY_INFO!G19,COUNTRY_INFO!$M19), 0),0) -> 0 | I19: 0 | J19: 0 | K19: 0 | L19: 0 | N19: 0
A20: =IF(INTRO!$E$39="Non-endemic"," ",IF(COUNTRY_INFO!A20=0," ",COUNTRY_INFO!A20)) -> MALAWI | B20: =IF(INTRO!$E$39="Non-endemic"," ",IF(COUNTRY_INFO!B20=0," ",COUNTRY_INFO!B20)) -> Central | C20: =IF(INTRO!$E$39="Non-endemic"," ",IF(COUNTRY_INFO!C20=0," ",COUNTRY_INFO!C20)) -> Lilongwe | D20: =IF(INTRO!$E$39="Non-endemic",0,IF(INTRO!$E$39="Endemic but PC is not required",IF(COUNTRY_INFO!$H20=1,COUNTRY_INFO!F20+COUNTRY_INFO!G20,0),IF(COUNTRY_INFO!$H20=1,COUNTRY_INFO!F20+COUNTRY_INFO!G20,IF(COUNTRY_INFO!$I20=1,IF(COUNTRY_INFO!M20>=(COUNTRY_INFO!F20+COUNTRY_INFO!G20),COUNTRY_INFO!F20+COUNTRY_INFO!G20,COUNTRY_INFO!$M20),0)))) -> 0 | E20: =IF(AND(INTRO!$E$39="Non-endemic",INTRO!$E$37="Non-endemic"),"Not required",IF(INTRO!$E$39="Non-endemic","Treat with DEC",COUNTRY_INFO!V20)) -> 0 | F20: =IF(INTRO!$E$39<>"Non-endemic",COUNTRY_INFO!W20,"Not required") -> 0 | G20: =IF(COUNTRY_INFO!H20=1, IF($E20=1,$D20, 0),0) -> 0 | H20: =IF(COUNTRY_INFO!I20=1, IF(AND(COUNTRY_INFO!$I20=1,$F20<>0),IF(COUNTRY_INFO!M20>=(COUNTRY_INFO!F20+COUNTRY_INFO!G20),COUNTRY_INFO!F20+COUNTRY_INFO!G20,COUNTRY_INFO!$M20), 0),0) -> 0 | I20: 0 | J20: 0 | K20: 0 | L20: 0 | N20: 0
A21: =IF(INTRO!$E$39="Non-endemic"," ",IF(COUNTRY_INFO!A21=0," ",COUNTRY_INFO!A21)) -> MALAWI | B21: =IF(INTRO!$E$39="Non-endemic"," ",IF(COUNTRY_INFO!B21=0," ",COUNTRY_INFO!B21)) -> Central | C21: =IF(INTRO!$E$39="Non-endemic"," ",IF(COUNTRY_INFO!C21=0," ",COUNTRY_INFO!C21)) -> Mchinji | D21: =IF(INTRO!$E$39="Non-endemic",0,IF(INTRO!$E$39="Endemic but PC is not required",IF(COUNTRY_INFO!$H21=1,COUNTRY_INFO!F21+COUNTRY_INFO!G21,0),IF(COUNTRY_INFO!$H21=1,COUNTRY_INFO!F21+COUNTRY_INFO!G21,IF(COUNTRY_INFO!$I21=1,IF(COUNTRY_INFO!M21>=(COUNTRY_INFO!F21+COUNTRY_INFO!G21),COUNTRY_INFO!F21+COUNTRY_INFO!G21,COUNTRY_INFO!$M21),0)))) -> 0 | E21: =IF(AND(INTRO!$E$39="Non-endemic",INTRO!$E$37="Non-endemic"),"Not required",IF(INTRO!$E$39="Non-endemic","Treat with DEC",COUNTRY_INFO!V21)) -> 0 | F21: =IF(INTRO!$E$39<>"Non-endemic",COUNTRY_INFO!W21,"Not required") -> 0 | G21: =IF(COUNTRY_INFO!H21=1, IF($E21=1,$D21, 0),0) -> 0 | H21: =IF(COUNTRY_INFO!I21=1, IF(AND(COUNTRY_INFO!$I21=1,$F21<>0),IF(COUNTRY_INFO!M21>=(COUNTRY_INFO!F21+COUNTRY_INFO!G21),COUNTRY_INFO!F21+COUNTRY_INFO!G21,COUNTRY_INFO!$M21), 0),0) -> 0 | I21: 0 | J21: 0 | K21: 0 | L21: 0 | N21: 0
A22: =IF(INTRO!$E$39="Non-endemic"," ",IF(COUNTRY_INFO!A22=0," ",COUNTRY_INFO!A22)) -> MALAWI | B22: =IF(INTRO!$E$39="Non-endemic"," ",IF(COUNTRY_INFO!B22=0," ",COUNTRY_INFO!B22)) -> Central | C22: =IF(INTRO!$E$39="Non-endemic"," ",IF(COUNTRY_INFO!C22=0," ",COUNTRY_INFO!C22)) -> Salima | D22: =IF(INTRO!$E$39="Non-endemic",0,IF(INTRO!$E$39="Endemic but PC is not required",IF(COUNTRY_INFO!$H22=1,COUNTRY_INFO!F22+COUNTRY_INFO!G22,0),IF(COUNTRY_INFO!$H22=1,COUNTRY_INFO!F22+COUNTRY_INFO!G22,IF(COUNTRY_INFO!$I22=1,IF(COUNTRY_INFO!M22>=(COUNTRY_INFO!F22+COUNTRY_INFO!G22),COUNTRY_INFO!F22+COUNTRY_INFO!G22,COUNTRY_INFO!$M22),0)))) -> 0 | E22: =IF(AND(INTRO!$E$39="Non-endemic",INTRO!$E$37="Non-endemic"),"Not required",IF(INTRO!$E$39="Non-endemic","Treat with DEC",COUNTRY_INFO!V22)) -> 0 | F22: =IF(INTRO!$E$39<>"Non-endemic",COUNTRY_INFO!W22,"Not required") -> 0 | G22: =IF(COUNTRY_INFO!H22=1, IF($E22=1,$D22, 0),0) -> 0 | H22: =IF(COUNTRY_INFO!I22=1, IF(AND(COUNTRY_INFO!$I22=1,$F22<>0),IF(COUNTRY_INFO!M22>=(COUNTRY_INFO!F22+COUNTRY_INFO!G22),COUNTRY_INFO!F22+COUNTRY_INFO!G22,COUNTRY_INFO!$M22), 0),0) -> 0 | I22: 0 | J22: 0 | K22: 0 | L22: 0 | N22: 0
A23: =IF(INTRO!$E$39="Non-endemic"," ",IF(COUNTRY_INFO!A23=0," ",COUNTRY_INFO!A23)) -> MALAWI | B23: =IF(INTRO!$E$39="Non-endemic"," ",IF(COUNTRY_INFO!B23=0," ",COUNTRY_INFO!B23)) -> Central | C23: =IF(INTRO!$E$39="Non-endemic"," ",IF(COUNTRY_INFO!C23=0," ",COUNTRY_INFO!C23)) -> Nkhotakota | D23: =IF(INTRO!$E$39="Non-endemic",0,IF(INTRO!$E$39="Endemic but PC is not required",IF(COUNTRY_INFO!$H23=1,COUNTRY_INFO!F23+COUNTRY_INFO!G23,0),IF(COUNTRY_INFO!$H23=1,COUNTRY_INFO!F23+COUNTRY_INFO!G23,IF(COUNTRY_INFO!$I23=1,IF(COUNTRY_INFO!M23>=(COUNTRY_INFO!F23+COUNTRY_INFO!G23),COUNTRY_INFO!F23+COUNTRY_INFO!G23,COUNTRY_INFO!$M23),0)))) -> 0 | E23: =IF(AND(INTRO!$E$39="Non-endemic",INTRO!$E$37="Non-endemic"),"Not required",IF(INTRO!$E$39="Non-endemic","Treat with DEC",COUNTRY_INFO!V23)) -> 0 | F23: =IF(INTRO!$E$39<>"Non-endemic",COUNTRY_INFO!W23,"Not required") -> 0 | G23: =IF(COUNTRY_INFO!H23=1, IF($E23=1,$D23, 0),0) -> 0 | H23: =IF(COUNTRY_INFO!I23=1, IF(AND(COUNTRY_INFO!$I23=1,$F23<>0),IF(COUNTRY_INFO!M23>=(COUNTRY_INFO!F23+COUNTRY_INFO!G23),COUNTRY_INFO!F23+COUNTRY_INFO!G23,COUNTRY_INFO!$M23), 0),0) -> 0 | I23: 0 | J23: 0 | K23: 0 | L23: 0 | N23: 0
A24: =IF(INTRO!$E$39="Non-endemic"," ",IF(COUNTRY_INFO!A24=0," ",COUNTRY_INFO!A24)) -> MALAWI | B24: =IF(INTRO!$E$39="Non-endemic"," ",IF(COUNTRY_INFO!B24=0," ",COUNTRY_INFO!B24)) -> Central | C24: =IF(INTRO!$E$39="Non-endemic"," ",IF(COUNTRY_INFO!C24=0," ",COUNTRY_INFO!C24)) -> Ntchisi | D24: =IF(INTRO!$E$39="Non-endemic",0,IF(INTRO!$E$39="Endemic but PC is not required",IF(COUNTRY_INFO!$H24=1,COUNTRY_INFO!F24+COUNTRY_INFO!G24,0),IF(COUNTRY_INFO!$H24=1,COUNTRY_INFO!F24+COUNTRY_INFO!G24,IF(COUNTRY_INFO!$I24=1,IF(COUNTRY_INFO!M24>=(COUNTRY_INFO!F24+COUNTRY_INFO!G24),COUNTRY_INFO!F24+COUNTRY_INFO!G24,COUNTRY_INFO!$M24),0)))) -> 0 | E24: =IF(AND(INTRO!$E$39="Non-endemic",INTRO!$E$37="Non-endemic"),"Not required",IF(INTRO!$E$39="Non-endemic","Treat with DEC",COUNTRY_INFO!V24)) -> 0 | F24: =IF(INTRO!$E$39<>"Non-endemic",COUNTRY_INFO!W24,"Not required") -> 0 | G24: =IF(COUNTRY_INFO!H24=1, IF($E24=1,$D24, 0),0) -> 0 | H24: =IF(COUNTRY_INFO!I24=1, IF(AND(COUNTRY_INFO!$I24=1,$F24<>0),IF(COUNTRY_INFO!M24>=(COUNTRY_INFO!F24+COUNTRY_INFO!G24),COUNTRY_INFO!F24+COUNTRY_INFO!G24,COUNTRY_INFO!$M24), 0),0) -> 0 | I24: 0 | J24: 0 | K24: 0 | L24: 0 | N24: 0
A25: =IF(INTRO!$E$39="Non-endemic"," ",IF(COUNTRY_INFO!A25=0," ",COUNTRY_INFO!A25)) -> MALAWI | B25: =IF(INTRO!$E$39="Non-endemic"," ",IF(COUNTRY_INFO!B25=0," ",COUNTRY_INFO!B25)) -> Central | C25: =IF(INTRO!$E$39="Non-endemic"," ",IF(COUNTRY_INFO!C25=0," ",COUNTRY_INFO!C25)) -> Ntcheu | D25: =IF(INTRO!$E$39="Non-endemic",0,IF(INTRO!$E$39="Endemic but PC is not required",IF(COUNTRY_INFO!$H25=1,COUNTRY_INFO!F25+COUNTRY_INFO!G25,0),IF(COUNTRY_INFO!$H25=1,COUNTRY_INFO!F25+COUNTRY_INFO!G25,IF(COUNTRY_INFO!$I25=1,IF(COUNTRY_INFO!M25>=(COUNTRY_INFO!F25+COUNTRY_INFO!G25),COUNTRY_INFO!F25+COUNTRY_INFO!G25,COUNTRY_INFO!$M25),0)))) -> 214930 | E25: =IF(AND(INTRO!$E$39="Non-endemic",INTRO!$E$37="Non-endemic"),"Not required",IF(INTRO!$E$39="Non-endemic","Treat with DEC",COUNTRY_INFO!V25)) -> 0 | F25: =IF(INTRO!$E$39<>"Non-endemic",COUNTRY_INFO!W25,"Not required") -> 2 | G25: =IF(COUNTRY_INFO!H25=1, IF($E25=1,$D25, 0),0) -> 0 | H25: =IF(COUNTRY_INFO!I25=1, IF(AND(COUNTRY_INFO!$I25=1,$F25<>0),IF(COUNTRY_INFO!M25>=(COUNTRY_INFO!F25+COUNTRY_INFO!G25),COUNTRY_INFO!F25+COUNTRY_INFO!G25,COUNTRY_INFO!$M25), 0),0) -> 214930 | I25: 0 | J25: 1203608 | K25: 0 | L25: 1203608 | M25: 0 | N25: 1203608
A26: =IF(INTRO!$E$39="Non-endemic"," ",IF(COUNTRY_INFO!A26=0," ",COUNTRY_INFO!A26)) -> MALAWI | B26: =IF(INTRO!$E$39="Non-endemic"," ",IF(COUNTRY_INFO!B26=0," ",COUNTRY_INFO!B26)) -> South | C26: =IF(INTRO!$E$39="Non-endemic"," ",IF(COUNTRY_INFO!C26=0," ",COUNTRY_INFO!C26)) -> Balaka | D26: =IF(INTRO!$E$39="Non-endemic",0,IF(INTRO!$E$39="Endemic but PC is not required",IF(COUNTRY_INFO!$H26=1,COUNTRY_INFO!F26+COUNTRY_INFO!G26,0),IF(COUNTRY_INFO!$H26=1,COUNTRY_INFO!F26+COUNTRY_INFO!G26,IF(COUNTRY_INFO!$I26=1,IF(COUNTRY_INFO!M26>=(COUNTRY_INFO!F26+COUNTRY_INFO!G26),COUNTRY_INFO!F26+COUNTRY_INFO!G26,COUNTRY_INFO!$M26),0)))) -> 0 | E26: =IF(AND(INTRO!$E$39="Non-endemic",INTRO!$E$37="Non-endemic"),"Not required",IF(INTRO!$E$39="Non-endemic","Treat with DEC",COUNTRY_INFO!V26)) -> 0 | F26: =IF(INTRO!$E$39<>"Non-endemic",COUNTRY_INFO!W26,"Not required") -> 0 | G26: =IF(COUNTRY_INFO!H26=1, IF($E26=1,$D26, 0),0) -> 0 | H26: =IF(COUNTRY_INFO!I26=1, IF(AND(COUNTRY_INFO!$I26=1,$F26<>0),IF(COUNTRY_INFO!M26>=(COUNTRY_INFO!F26+COUNTRY_INFO!G26),COUNTRY_INFO!F26+COUNTRY_INFO!G26,COUNTRY_INFO!$M26), 0),0) -> 0 | I26: 0 | J26: 0 | K26: 0 | L26: 0 | N26: 0
A27: =IF(INTRO!$E$39="Non-endemic"," ",IF(COUNTRY_INFO!A27=0," ",COUNTRY_INFO!A27)) -> MALAWI | B27: =IF(INTRO!$E$39="Non-endemic"," ",IF(COUNTRY_INFO!B27=0," ",COUNTRY_INFO!B27)) -> South | C27: =IF(INTRO!$E$39="Non-endemic"," ",IF(COUNTRY_INFO!C27=0," ",COUNTRY_INFO!C27)) -> Chikwawa | D27: =IF(INTRO!$E$39="Non-endemic",0,IF(INTRO!$E$39="Endemic but PC is not required",IF(COUNTRY_INFO!$H27=1,COUNTRY_INFO!F27+COUNTRY_INFO!G27,0),IF(COUNTRY_INFO!$H27=1,COUNTRY_INFO!F27+COUNTRY_INFO!G27,IF(COUNTRY_INFO!$I27=1,IF(COUNTRY_INFO!M27>=(COUNTRY_INFO!F27+COUNTRY_INFO!G27),COUNTRY_INFO!F27+COUNTRY_INFO!G27,COUNTRY_INFO!$M27),0)))) -> 139183 | E27: =IF(AND(INTRO!$E$39="Non-endemic",INTRO!$E$37="Non-endemic"),"Not required",IF(INTRO!$E$39="Non-endemic","Treat with DEC",COUNTRY_INFO!V27)) -> 0 | F27: =IF(INTRO!$E$39<>"Non-endemic",COUNTRY_INFO!W27,"Not required") -> 1 | G27: =IF(COUNTRY_INFO!H27=1, IF($E27=1,$D27, 0),0) -> 0 | H27: =IF(COUNTRY_INFO!I27=1, IF(AND(COUNTRY_INFO!$I27=1,$F27<>0),IF(COUNTRY_INFO!M27>=(COUNTRY_INFO!F27+COUNTRY_INFO!G27),COUNTRY_INFO!F27+COUNTRY_INFO!G27,COUNTRY_INFO!$M27), 0),0) -> 139183 | I27: 0 | J27: 389712.4 | K27: 0 | L27: 389712.4 | M27: 0 | N27: 389712.4
A28: =IF(INTRO!$E$39="Non-endemic"," ",IF(COUNTRY_INFO!A28=0," ",COUNTRY_INFO!A28)) -> MALAWI | B28: =IF(INTRO!$E$39="Non-endemic"," ",IF(COUNTRY_INFO!B28=0," ",COUNTRY_INFO!B28)) -> South | C28: =IF(INTRO!$E$39="Non-endemic"," ",IF(COUNTRY_INFO!C28=0," ",COUNTRY_INFO!C28)) -> Chiradzulu | D28: =IF(INTRO!$E$39="Non-endemic",0,IF(INTRO!$E$39="Endemic but PC is not required",IF(COUNTRY_INFO!$H28=1,COUNTRY_INFO!F28+COUNTRY_INFO!G28,0),IF(COUNTRY_INFO!$H28=1,COUNTRY_INFO!F28+COUNTRY_INFO!G28,IF(COUNTRY_INFO!$I28=1,IF(COUNTRY_INFO!M28>=(COUNTRY_INFO!F28+COUNTRY_INFO!G28),COUNTRY_INFO!F28+COUNTRY_INFO!G28,COUNTRY_INFO!$M28),0)))) -> 224426 | E28: =IF(AND(INTRO!$E$39="Non-endemic",INTRO!$E$37="Non-endemic"),"Not required",IF(INTRO!$E$39="Non-endemic","Treat with DEC",COUNTRY_INFO!V28)) -> 0 | F28: =IF(INTRO!$E$39<>"Non-endemic",COUNTRY_INFO!W28,"Not required") -> 1 | G28: =IF(COUNTRY_INFO!H28=1, IF($E28=1,$D28, 0),0) -> 0 | H28: =IF(COUNTRY_INFO!I28=1, IF(AND(COUNTRY_INFO!$I28=1,$F28<>0),IF(COUNTRY_INFO!M28>=(COUNTRY_INFO!F28+COUNTRY_INFO!G28),COUNTRY_INFO!F28+COUNTRY_INFO!G28,COUNTRY_INFO!$M28), 0),0) -> 224426 | I28: 0 | J28: 628392.8 | K28: 0 | L28: 628392.8 | M28: 0 | N28: 628392.8
A29: =IF(INTRO!$E$39="Non-endemic"," ",IF(COUNTRY_INFO!A29=0," ",COUNTRY_INFO!A29)) -> MALAWI | B29: =IF(INTRO!$E$39="Non-endemic"," ",IF(COUNTRY_INFO!B29=0," ",COUNTRY_INFO!B29)) -> South | C29: =IF(INTRO!$E$39="Non-endemic"," ",IF(COUNTRY_INFO!C29=0," ",COUNTRY_INFO!C29)) -> Machinga | D29: =IF(INTRO!$E$39="Non-endemic",0,IF(INTRO!$E$39="Endemic but PC is not required",IF(COUNTRY_INFO!$H29=1,COUNTRY_INFO!F29+COUNTRY_INFO!G29,0),IF(COUNTRY_INFO!$H29=1,COUNTRY_INFO!F29+COUNTRY_INFO!G29,IF(COUNTRY_INFO!$I29=1,IF(COUNTRY_INFO!M29>=(COUNTRY_INFO!F29+COUNTRY_INFO!G29),COUNTRY_INFO!F29+COUNTRY_INFO!G29,COUNTRY_INFO!$M29),0)))) -> 0 | E29: =IF(AND(INTRO!$E$39="Non-endemic",INTRO!$E$37="Non-endemic"),"Not required",IF(INTRO!$E$39="Non-endemic","Treat with DEC",COUNTRY_INFO!V29)) -> 0 | F29: =IF(INTRO!$E$39<>"Non-endemic",COUNTRY_INFO!W29,"Not required") -> 0 | G29: =IF(COUNTRY_INFO!H29=1, IF($E29=1,$D29, 0),0) -> 0 | H29: =IF(COUNTRY_INFO!I29=1, IF(AND(COUNTRY_INFO!$I29=1,$F29<>0),IF(COUNTRY_INFO!M29>=(COUNTRY_INFO!F29+COUNTRY_INFO!G29),COUNTRY_INFO!F29+COUNTRY_INFO!G29,COUNTRY_INFO!$M29), 0),0) -> 0 | I29: 0 | J29: 0 | K29: 0 | L29: 0 | N29: 0
A30: =IF(INTRO!$E$39="Non-endemic"," ",IF(COUNTRY_INFO!A30=0," ",COUNTRY_INFO!A30)) -> MALAWI | B30: =IF(INTRO!$E$39="Non-endemic"," ",IF(COUNTRY_INFO!B30=0," ",COUNTRY_INFO!B30)) -> South | C30: =IF(INTRO!$E$39="Non-endemic"," ",IF(COUNTRY_INFO!C30=0," ",COUNTRY_INFO!C30)) -> Blantyre | D30: =IF(INTRO!$E$39="Non-endemic",0,IF(INTRO!$E$39="Endemic but PC is not required",IF(COUNTRY_INFO!$H30=1,COUNTRY_INFO!F30+COUNTRY_INFO!G30,0),IF(COUNTRY_INFO!$H30=1,COUNTRY_INFO!F30+COUNTRY_INFO!G30,IF(COUNTRY_INFO!$I30=1,IF(COUNTRY_INFO!M30>=(COUNTRY_INFO!F30+COUNTRY_INFO!G30),COUNTRY_INFO!F30+COUNTRY_INFO!G30,COUNTRY_INFO!$M30),0)))) -> 555704 | E30: =IF(AND(INTRO!$E$39="Non-endemic",INTRO!$E$37="Non-endemic"),"Not required",IF(INTRO!$E$39="Non-endemic","Treat with DEC",COUNTRY_INFO!V30)) -> 0 | F30: =IF(INTRO!$E$39<>"Non-endemic",COUNTRY_INFO!W30,"Not required") -> 1 | G30: =IF(COUNTRY_INFO!H30=1, IF($E30=1,$D30, 0),0) -> 0 | H30: =IF(COUNTRY_INFO!I30=1, IF(AND(COUNTRY_INFO!$I30=1,$F30<>0),IF(COUNTRY_INFO!M30>=(COUNTRY_INFO!F30+COUNTRY_INFO!G30),COUNTRY_INFO!F30+COUNTRY_INFO!G30,COUNTRY_INFO!$M30), 0),0) -> 555704 | I30: 0 | J30: 1555971.2 | K30: 0 | L30: 1555971.2 | M30: 0 | N30: 1555971.2
A31: =IF(INTRO!$E$39="Non-endemic"," ",IF(COUNTRY_INFO!A31=0," ",COUNTRY_INFO!A31)) -> MALAWI | B31: =IF(INTRO!$E$39="Non-endemic"," ",IF(COUNTRY_INFO!B31=0," ",COUNTRY_INFO!B31)) -> South | C31: =IF(INTRO!$E$39="Non-endemic"," ",IF(COUNTRY_INFO!C31=0," ",COUNTRY_INFO!C31)) -> Mangochi | D31: =IF(INTRO!$E$39="Non-endemic",0,IF(INTRO!$E$39="Endemic but PC is not required",IF(COUNTRY_INFO!$H31=1,COUNTRY_INFO!F31+COUNTRY_INFO!G31,0),IF(COUNTRY_INFO!$H31=1,COUNTRY_INFO!F31+COUNTRY_INFO!G31,IF(COUNTRY_INFO!$I31=1,IF(COUNTRY_INFO!M31>=(COUNTRY_INFO!F31+COUNTRY_INFO!G31),COUNTRY_INFO!F31+COUNTRY_INFO!G31,COUNTRY_INFO!$M31),0)))) -> 0 | E31: =IF(AND(INTRO!$E$39="Non-endemic",INTRO!$E$37="Non-endemic"),"Not required",IF(INTRO!$E$39="Non-endemic","Treat with DEC",COUNTRY_INFO!V31)) -> 0 | F31: =IF(INTRO!$E$39<>"Non-endemic",COUNTRY_INFO!W31,"Not required") -> 0 | G31: =IF(COUNTRY_INFO!H31=1, IF($E31=1,$D31, 0),0) -> 0 | H31: =IF(COUNTRY_INFO!I31=1, IF(AND(COUNTRY_INFO!$I31=1,$F31<>0),IF(COUNTRY_INFO!M31>=(COUNTRY_INFO!F31+COUNTRY_INFO!G31),COUNTRY_INFO!F31+COUNTRY_INFO!G31,COUNTRY_INFO!$M31), 0),0) -> 0 | I31: 0 | J31: 0 | K31: 0 | L31: 0 | N31: 0
A32: =IF(INTRO!$E$39="Non-endemic"," ",IF(COUNTRY_INFO!A32=0," ",COUNTRY_INFO!A32)) -> MALAWI | B32: =IF(INTRO!$E$39="Non-endemic"," ",IF(COUNTRY_INFO!B32=0," ",COUNTRY_INFO!B32)) -> South | C32: =IF(INTRO!$E$39="Non-endemic"," ",IF(COUNTRY_INFO!C32=0," ",COUNTRY_INFO!C32)) -> Mulanje | D32: =IF(INTRO!$E$39="Non-endemic",0,IF(INTRO!$E$39="Endemic but PC is not required",IF(COUNTRY_INFO!$H32=1,COUNTRY_INFO!F32+COUNTRY_INFO!G32,0),IF(COUNTRY_INFO!$H32=1,COUNTRY_INFO!F32+COUNTRY_INFO!G32,IF(COUNTRY_INFO!$I32=1,IF(COUNTRY_INFO!M32>=(COUNTRY_INFO!F32+COUNTRY_INFO!G32),COUNTRY_INFO!F32+COUNTRY_INFO!G32,COUNTRY_INFO!$M32),0)))) -> 590458 | E32: =IF(AND(INTRO!$E$39="Non-endemic",INTRO!$E$37="Non-endemic"),"Not required",IF(INTRO!$E$39="Non-endemic","Treat with DEC",COUNTRY_INFO!V32)) -> 0 | F32: =IF(INTRO!$E$39<>"Non-endemic",COUNTRY_INFO!W32,"Not required") -> 1 | G32: =IF(COUNTRY_INFO!H32=1, IF($E32=1,$D32, 0),0) -> 0 | H32: =IF(COUNTRY_INFO!I32=1, IF(AND(COUNTRY_INFO!$I32=1,$F32<>0),IF(COUNTRY_INFO!M32>=(COUNTRY_INFO!F32+COUNTRY_INFO!G32),COUNTRY_INFO!F32+COUNTRY_INFO!G32,COUNTRY_INFO!$M32), 0),0) -> 590458 | I32: 0 | J32: 1653282.4 | K32: 0 | L32: 1653282.4 | M32: 0 | N32: 1653282.4
A33: =IF(INTRO!$E$39="Non-endemic"," ",IF(COUNTRY_INFO!A33=0," ",COUNTRY_INFO!A33)) -> MALAWI | B33: =IF(INTRO!$E$39="Non-endemic"," ",IF(COUNTRY_INFO!B33=0," ",COUNTRY_INFO!B33)) -> South | C33: =IF(INTRO!$E$39="Non-endemic"," ",IF(COUNTRY_INFO!C33=0," ",COUNTRY_INFO!C33)) -> Nsanje | D33: =IF(INTRO!$E$39="Non-endemic",0,IF(INTRO!$E$39="Endemic but PC is not required",IF(COUNTRY_INFO!$H33=1,COUNTRY_INFO!F33+COUNTRY_INFO!G33,0),IF(COUNTRY_INFO!$H33=1,COUNTRY_INFO!F33+COUNTRY_INFO!G33,IF(COUNTRY_INFO!$I33=1,IF(COUNTRY_INFO!M33>=(COUNTRY_INFO!F33+COUNTRY_INFO!G33),COUNTRY_INFO!F33+COUNTRY_INFO!G33,COUNTRY_INFO!$M33),0)))) -> 0 | E33: =IF(AND(INTRO!$E$39="Non-endemic",INTRO!$E$37="Non-endemic"),"Not required",IF(INTRO!$E$39="Non-endemic","Treat with DEC",COUNTRY_INFO!V33)) -> 0 | F33: =IF(INTRO!$E$39<>"Non-endemic",COUNTRY_INFO!W33,"Not required") -> 0 | G33: =IF(COUNTRY_INFO!H33=1, IF($E33=1,$D33, 0),0) -> 0 | H33: =IF(COUNTRY_INFO!I33=1, IF(AND(COUNTRY_INFO!$I33=1,$F33<>0),IF(COUNTRY_INFO!M33>=(COUNTRY_INFO!F33+COUNTRY_INFO!G33),COUNTRY_INFO!F33+COUNTRY_INFO!G33,COUNTRY_INFO!$M33), 0),0) -> 0 | I33: 0 | J33: 0 | K33: 0 | L33: 0 | N33: 0
A34: =IF(INTRO!$E$39="Non-endemic"," ",IF(COUNTRY_INFO!A34=0," ",COUNTRY_INFO!A34)) -> MALAWI | B34: =IF(INTRO!$E$39="Non-endemic"," ",IF(COUNTRY_INFO!B34=0," ",COUNTRY_INFO!B34)) -> South | C34: =IF(INTRO!$E$39="Non-endemic"," ",IF(COUNTRY_INFO!C34=0," ",COUNTRY_INFO!C34)) -> Phalombe | D34: =IF(INTRO!$E$39="Non-endemic",0,IF(INTRO!$E$39="Endemic but PC is not required",IF(COUNTRY_INFO!$H34=1,COUNTRY_INFO!F34+COUNTRY_INFO!G34,0),IF(COUNTRY_INFO!$H34=1,COUNTRY_INFO!F34+COUNTRY_INFO!G34,IF(COUNTRY_INFO!$I34=1,IF(COUNTRY_INFO!M34>=(COUNTRY_INFO!F34+COUNTRY_INFO!G34),COUNTRY_INFO!F34+COUNTRY_INFO!G34,COUNTRY_INFO!$M34),0)))) -> 55251 | E34: =IF(AND(INTRO!$E$39="Non-endemic",INTRO!$E$37="Non-endemic"),"Not required",IF(INTRO!$E$39="Non-endemic","Treat with DEC",COUNTRY_INFO!V34)) -> 0 | F34: =IF(INTRO!$E$39<>"Non-endemic",COUNTRY_INFO!W34,"Not required") -> 1 | G34: =IF(COUNTRY_INFO!H34=1, IF($E34=1,$D34, 0),0) -> 0 | H34: =IF(COUNTRY_INFO!I34=1, IF(AND(COUNTRY_INFO!$I34=1,$F34<>0),IF(COUNTRY_INFO!M34>=(COUNTRY_INFO!F34+COUNTRY_INFO!G34),COUNTRY_INFO!F34+COUNTRY_INFO!G34,COUNTRY_INFO!$M34), 0),0) -> 55251 | I34: 0 | J34: 154702.8 | K34: 0 | L34: 154702.8 | M34: 0 | N34: 154702.8
A35: =IF(INTRO!$E$39="Non-endemic"," ",IF(COUNTRY_INFO!A35=0," ",COUNTRY_INFO!A35)) -> MALAWI | B35: =IF(INTRO!$E$39="Non-endemic"," ",IF(COUNTRY_INFO!B35=0," ",COUNTRY_INFO!B35)) -> South | C35: =IF(INTRO!$E$39="Non-endemic"," ",IF(COUNTRY_INFO!C35=0," ",COUNTRY_INFO!C35)) -> Thyolo | D35: =IF(INTRO!$E$39="Non-endemic",0,IF(INTRO!$E$39="Endemic but PC is not required",IF(COUNTRY_INFO!$H35=1,COUNTRY_INFO!F35+COUNTRY_INFO!G35,0),IF(COUNTRY_INFO!$H35=1,COUNTRY_INFO!F35+COUNTRY_INFO!G35,IF(COUNTRY_INFO!$I35=1,IF(COUNTRY_INFO!M35>=(COUNTRY_INFO!F35+COUNTRY_INFO!G35),COUNTRY_INFO!F35+COUNTRY_INFO!G35,COUNTRY_INFO!$M35),0)))) -> 588613 | E35: =IF(AND(INTRO!$E$39="Non-endemic",INTRO!$E$37="Non-endemic"),"Not required",IF(INTRO!$E$39="Non-endemic","Treat with DEC",COUNTRY_INFO!V35)) -> 0 | F35: =IF(INTRO!$E$39<>"Non-endemic",COUNTRY_INFO!W35,"Not required") -> 1 | G35: =IF(COUNTRY_INFO!H35=1, IF($E35=1,$D35, 0),0) -> 0 | H35: =IF(COUNTRY_INFO!I35=1, IF(AND(COUNTRY_INFO!$I35=1,$F35<>0),IF(COUNTRY_INFO!M35>=(COUNTRY_INFO!F35+COUNTRY_INFO!G35),COUNTRY_INFO!F35+COUNTRY_INFO!G35,COUNTRY_INFO!$M35), 0),0) -> 588613 | I35: 0 | J35: 1648116.4 | K35: 0 | L35: 1648116.4 | M35: 0 | N35: 1648116.4
A36: =IF(INTRO!$E$39="Non-endemic"," ",IF(COUNTRY_INFO!A36=0," ",COUNTRY_INFO!A36)) -> MALAWI | B36: =IF(INTRO!$E$39="Non-endemic"," ",IF(COUNTRY_INFO!B36=0," ",COUNTRY_INFO!B36)) -> South | C36: =IF(INTRO!$E$39="Non-endemic"," ",IF(COUNTRY_INFO!C36=0," ",COUNTRY_INFO!C36)) -> Zomba | D36: =IF(INTRO!$E$39="Non-endemic",0,IF(INTRO!$E$39="Endemic but PC is not required",IF(COUNTRY_INFO!$H36=1,COUNTRY_INFO!F36+COUNTRY_INFO!G36,0),IF(COUNTRY_INFO!$H36=1,COUNTRY_INFO!F36+COUNTRY_INFO!G36,IF(COUNTRY_INFO!$I36=1,IF(COUNTRY_INFO!M36>=(COUNTRY_INFO!F36+COUNTRY_INFO!G36),COUNTRY_INFO!F36+COUNTRY_INFO!G36,COUNTRY_INFO!$M36),0)))) -> 225200 | E36: =IF(AND(INTRO!$E$39="Non-endemic",INTRO!$E$37="Non-endemic"),"Not required",IF(INTRO!$E$39="Non-endemic","Treat with DEC",COUNTRY_INFO!V36)) -> 0 | F36: =IF(INTRO!$E$39<>"Non-endemic",COUNTRY_INFO!W36,"Not required") -> 2 | G36: =IF(COUNTRY_INFO!H36=1, IF($E36=1,$D36, 0),0) -> 0 | H36: =IF(COUNTRY_INFO!I36=1, IF(AND(COUNTRY_INFO!$I36=1,$F36<>0),IF(COUNTRY_INFO!M36>=(COUNTRY_INFO!F36+COUNTRY_INFO!G36),COUNTRY_INFO!F36+COUNTRY_INFO!G36,COUNTRY_INFO!$M36), 0),0) -> 225200 | I36: 0 | J36: 1261120 | K36: 0 | L36: 1261120 | M36: 0 | N36: 1261120
A37: =IF(INTRO!$E$39="Non-endemic"," ",IF(COUNTRY_INFO!A37=0," ",COUNTRY_INFO!A37)) -> MALAWI | B37: =IF(INTRO!$E$39="Non-endemic"," ",IF(COUNTRY_INFO!B37=0," ",COUNTRY_INFO!B37)) -> South | C37: =IF(INTRO!$E$39="Non-endemic"," ",IF(COUNTRY_INFO!C37=0," ",COUNTRY_INFO!C37)) -> Neno | D37: =IF(INTRO!$E$39="Non-endemic",0,IF(INTRO!$E$39="Endemic but PC is not required",IF(COUNTRY_INFO!$H37=1,COUNTRY_INFO!F37+COUNTRY_INFO!G37,0),IF(COUNTRY_INFO!$H37=1,COUNTRY_INFO!F37+COUNTRY_INFO!G37,IF(COUNTRY_INFO!$I37=1,IF(COUNTRY_INFO!M37>=(COUNTRY_INFO!F37+COUNTRY_INFO!G37),COUNTRY_INFO!F37+COUNTRY_INFO!G37,COUNTRY_INFO!$M37),0)))) -> 164273 | E37: =IF(AND(INTRO!$E$39="Non-endemic",INTRO!$E$37="Non-endemic"),"Not required",IF(INTRO!$E$39="Non-endemic","Treat with DEC",COUNTRY_INFO!V37)) -> 0 | F37: =IF(INTRO!$E$39<>"Non-endemic",COUNTRY_INFO!W37,"Not required") -> 1 | G37: =IF(COUNTRY_INFO!H37=1, IF($E37=1,$D37, 0),0) -> 0 | H37: =IF(COUNTRY_INFO!I37=1, IF(AND(COUNTRY_INFO!$I37=1,$F37<>0),IF(COUNTRY_INFO!M37>=(COUNTRY_INFO!F37+COUNTRY_INFO!G37),COUNTRY_INFO!F37+COUNTRY_INFO!G37,COUNTRY_INFO!$M37), 0),0) -> 164273 | I37: 0 | J37: 459964.4 | K37: 0 | L37: 459964.4 | M37: 0 | N37: 459964.4
A38: =IF(INTRO!$E$39="Non-endemic"," ",IF(COUNTRY_INFO!A38=0," ",COUNTRY_INFO!A38)) -> MALAWI | B38: =IF(INTRO!$E$39="Non-endemic"," ",IF(COUNTRY_INFO!B38=0," ",COUNTRY_INFO!B38)) -> South | C38: =IF(INTRO!$E$39="Non-endemic"," ",IF(COUNTRY_INFO!C38=0," ",COUNTRY_INFO!C38)) -> Mwanza | D38: =IF(INTRO!$E$39="Non-endemic",0,IF(INTRO!$E$39="Endemic but PC is not required",IF(COUNTRY_INFO!$H38=1,COUNTRY_INFO!F38+COUNTRY_INFO!G38,0),IF(COUNTRY_INFO!$H38=1,COUNTRY_INFO!F38+COUNTRY_INFO!G38,IF(COUNTRY_INFO!$I38=1,IF(COUNTRY_INFO!M38>=(COUNTRY_INFO!F38+COUNTRY_INFO!G38),COUNTRY_INFO!F38+COUNTRY_INFO!G38,COUNTRY_INFO!$M38),0)))) -> 133358 | E38: =IF(AND(INTRO!$E$39="Non-endemic",INTRO!$E$37="Non-endemic"),"Not required",IF(INTRO!$E$39="Non-endemic","Treat with DEC",COUNTRY_INFO!V38)) -> 0 | F38: =IF(INTRO!$E$39<>"Non-endemic",COUNTRY_INFO!W38,"Not required") -> 1 | G38: =IF(COUNTRY_INFO!H38=1, IF($E38=1,$D38, 0),0) -> 0 | H38: =IF(COUNTRY_INFO!I38=1, IF(AND(COUNTRY_INFO!$I38=1,$F38<>0),IF(COUNTRY_INFO!M38>=(COUNTRY_INFO!F38+COUNTRY_INFO!G38),COUNTRY_INFO!F38+COUNTRY_INFO!G38,COUNTRY_INFO!$M38), 0),0) -> 133358 | I38: 0 | J38: 373402.4 | K38: 0 | L38: 373402.4 | M38: 0 | N38: 373402.4

Sheet IVM+ (hidden)
A1: Ivermectin (IVM) for IDA therapy
A2: Administrative structure, eligible population by age group, treatment plan and information about tablets
A4: TOTAL | E4: =SUBTOTAL(9,E$10:E$1010) -> 0 | F4: 0 | G4: 0 | H4: 0
A6: Country administrative structure | D6: Treatment plan | E6: Population targeted for treatment with IVM (IDA therapy) | F6: Ivermectin (IVM)
A7: Country | B7: Province/State | C7: District | D7: LF | F7: Total required | G7: Remaining in stock | H7: Tablets to be procured
A10: =IF(AND(INTRO!$E$37="Endemic",INTRO!$E$39="Non-endemic"),IF(COUNTRY_INFO!A10=0," ",COUNTRY_INFO!A10)," ") ->  | B10: =IF(AND(INTRO!$E$37="Endemic",INTRO!$E$39="Non-endemic"),IF(COUNTRY_INFO!B10=0," ",COUNTRY_INFO!B10)," ") ->  | C10: =IF(AND(INTRO!$E$37="Endemic",INTRO!$E$39="Non-endemic"),IF(COUNTRY_INFO!C10=0," ",COUNTRY_INFO!C10)," ") ->  | D10: =IF(COUNTRY_INFO!Z10<>"",COUNTRY_INFO!V10,0) -> 0 | E10: =IF(AND(COUNTRY_INFO!Z10<>"",COUNTRY_INFO!$H10=1),COUNTRY_INFO!F10+COUNTRY_INFO!G10,0) -> 0 | F10: =E10*2.8 -> 0 | H10: =IF($F10>$G10,$F10-$G10,0) -> 0
A11: =IF(AND(INTRO!$E$37="Endemic",INTRO!$E$39="Non-endemic"),IF(COUNTRY_INFO!A11=0," ",COUNTRY_INFO!A11)," ") ->  | B11: =IF(AND(INTRO!$E$37="Endemic",INTRO!$E$39="Non-endemic"),IF(COUNTRY_INFO!B11=0," ",COUNTRY_INFO!B11)," ") ->  | C11: =IF(AND(INTRO!$E$37="Endemic",INTRO!$E$39="Non-endemic"),IF(COUNTRY_INFO!C11=0," ",COUNTRY_INFO!C11)," ") ->  | D11: =IF(COUNTRY_INFO!Z11<>"",COUNTRY_INFO!V11,0) -> 0 | E11: =IF(AND(COUNTRY_INFO!Z11<>"",COUNTRY_INFO!$H11=1),COUNTRY_INFO!F11+COUNTRY_INFO!G11,0) -> 0 | F11: =E11*2.8 -> 0 | H11: 0
A12: =IF(AND(INTRO!$E$37="Endemic",INTRO!$E$39="Non-endemic"),IF(COUNTRY_INFO!A12=0," ",COUNTRY_INFO!A12)," ") ->  | B12: =IF(AND(INTRO!$E$37="Endemic",INTRO!$E$39="Non-endemic"),IF(COUNTRY_INFO!B12=0," ",COUNTRY_INFO!B12)," ") ->  | C12: =IF(AND(INTRO!$E$37="Endemic",INTRO!$E$39="Non-endemic"),IF(COUNTRY_INFO!C12=0," ",COUNTRY_INFO!C12)," ") ->  | D12: =IF(COUNTRY_INFO!Z12<>"",COUNTRY_INFO!V12,0) -> 0 | E12: =IF(AND(COUNTRY_INFO!Z12<>"",COUNTRY_INFO!$H12=1),COUNTRY_INFO!F12+COUNTRY_INFO!G12,0) -> 0 | F12: 0 | H12: 0
A13: =IF(AND(INTRO!$E$37="Endemic",INTRO!$E$39="Non-endemic"),IF(COUNTRY_INFO!A13=0," ",COUNTRY_INFO!A13)," ") ->  | B13: =IF(AND(INTRO!$E$37="Endemic",INTRO!$E$39="Non-endemic"),IF(COUNTRY_INFO!B13=0," ",COUNTRY_INFO!B13)," ") ->  | C13: =IF(AND(INTRO!$E$37="Endemic",INTRO!$E$39="Non-endemic"),IF(COUNTRY_INFO!C13=0," ",COUNTRY_INFO!C13)," ") ->  | D13: =IF(COUNTRY_INFO!Z13<>"",COUNTRY_INFO!V13,0) -> 0 | E13: =IF(AND(COUNTRY_INFO!Z13<>"",COUNTRY_INFO!$H13=1),COUNTRY_INFO!F13+COUNTRY_INFO!G13,0) -> 0 | F13: 0 | H13: 0
A14: =IF(AND(INTRO!$E$37="Endemic",INTRO!$E$39="Non-endemic"),IF(COUNTRY_INFO!A14=0," ",COUNTRY_INFO!A14)," ") ->  | B14: =IF(AND(INTRO!$E$37="Endemic",INTRO!$E$39="Non-endemic"),IF(COUNTRY_INFO!B14=0," ",COUNTRY_INFO!B14)," ") ->  | C14: =IF(AND(INTRO!$E$37="Endemic",INTRO!$E$39="Non-endemic"),IF(COUNTRY_INFO!C14=0," ",COUNTRY_INFO!C14)," ") ->  | D14: =IF(COUNTRY_INFO!Z14<>"",COUNTRY_INFO!V14,0) -> 0 | E14: =IF(AND(COUNTRY_INFO!Z14<>"",COUNTRY_INFO!$H14=1),COUNTRY_INFO!F14+COUNTRY_INFO!G14,0) -> 0 | F14: 0 | H14: 0
A15: =IF(AND(INTRO!$E$37="Endemic",INTRO!$E$39="Non-endemic"),IF(COUNTRY_INFO!A15=0," ",COUNTRY_INFO!A15)," ") ->  | B15: =IF(AND(INTRO!$E$37="Endemic",INTRO!$E$39="Non-endemic"),IF(COUNTRY_INFO!B15=0," ",COUNTRY_INFO!B15)," ") ->  | C15: =IF(AND(INTRO!$E$37="Endemic",INTRO!$E$39="Non-endemic"),IF(COUNTRY_INFO!C15=0," ",COUNTRY_INFO!C15)," ") ->  | D15: =IF(COUNTRY_INFO!Z15<>"",COUNTRY_INFO!V15,0) -> 0 | E15: =IF(AND(COUNTRY_INFO!Z15<>"",COUNTRY_INFO!$H15=1),COUNTRY_INFO!F15+COUNTRY_INFO!G15,0) -> 0 | F15: 0 | H15: 0
A16: =IF(AND(INTRO!$E$37="Endemic",INTRO!$E$39="Non-endemic"),IF(COUNTRY_INFO!A16=0," ",COUNTRY_INFO!A16)," ") ->  | B16: =IF(AND(INTRO!$E$37="Endemic",INTRO!$E$39="Non-endemic"),IF(COUNTRY_INFO!B16=0," ",COUNTRY_INFO!B16)," ") ->  | C16: =IF(AND(INTRO!$E$37="Endemic",INTRO!$E$39="Non-endemic"),IF(COUNTRY_INFO!C16=0," ",COUNTRY_INFO!C16)," ") ->  | D16: =IF(COUNTRY_INFO!Z16<>"",COUNTRY_INFO!V16,0) -> 0 | E16: =IF(AND(COUNTRY_INFO!Z16<>"",COUNTRY_INFO!$H16=1),COUNTRY_INFO!F16+COUNTRY_INFO!G16,0) -> 0 | F16: 0 | H16: 0
A17: =IF(AND(INTRO!$E$37="Endemic",INTRO!$E$39="Non-endemic"),IF(COUNTRY_INFO!A17=0," ",COUNTRY_INFO!A17)," ") ->  | B17: =IF(AND(INTRO!$E$37="Endemic",INTRO!$E$39="Non-endemic"),IF(COUNTRY_INFO!B17=0," ",COUNTRY_INFO!B17)," ") ->  | C17: =IF(AND(INTRO!$E$37="Endemic",INTRO!$E$39="Non-endemic"),IF(COUNTRY_INFO!C17=0," ",COUNTRY_INFO!C17)," ") ->  | D17: =IF(COUNTRY_INFO!Z17<>"",COUNTRY_INFO!V17,0) -> 0 | E17: =IF(AND(COUNTRY_INFO!Z17<>"",COUNTRY_INFO!$H17=1),COUNTRY_INFO!F17+COUNTRY_INFO!G17,0) -> 0 | F17: 0 | H17: 0
A18: =IF(AND(INTRO!$E$37="Endemic",INTRO!$E$39="Non-endemic"),IF(COUNTRY_INFO!A18=0," ",COUNTRY_INFO!A18)," ") ->  | B18: =IF(AND(INTRO!$E$37="Endemic",INTRO!$E$39="Non-endemic"),IF(COUNTRY_INFO!B18=0," ",COUNTRY_INFO!B18)," ") ->  | C18: =IF(AND(INTRO!$E$37="Endemic",INTRO!$E$39="Non-endemic"),IF(COUNTRY_INFO!C18=0," ",COUNTRY_INFO!C18)," ") ->  | D18: =IF(COUNTRY_INFO!Z18<>"",COUNTRY_INFO!V18,0) -> 0 | E18: =IF(AND(COUNTRY_INFO!Z18<>"",COUNTRY_INFO!$H18=1),COUNTRY_INFO!F18+COUNTRY_INFO!G18,0) -> 0 | F18: 0 | H18: 0
A19: =IF(AND(INTRO!$E$37="Endemic",INTRO!$E$39="Non-endemic"),IF(COUNTRY_INFO!A19=0," ",COUNTRY_INFO!A19)," ") ->  | B19: =IF(AND(INTRO!$E$37="Endemic",INTRO!$E$39="Non-endemic"),IF(COUNTRY_INFO!B19=0," ",COUNTRY_INFO!B19)," ") ->  | C19: =IF(AND(INTRO!$E$37="Endemic",INTRO!$E$39="Non-endemic"),IF(COUNTRY_INFO!C19=0," ",COUNTRY_INFO!C19)," ") ->  | D19: =IF(COUNTRY_INFO!Z19<>"",COUNTRY_INFO!V19,0) -> 0 | E19: =IF(AND(COUNTRY_INFO!Z19<>"",COUNTRY_INFO!$H19=1),COUNTRY_INFO!F19+COUNTRY_INFO!G19,0) -> 0 | F19: 0 | H19: 0
A20: =IF(AND(INTRO!$E$37="Endemic",INTRO!$E$39="Non-endemic"),IF(COUNTRY_INFO!A20=0," ",COUNTRY_INFO!A20)," ") ->  | B20: =IF(AND(INTRO!$E$37="Endemic",INTRO!$E$39="Non-endemic"),IF(COUNTRY_INFO!B20=0," ",COUNTRY_INFO!B20)," ") ->  | C20: =IF(AND(INTRO!$E$37="Endemic",INTRO!$E$39="Non-endemic"),IF(COUNTRY_INFO!C20=0," ",COUNTRY_INFO!C20)," ") ->  | D20: =IF(COUNTRY_INFO!Z20<>"",COUNTRY_INFO!V20,0) -> 0 | E20: =IF(AND(COUNTRY_INFO!Z20<>"",COUNTRY_INFO!$H20=1),COUNTRY_INFO!F20+COUNTRY_INFO!G20,0) -> 0 | F20: 0 | H20: 0
A21: =IF(AND(INTRO!$E$37="Endemic",INTRO!$E$39="Non-endemic"),IF(COUNTRY_INFO!A21=0," ",COUNTRY_INFO!A21)," ") ->  | B21: =IF(AND(INTRO!$E$37="Endemic",INTRO!$E$39="Non-endemic"),IF(COUNTRY_INFO!B21=0," ",COUNTRY_INFO!B21)," ") ->  | C21: =IF(AND(INTRO!$E$37="Endemic",INTRO!$E$39="Non-endemic"),IF(COUNTRY_INFO!C21=0," ",COUNTRY_INFO!C21)," ") ->  | D21: =IF(COUNTRY_INFO!Z21<>"",COUNTRY_INFO!V21,0) -> 0 | E21: =IF(AND(COUNTRY_INFO!Z21<>"",COUNTRY_INFO!$H21=1),COUNTRY_INFO!F21+COUNTRY_INFO!G21,0) -> 0 | F21: 0 | H21: 0
A22: =IF(AND(INTRO!$E$37="Endemic",INTRO!$E$39="Non-endemic"),IF(COUNTRY_INFO!A22=0," ",COUNTRY_INFO!A22)," ") ->  | B22: =IF(AND(INTRO!$E$37="Endemic",INTRO!$E$39="Non-endemic"),IF(COUNTRY_INFO!B22=0," ",COUNTRY_INFO!B22)," ") ->  | C22: =IF(AND(INTRO!$E$37="Endemic",INTRO!$E$39="Non-endemic"),IF(COUNTRY_INFO!C22=0," ",COUNTRY_INFO!C22)," ") ->  | D22: =IF(COUNTRY_INFO!Z22<>"",COUNTRY_INFO!V22,0) -> 0 | E22: =IF(AND(COUNTRY_INFO!Z22<>"",COUNTRY_INFO!$H22=1),COUNTRY_INFO!F22+COUNTRY_INFO!G22,0) -> 0 | F22: 0 | H22: 0
A23: =IF(AND(INTRO!$E$37="Endemic",INTRO!$E$39="Non-endemic"),IF(COUNTRY_INFO!A23=0," ",COUNTRY_INFO!A23)," ") ->  | B23: =IF(AND(INTRO!$E$37="Endemic",INTRO!$E$39="Non-endemic"),IF(COUNTRY_INFO!B23=0," ",COUNTRY_INFO!B23)," ") ->  | C23: =IF(AND(INTRO!$E$37="Endemic",INTRO!$E$39="Non-endemic"),IF(COUNTRY_INFO!C23=0," ",COUNTRY_INFO!C23)," ") ->  | D23: =IF(COUNTRY_INFO!Z23<>"",COUNTRY_INFO!V23,0) -> 0 | E23: =IF(AND(COUNTRY_INFO!Z23<>"",COUNTRY_INFO!$H23=1),COUNTRY_INFO!F23+COUNTRY_INFO!G23,0) -> 0 | F23: 0 | H23: 0
A24: =IF(AND(INTRO!$E$37="Endemic",INTRO!$E$39="Non-endemic"),IF(COUNTRY_INFO!A24=0," ",COUNTRY_INFO!A24)," ") ->  | B24: =IF(AND(INTRO!$E$37="Endemic",INTRO!$E$39="Non-endemic"),IF(COUNTRY_INFO!B24=0," ",COUNTRY_INFO!B24)," ") ->  | C24: =IF(AND(INTRO!$E$37="Endemic",INTRO!$E$39="Non-endemic"),IF(COUNTRY_INFO!C24=0," ",COUNTRY_INFO!C24)," ") ->  | D24: =IF(COUNTRY_INFO!Z24<>"",COUNTRY_INFO!V24,0) -> 0 | E24: =IF(AND(COUNTRY_INFO!Z24<>"",COUNTRY_INFO!$H24=1),COUNTRY_INFO!F24+COUNTRY_INFO!G24,0) -> 0 | F24: 0 | H24: 0
A25: =IF(AND(INTRO!$E$37="Endemic",INTRO!$E$39="Non-endemic"),IF(COUNTRY_INFO!A25=0," ",COUNTRY_INFO!A25)," ") ->  | B25: =IF(AND(INTRO!$E$37="Endemic",INTRO!$E$39="Non-endemic"),IF(COUNTRY_INFO!B25=0," ",COUNTRY_INFO!B25)," ") ->  | C25: =IF(AND(INTRO!$E$37="Endemic",INTRO!$E$39="Non-endemic"),IF(COUNTRY_INFO!C25=0," ",COUNTRY_INFO!C25)," ") ->  | D25: =IF(COUNTRY_INFO!Z25<>"",COUNTRY_INFO!V25,0) -> 0 | E25: =IF(AND(COUNTRY_INFO!Z25<>"",COUNTRY_INFO!$H25=1),COUNTRY_INFO!F25+COUNTRY_INFO!G25,0) -> 0 | F25: 0 | H25: 0
A26: =IF(AND(INTRO!$E$37="Endemic",INTRO!$E$39="Non-endemic"),IF(COUNTRY_INFO!A26=0," ",COUNTRY_INFO!A26)," ") ->  | B26: =IF(AND(INTRO!$E$37="Endemic",INTRO!$E$39="Non-endemic"),IF(COUNTRY_INFO!B26=0," ",COUNTRY_INFO!B26)," ") ->  | C26: =IF(AND(INTRO!$E$37="Endemic",INTRO!$E$39="Non-endemic"),IF(COUNTRY_INFO!C26=0," ",COUNTRY_INFO!C26)," ") ->  | D26: =IF(COUNTRY_INFO!Z26<>"",COUNTRY_INFO!V26,0) -> 0 | E26: =IF(AND(COUNTRY_INFO!Z26<>"",COUNTRY_INFO!$H26=1),COUNTRY_INFO!F26+COUNTRY_INFO!G26,0) -> 0 | F26: 0 | H26: 0
A27: =IF(AND(INTRO!$E$37="Endemic",INTRO!$E$39="Non-endemic"),IF(COUNTRY_INFO!A27=0," ",COUNTRY_INFO!A27)," ") ->  | B27: =IF(AND(INTRO!$E$37="Endemic",INTRO!$E$39="Non-endemic"),IF(COUNTRY_INFO!B27=0," ",COUNTRY_INFO!B27)," ") ->  | C27: =IF(AND(INTRO!$E$37="Endemic",INTRO!$E$39="Non-endemic"),IF(COUNTRY_INFO!C27=0," ",COUNTRY_INFO!C27)," ") ->  | D27: =IF(COUNTRY_INFO!Z27<>"",COUNTRY_INFO!V27,0) -> 0 | E27: =IF(AND(COUNTRY_INFO!Z27<>"",COUNTRY_INFO!$H27=1),COUNTRY_INFO!F27+COUNTRY_INFO!G27,0) -> 0 | F27: 0 | H27: 0
A28: =IF(AND(INTRO!$E$37="Endemic",INTRO!$E$39="Non-endemic"),IF(COUNTRY_INFO!A28=0," ",COUNTRY_INFO!A28)," ") ->  | B28: =IF(AND(INTRO!$E$37="Endemic",INTRO!$E$39="Non-endemic"),IF(COUNTRY_INFO!B28=0," ",COUNTRY_INFO!B28)," ") ->  | C28: =IF(AND(INTRO!$E$37="Endemic",INTRO!$E$39="Non-endemic"),IF(COUNTRY_INFO!C28=0," ",COUNTRY_INFO!C28)," ") ->  | D28: =IF(COUNTRY_INFO!Z28<>"",COUNTRY_INFO!V28,0) -> 0 | E28: =IF(AND(COUNTRY_INFO!Z28<>"",COUNTRY_INFO!$H28=1),COUNTRY_INFO!F28+COUNTRY_INFO!G28,0) -> 0 | F28: 0 | H28: 0
A29: =IF(AND(INTRO!$E$37="Endemic",INTRO!$E$39="Non-endemic"),IF(COUNTRY_INFO!A29=0," ",COUNTRY_INFO!A29)," ") ->  | B29: =IF(AND(INTRO!$E$37="Endemic",INTRO!$E$39="Non-endemic"),IF(COUNTRY_INFO!B29=0," ",COUNTRY_INFO!B29)," ") ->  | C29: =IF(AND(INTRO!$E$37="Endemic",INTRO!$E$39="Non-endemic"),IF(COUNTRY_INFO!C29=0," ",COUNTRY_INFO!C29)," ") ->  | D29: =IF(COUNTRY_INFO!Z29<>"",COUNTRY_INFO!V29,0) -> 0 | E29: =IF(AND(COUNTRY_INFO!Z29<>"",COUNTRY_INFO!$H29=1),COUNTRY_INFO!F29+COUNTRY_INFO!G29,0) -> 0 | F29: 0 | H29: 0
A30: =IF(AND(INTRO!$E$37="Endemic",INTRO!$E$39="Non-endemic"),IF(COUNTRY_INFO!A30=0," ",COUNTRY_INFO!A30)," ") ->  | B30: =IF(AND(INTRO!$E$37="Endemic",INTRO!$E$39="Non-endemic"),IF(COUNTRY_INFO!B30=0," ",COUNTRY_INFO!B30)," ") ->  | C30: =IF(AND(INTRO!$E$37="Endemic",INTRO!$E$39="Non-endemic"),IF(COUNTRY_INFO!C30=0," ",COUNTRY_INFO!C30)," ") ->  | D30: =IF(COUNTRY_INFO!Z30<>"",COUNTRY_INFO!V30,0) -> 0 | E30: =IF(AND(COUNTRY_INFO!Z30<>"",COUNTRY_INFO!$H30=1),COUNTRY_INFO!F30+COUNTRY_INFO!G30,0) -> 0 | F30: 0 | H30: 0
A31: =IF(AND(INTRO!$E$37="Endemic",INTRO!$E$39="Non-endemic"),IF(COUNTRY_INFO!A31=0," ",COUNTRY_INFO!A31)," ") ->  | B31: =IF(AND(INTRO!$E$37="Endemic",INTRO!$E$39="Non-endemic"),IF(COUNTRY_INFO!B31=0," ",COUNTRY_INFO!B31)," ") ->  | C31: =IF(AND(INTRO!$E$37="Endemic",INTRO!$E$39="Non-endemic"),IF(COUNTRY_INFO!C31=0," ",COUNTRY_INFO!C31)," ") ->  | D31: =IF(COUNTRY_INFO!Z31<>"",COUNTRY_INFO!V31,0) -> 0 | E31: =IF(AND(COUNTRY_INFO!Z31<>"",COUNTRY_INFO!$H31=1),COUNTRY_INFO!F31+COUNTRY_INFO!G31,0) -> 0 | F31: 0 | H31: 0
A32: =IF(AND(INTRO!$E$37="Endemic",INTRO!$E$39="Non-endemic"),IF(COUNTRY_INFO!A32=0," ",COUNTRY_INFO!A32)," ") ->  | B32: =IF(AND(INTRO!$E$37="Endemic",INTRO!$E$39="Non-endemic"),IF(COUNTRY_INFO!B32=0," ",COUNTRY_INFO!B32)," ") ->  | C32: =IF(AND(INTRO!$E$37="Endemic",INTRO!$E$39="Non-endemic"),IF(COUNTRY_INFO!C32=0," ",COUNTRY_INFO!C32)," ") ->  | D32: =IF(COUNTRY_INFO!Z32<>"",COUNTRY_INFO!V32,0) -> 0 | E32: =IF(AND(COUNTRY_INFO!Z32<>"",COUNTRY_INFO!$H32=1),COUNTRY_INFO!F32+COUNTRY_INFO!G32,0) -> 0 | F32: 0 | H32: 0
A33: =IF(AND(INTRO!$E$37="Endemic",INTRO!$E$39="Non-endemic"),IF(COUNTRY_INFO!A33=0," ",COUNTRY_INFO!A33)," ") ->  | B33: =IF(AND(INTRO!$E$37="Endemic",INTRO!$E$39="Non-endemic"),IF(COUNTRY_INFO!B33=0," ",COUNTRY_INFO!B33)," ") ->  | C33: =IF(AND(INTRO!$E$37="Endemic",INTRO!$E$39="Non-endemic"),IF(COUNTRY_INFO!C33=0," ",COUNTRY_INFO!C33)," ") ->  | D33: =IF(COUNTRY_INFO!Z33<>"",COUNTRY_INFO!V33,0) -> 0 | E33: =IF(AND(COUNTRY_INFO!Z33<>"",COUNTRY_INFO!$H33=1),COUNTRY_INFO!F33+COUNTRY_INFO!G33,0) -> 0 | F33: 0 | H33: 0
A34: =IF(AND(INTRO!$E$37="Endemic",INTRO!$E$39="Non-endemic"),IF(COUNTRY_INFO!A34=0," ",COUNTRY_INFO!A34)," ") ->  | B34: =IF(AND(INTRO!$E$37="Endemic",INTRO!$E$39="Non-endemic"),IF(COUNTRY_INFO!B34=0," ",COUNTRY_INFO!B34)," ") ->  | C34: =IF(AND(INTRO!$E$37="Endemic",INTRO!$E$39="Non-endemic"),IF(COUNTRY_INFO!C34=0," ",COUNTRY_INFO!C34)," ") ->  | D34: =IF(COUNTRY_INFO!Z34<>"",COUNTRY_INFO!V34,0) -> 0 | E34: =IF(AND(COUNTRY_INFO!Z34<>"",COUNTRY_INFO!$H34=1),COUNTRY_INFO!F34+COUNTRY_INFO!G34,0) -> 0 | F34: 0 | H34: 0
A35: =IF(AND(INTRO!$E$37="Endemic",INTRO!$E$39="Non-endemic"),IF(COUNTRY_INFO!A35=0," ",COUNTRY_INFO!A35)," ") ->  | B35: =IF(AND(INTRO!$E$37="Endemic",INTRO!$E$39="Non-endemic"),IF(COUNTRY_INFO!B35=0," ",COUNTRY_INFO!B35)," ") ->  | C35: =IF(AND(INTRO!$E$37="Endemic",INTRO!$E$39="Non-endemic"),IF(COUNTRY_INFO!C35=0," ",COUNTRY_INFO!C35)," ") ->  | D35: =IF(COUNTRY_INFO!Z35<>"",COUNTRY_INFO!V35,0) -> 0 | E35: =IF(AND(COUNTRY_INFO!Z35<>"",COUNTRY_INFO!$H35=1),COUNTRY_INFO!F35+COUNTRY_INFO!G35,0) -> 0 | F35: 0 | H35: 0
A36: =IF(AND(INTRO!$E$37="Endemic",INTRO!$E$39="Non-endemic"),IF(COUNTRY_INFO!A36=0," ",COUNTRY_INFO!A36)," ") ->  | B36: =IF(AND(INTRO!$E$37="Endemic",INTRO!$E$39="Non-endemic"),IF(COUNTRY_INFO!B36=0," ",COUNTRY_INFO!B36)," ") ->  | C36: =IF(AND(INTRO!$E$37="Endemic",INTRO!$E$39="Non-endemic"),IF(COUNTRY_INFO!C36=0," ",COUNTRY_INFO!C36)," ") ->  | D36: =IF(COUNTRY_INFO!Z36<>"",COUNTRY_INFO!V36,0) -> 0 | E36: =IF(AND(COUNTRY_INFO!Z36<>"",COUNTRY_INFO!$H36=1),COUNTRY_INFO!F36+COUNTRY_INFO!G36,0) -> 0 | F36: 0 | H36: 0
A37: =IF(AND(INTRO!$E$37="Endemic",INTRO!$E$39="Non-endemic"),IF(COUNTRY_INFO!A37=0," ",COUNTRY_INFO!A37)," ") ->  | B37: =IF(AND(INTRO!$E$37="Endemic",INTRO!$E$39="Non-endemic"),IF(COUNTRY_INFO!B37=0," ",COUNTRY_INFO!B37)," ") ->  | C37: =IF(AND(INTRO!$E$37="Endemic",INTRO!$E$39="Non-endemic"),IF(COUNTRY_INFO!C37=0," ",COUNTRY_INFO!C37)," ") ->  | D37: =IF(COUNTRY_INFO!Z37<>"",COUNTRY_INFO!V37,0) -> 0 | E37: =IF(AND(COUNTRY_INFO!Z37<>"",COUNTRY_INFO!$H37=1),COUNTRY_INFO!F37+COUNTRY_INFO!G37,0) -> 0 | F37: 0 | H37: 0
A38: =IF(AND(INTRO!$E$37="Endemic",INTRO!$E$39="Non-endemic"),IF(COUNTRY_INFO!A38=0," ",COUNTRY_INFO!A38)," ") ->  | B38: =IF(AND(INTRO!$E$37="Endemic",INTRO!$E$39="Non-endemic"),IF(COUNTRY_INFO!B38=0," ",COUNTRY_INFO!B38)," ") ->  | C38: =IF(AND(INTRO!$E$37="Endemic",INTRO!$E$39="Non-endemic"),IF(COUNTRY_INFO!C38=0," ",COUNTRY_INFO!C38)," ") ->  | D38: =IF(COUNTRY_INFO!Z38<>"",COUNTRY_INFO!V38,0) -> 0 | E38: =IF(AND(COUNTRY_INFO!Z38<>"",COUNTRY_INFO!$H38=1),COUNTRY_INFO!F38+COUNTRY_INFO!G38,0) -> 0 | F38: 0 | H38: 0

Sheet SUMMARY
B2: Joint request for selected PC medicines v.4.1
B4: This form constitutes an official government request to WHO for the supply of the PC medicines. To ensure the medicines are delivered on time, the request for PC medicines should be submitted at least 9 months before the first date of MDA planned in the calendar year of the request.
B6: Country | C6: =IF(INTRO!$E$33<>0,INTRO!$E$33," ") -> MALAWI | G6: Year | H6: =IF(INTRO!$E$35<>0,INTRO!$E$35," ") -> 2024
B8: Information on PC medicines requested to WHO
B10: PC medicine | C10: Target group | D10: Number of tablets | H10: Specify source
D11: Required | E11: In stock | F11: In pipeline | G11: Requested
B12: Diethylcarbamazine citrate | C12: ALL | D12: 0 | E12: 0 | G12: =IF(D12>(E12+F12),D12-E12-F12, 0) -> 0
G13: 0
B14: Ivermectin | C14: ALL | D14: 9328272.8 | E14: 0 | G14: 9328272.8
B16: Albendazole for LF | C16: ALL | D16: 0 | E16: 0 | G16: 0
G17: 0
B18: Albendazole for STH | C18: PreSAC | D18: 0 | G18: 0
C19: SAC | D19: 2459358 | E19: 6234500 | G19: 0
C20: WRA | D20: 0 | G20: 0
B22: Mebendazole | C22: PreSAC | G22: 0
C23: SAC | G23: 0
C24: WRA | G24: 0
B26: Praziquantel | C26: PreSAC | D26: 0 | G26: 0
C27: SAC | D27: 6748226 | F27: 13905000 | G27: 0
C28: Adults | D28: 0 | G28: =IF(D28>(E28+F28),D28-E28-F28, 0) -> 0
B30: Number of people to be treated with donated medicine ( see User Guide for details )
B32: Disease | F32: Round 1 | G32: Round 2 | H32: Round 3
B33: Lymphatic filariasis | C33: These figures are estimated only for targeted age groups to be treated with donated medicines in areas where treatment for a specific disease is planned | F33: 0
B34: Onchocerciasis | F34: 2891396 | G34: 440130
B35: Schistosomiasis | F35: 3348548 | G35: 191461
B36: Soil-transmitted helminthiases | F36: 0 | G36: 0 | H36: 0
B40: Information on planned PC interventions
B42: PC medicine | C42: Planned date of the 1st round of PC | E42: Planned date of the 2nd round of PC | G42: Date by which the medicine should arrive to the national warehouse
B43: Diethylcarbamazine citrate
B44: Ivermectin | C44: April | D44: 2024 | E44: September | F44: 2024 | G44: May | H44: 2024
B45: Albendazole for LF
B46: Albendazole for STH | C46: July | D46: 2024 | G46: March | H46: 2024
B47: Mebendazole
B48: Praziquantel
B50: Checklist
B51: Submission
B52: What should be submitted?
B53: The supply of the requested medicines should be based on up-to-date epidemiological data, specific usage plans, and capacity for implementation. The following checklist ensures that all necessary forms and information are provided to WHO (in electronic format).
B54: Joint request for selected PC medicines
B55: Joint reporting form
B56: PC epidemiological data reporting form
B58: Availability of funding for implementation in the year for which the medicines are requested
B60: Diseases targeted for implementation | C60: Total treatments | D60: Funding secured for | E60: Source | H60: Amount
B61: =B33 -> Lymphatic filariasis | C61: =SUM(F33:H33) -> 0
B62: =B34 -> Onchocerciasis | C62: =SUM(F34:H34) -> 3331526 | D62: No
B63: =B35 -> Schistosomiasis | C63: =SUM(F35:H35) -> 3540009 | D63: No
B64: =B36 -> Soil-transmitted helminthiases | C64: =SUM(F36:H36) -> 0 | D64: No
B66: Who should fill in the form?
B67: National NTD coordinator should compile all required information needed to complete the request form. In the absence of such a coordinator, specific programme managers should coordinate their respective part. The final single request must be approved by the Ministry of Health.
B69: Information on person(s) who has filled in the form
B71: Title | C71: Name | E71: Phone | G71: Email | H71: Date
B72: ONCHO Programme Manager | C72: Laston Sitima | E72: 265 999 978 624 | G72: lastonsitima64@gmail.com
B73: Data Manager | C73: Andrew Nguluwe | E73: 265 999 757 991 | G73: andynguluwe@gmail.com
B79: The WHO recommends that all serious adverse events suspected to be associated with use of PC medicines should be reported in accordance with national Pharmacovigilance guidelines. In the absence of a national Pharmacovigilance system, contact the WHO Neglected Tropical Disease department for guidance.
B80: The WHO is committed to facilitate PC medicines donation with a free-of-charge supply of a) albendazole, mebendazole and praziquantel to the MoH’s national warehouse; and b) diethylcarbamazine citrate to the entry port/airport of recipient countries.
B81: The institution submitting the present request is responsible for a) arranging the offloading of the medicines from the truck and storing it in the national warehouse and subsequent shipment to the final distribution centres; b) for registering the donated medicine, if required, by the relevant national regulatory authorities; and c) for informing about any changes of their PC campaigns (e.g. postpone of the planned MDA date, replacement of NTD coordinator, etc.).
C82: I have read and accept WHO Data Sharing Policy
C83: I confirm that all information provided in this form is complete and correct
B84: Name and signature of NTD coordinator or Ministry of Health representative
B85: Date:
B87: Please complete information on shipment and consignee in the worksheet SHIPMENT. Any additional details related to this Request should be provided in the "Additional information" box in the worksheet SHIPMENT.
B88: Please send the national request (signed and in electronic format) to the concerned WR with copy to:
B89: WHO headquarters | C89: PC_JointForms@who.int
B90: WHO Regional Office | C90: Regional Advisor for NTD
B91: Mectizan donation program | C91: Dr Yao Sodahlon, email: ysodahlon@taskforce.org
B93: Please note that your request will be reviewed by an independent panel before approval. The information in this form, joint reporting form and PC epidemiological data reporting form are essential for WHO to ensure efficient usage of medicines. As part of its ongoing monitoring and evaluation activities, and to meet its contractual obligations to donors and other partners, WHO and its appointed agents reserve the right to periodically inspect stocks of the medicines at country level.

Sheet SHIPMENT
B2: Joint request for selected PC medicines v.4.1
B4: Country | C4: =IF(INTRO!$E$33<>0,INTRO!$E$33," ") -> MALAWI | G4: Year | H4: =IF(INTRO!$E$35<>0,INTRO!$E$35," ") -> 2024
B6: Information on shipment and consignee
B8: IVM | C8: Consignee | F8: Delivery point / Final recipient if different from the consignee
B9: Name | C9: Laston Sitima
B10: Department/Unit | C10: Preventive Health
B11: Organization | C11: Ministry of Health
B12: Phone | C12: 265 999 978 624
B13: Fax | C13: NA
B14: E-mail | C14: lastonsitima64@gmail.com
B15: Mailing address | C15: CHSU, Area 3, P/Bag 65, Lilongwe, MALAWI
B17: ALB for STH | C17: Consignee | F17: Delivery point / Final recipient if different from the consignee
B18: Name | C18: Dr Neema Kimambo
B19: Department/Unit
B20: Organization | C20: World Health Organisation
B21: Phone | C21: 2651772450
B22: Fax | C22: 265 1 772 350
B23: E-mail | C23: kimambon@who.int
B24: Mailing address | C24: Box 30390, Capital City, Lilongwe 3, Area 13
B26: PZQ | C26: Consignee | F26: Delivery point / Final recipient if different from the consignee
B27: Name | C27: Dr Neema Kimambo
B28: Department/Unit
B29: Organization | C29: World Health Organisation
B30: Phone | C30: 2651772450
B31: Fax | C31: 265 1 772 350
B32: E-mail | C32: kimambon@who.int
B33: Mailing address | C33: Box 30390, Capital City, Lilongwe 3, Area 13
B36: Information on import requirements
B38: Is the Import Permit required? | H38: No
B39: How long does it take to obtain the Import Permit?
B40: Do you require any documents to be submitted together with the Import Permit application?
B42: Does the consignee have to get customs clearance before the shipment can proceed? | H42: No
B43: Is there any additional information may be helpful in ensuring timely clearance and delivery of medicines to your country?
B46: Additional information
B48: Overall calculation for STH in the summary is not giving auto sum for the requested albendazole which is supposed to be is 6,325,304

Sheet DATA_POLICY (hidden)
B2: Joint request for selected PC medicines v.4.1
B4: Country | D4: =IF(INTRO!$E$33<>0,INTRO!$E$33," ") -> MALAWI | G4: Year | H4: =IF(INTRO!$E$35<>0,INTRO!$E$35," ") -> 2024
B7: WHO Data Sharing Policy statement
B9: Data are the basis for all sound public health actions and the benefits of data sharing are widely recognized, including scientific and public health benefits. Whenever possible, WHO wishes to promote the sharing of health data, including but not restricted to surveillance and epidemiological data.
B14: ="In this connection, and without prejudice to information sharing and publication pursuant to legally binding instruments, by providing data to WHO, the Ministry of Health of " & D4 & ":" -> In this connection, and without prejudice to information sharing and publication pursuant to legally binding instruments, by providing data to WHO, the Ministry of Health of MALAWI:
B18: Confirms that all data to be supplied to WHO hereunder have been collected in accordance with applicable national laws, including data protection laws aimed at protecting the confidentiality of identifiable persons;
B23: ="Agrees that WHO shall be entitled, subject always to measures to ensure the ethical and secure use of the data, and subject always to an appropriate acknowledgement of "&D4&":" -> Agrees that WHO shall be entitled, subject always to measures to ensure the ethical and secure use of the data, and subject always to an appropriate acknowledgement of MALAWI:
C27: to publish the data, stripped of any personal identifiers and make the Data available to any interested party on request (to the extent they have not, or not yet, been published by WHO) on terms that allow non-commercial, not-for-profit use of the Data for public health purposes (provided always that publication of the Data shall remain under the control of WHO); to use, compile, aggregate, evaluate and analyse the Data and publish and disseminate the results thereof in conjunction with WHO’s work and in accordance with the Organization’s policies and practices.
B39: =CONCATENATE("Except where data sharing and publication is required under legally binding instruments (IHR, WHO Nomenclature Regulations 1967, etc.), the Ministry of Health of ", D4," may in respect of certain data opt out of (any part of) the above," & " by notifying WHO thereof in writing at the following address, provided that any such notification shall clearly identify the data in question and clearly indicate the scope of the opt-out (in reference to the above), " & "and provided that specific reasons shall be given for the opt out.") -> Except where data sharing and publication is required under legally binding instruments (IHR, WHO Nomenclature Regulations 1967, etc.), the Ministry of Health of MALAWI may in respect of certain data opt out of (any part of) the above, by notifying WHO thereof in writing at the following address, provided that any such notification shall clearly identify the data in question and clearly indicate the scope of the opt-out (in reference to the above), and provided that specific reasons shall be given for the opt out.
